Workbook

Sheet Copyright
A1: Total UA Alternative Worksheet | E1: ENABLE MACROS: Macros must be enabled for this tool to function properly.
A2: Version: Total UA Alternative_20201112~Blank.xlsm, 11/12/2020 11:02:02 AM | K2: Calculator tabs will open after macros are enabled and terms of use are accepted.
A3: Date: | B3: 2020-11-12T11:02:02 | U3: ADMIN TOOLS
B71: SheetProtection | C71: Protected
B72: SheetsUnhidden | C72: Calculation Sheets Hidden
B73: Mask | C73: 371753209829
B75: Current IP Address | C75: 2607:fa78:118e:1:a0b2:cef6:7d6d:26a
B76: Registered IP Address
B79: First Name | C79: Carolyn
B80: Last Name | C80: Roos
B81: Registration Date: | C81: 2020-08-21
B82: Version | C82: Version: 2015-2018 Total UA Alternative Worksheet~20200819~C2200-1.xlsm, 8/19/2020 3:11:38 PM | G82: vb
B83: Company | C83: WSUEP
B84: Demographic
B85: ContactInfo1
B86: ContactInfo2
B87: ContactInfo3
B88: ContactInfo4
B89: City | C89: Olympia
B90: State
B91: Zipcode
B92: Add to Mailing List? | C92: No
B93: Registrations with this file | C93: 0
B101: End of calculation area

Sheet Instructions
A1: Component Performance Worksheet (CPWorksheet)
A3: These worksheets are designed to document the qualification of building designs by the component performance approach described in the 2015 edition, Washington State Energy Code (WSEC).
A5: These instructions do not attempt to teach the requirements of the WSEC. If you need an overview of the Code, we recommend that you begin by looking at the resources contained on the WSU Energy Program website: www.energy.wsu.edu/code.
A7: Resources on the website include:
A8: · Text of the WSEC
A10: How to use the worksheets
A12: This Excel workbook contains 15 worksheets:
A13: Copyright Worksheet
A14: These instructions
A15: The Component Performance Worksheet
A16: Group R occupancies as defined by the IECC
A17: The Library Worksheets
A18: Energy Credit Options (Table 406.2)
A19: Vertical Glazing
A20: Overhead Glazing
A21: Doors
A22: Ceilings, Attic
A23: Ceilings, Vault
A24: Walls (above grade)
A25: Floors
A26: Slab on Grade
A27: Below Grade Walls & Slabs
A28: Weather
A32: The Library Worksheets
A34: The library worksheets provided the default component u-factors from the WSEC. These are the u-factors necessary to complete most projects.
A36: You can enter custom component descriptions to the library worksheets. If you have tested u-factors for windows, skylights and doors, you will want to enter them into the library, since tested u-factors tend to be more favorable to design qualification than the default values.
A38: To add new components to the library worksheets
A40: For most building components, it is important to utilize the component listings from the code. The exception is glazing and door products. Most glazing products perform much better than the default code values. If you can obtain NFRC certified u-factors for windows and doors, it is to your advantage to use them.
A42: To add data to the library:
A43: · Tab to the library worksheet you would like to edit. A blue box at the right of the screen has instructions for editing the specific worksheet. Each has somewhat different instructions.
A44: · There are two types of cells in the worksheet. White cells are for data entry; shaded cells perform calculations or summarize data. Do not attempt to enter data into the shaded cells. Do not delete rows, columns or cells. This will disrupt the indexing reference to the CPWorksheet.
A45: · Get in the habit of clearing cell contents using the delete key. Other editing functions may leave traces of entries or functions that are undesirable.
A46: · Don’t forget to save your worksheet after you make changes.
A48: Note: The component library worksheets provide the default component u-factors from the WSEC. These are the u-factors necessary to complete most projects. Each of the worksheets contains space for users to input custom components as needed. Previous versions of this workbook required opening a separate workbook containing the component libraries (CPLibrary.xls.) This current version consolidates these two workbooks into one. If you have been maintaining your own custom library entries, you will need to copy the custom entries from your original CPLibrary worksheet into the appropriate tab of this worksheet (do not copy the entire worksheets from the original CPLibrary worksheet – these entries will not be recognized by the component performance worksheets. We strongly advise that you keep your original CPLibrary worksheet as a backup.
A50: Gathering the Building Component Data
A52: To document energy code compliance, you need to gather certain preliminary information. You will need to identify all the different exterior components and measure them, based on the set of plans.
A54: Identify the Building Components
A56: First, identify the building's thermal envelope. This is the part of the building that separates the heated and unheated spaces. Each different component of the building's thermal envelope should be clearly shown on the plans. Read the component descriptions in the WSEC. Match the construction method utilized in the project with the proper code description of the component.
A58: Measure the Building Components
A60: Each component must be measured and the size of each noted. Record all measurements. List the measurements next to the component description.
A62: The following measurement conventions should be followed:
A63: · Most components are listed in terms of area in square feet (ft²). Slabs are measured by the linear foot (ft), based on the length of the conditioned slab perimeter.
A64: · Use the rough opening area for windows and doors.
A66: You may want to print out a blank copy of the Component Performance CPWorksheet. Keep notes on the sheet as you take measurements from the plans.
A68: Working with the CPWorksheet
A70: Open the Worksheet
A72: Immediately save the workbook under a new file name using the Save As function. Give it a name specific to the project you are currently working on.
A74: The worksheets provide detailed documentation for the plans examiner and inspector. Do not skimp on details. Provide reference to the plans on the CPWorksheet using the “Plan ID” cell. Provide itemized glazing and door schedules, as well as area inputs on other building components.
A76: The top of the worksheet asks for general data on the building and includes a summary of the data entry performed in the rest of the worksheet.
A78: The Proposed Design Values at the top of the worksheet are a summary of the data entered on the rest of the worksheet, and perform the calculation required by WSEC R402.1.4 Total UA alternative.
A80: The Code Target Values on the top of the worksheet perform the calculations as prescribed in the WSEC R402.1.4 Total UA alternative.
A82: Below the Proposed Design Values and the Code Target Values are the Target UA Total, and the Proposed UA Total. To document compliance with the WSEC, the Proposed UA Total must be less than or equal to the Target UA Total. In addition, you must select at least Energy Credit options, listed at the bottom of the worksheet, for a total of at least 1.5 credits to meet minimum WSEC requirements for a small dwelling unit, 3.5 credits for a medium dwelling unit, and 4.5 credits for large dwelling unit. The CPWorksheet will add the note “Qualifies” next to the Target and Proposed UA totals and Energy Credits, when these requirements are met. You can not trade surplus Energy Credits for minimum envelope requirements.
A84: As you page down, you will find blank schedules for each component of the building. This is where most of the data entry work is completed. For each component, complete as many rows as needed to document your project.
A86: You only need to fill in cells that apply to your project. The CPWorksheets have been developed to accommodate fairly complex structures with numerous building components. Most projects will only utilize a fraction of the open cells on the CPWorksheet. For example, most residential structures only use one above grade wall type. In this case, only complete one row on the in the Walls (Above Grade) schedule; the other three rows would remain blank.
A88: A complete schedule for glazing and doors is required. Plans examiners need to be able to compare the CPWorksheet entries to the plans and to the completed structure. For each glazing or door model and size, a row on the schedule should be completed.
A90: Data Entry
A92: There are two types of cells in the CPWorksheet. Yellow cells are for data entry; shaded cells perform calculations or summarize data. Do not attempt to enter data into the shaded cells.
A94: The worksheet includes tips on data entry. Cells with tips can be identified by a red flag in the upper right corner of the cell. To view comments one at a time, simply place the cursor over the flag. A text box will appear with a tip on the specific cell.
A96: To view all the cell comments, go to the Excel menu bar, select View, then Comments. This will open all of the text boxes. To close the comments, repeat the selection, View, comments. This provides a good overview for first time users. If you need additional help viewing comments, use the Excel help menu.
A98: Help?
A100: WSU Energy Program will provide limited direct support for this product. Due to limited funding, it is simply not possible to complete forms for the public.
A102: WSU Energy Program does encourage e-mail input on this product. Comments from users will be used to update the worksheets and improve these instructions. Send your comments to energycode@energy.wsu.edu
A104: Changes and Updates
A107: The copyright page includes a version number of the workbook. If a change is required, a new version of the worksheets will be posted on our web page. Check the web site periodically to assure you are using the most recent version.
A108: Cheating
A110: These worksheets contain password protected cells that should not be edited. Plans examiners should be aware that this is not a 100% foolproof method of preventing tampering with the worksheets by unethical users; review submissions carefully. Editing cells in protected areas is a violation of the WSU Energy Program Copyright.
A112: Copyright Restrictions
A114: Copyright: Washington State University Extension Energy Program*
A115: © 2020
A117: *WSUEEP grants limited, conditional permission to Designated Users for:
A118: 1. Creation and distribution of free copies of the Spreadsheets and Workbooks, including electronic reproduction;
A119: 2. Editing of unprotected cells; and
A120: 3. Printing results from the Workbooks;
A122: The condition for permission is that the source of any materials copied or used from the Spreadsheets or Workbooks shall be acknowledged as: "Copied by permission from Washington State University Extension Energy Program."
A124: No other use or purpose for copying is permitted including, without limitation, changing password protected cells in the Workbooks or selling or using the Spreadsheets and Workbooks in any way calculated to derive profit as a product or service. Report any violations of this Copyright Policy to: energycode@energy.wsu.edu.
A126: All other rights reserved.

Sheet Group R (hidden)
E1: Total UA Alternative Worksheet - WSEC 2015 & 2018 | I1: =IF(MacroMessage="","",MacroMessage) -> ENABLE MACROS: Macros must be enabled for this tool to function properly. | AK1: Prototypes
M2: Inputs | O2: Results | AK2: id_prototypes | AL2: prototype | AM2: Tons | AN2: Furnsize | AO2: SDloc | AP2: SDArea | AQ2: RDloc | AR2: RDArea | AS2: Afloorcon | AT2: Volume | AU2: Afloorext | AV2: Aextwall | AW2: Aceiling | AX2: AwinN | AY2: AwinE | AZ2: AwinS | BA2: AwinW | BB2: Adoor | BC2: Foundtype | BD2: Afootprint | BE2: Pfootprint | BF2: HeightAG | BG2: HeightBG | BH2: StackHeight | BI2: FanCFM | BJ2: achattic | BK2: achcrawl | BL2: WH | BM2: WH_size | BN2: HPWH_performance | BO2: ducted | BP2: WH_fan | BQ2: WH_loc | BR2: InteractionFactor | BS2: prototype_desc | BT2: btype | BU2: occupants_per_unit | BV2: occupants | BW2: numunits | BX2: height_per_floor | BY2: floors_per_building | BZ2: total_height | CA2: baseductsinside | CB2: bedrooms_per_unit | CC2: reqvent | CD2: glazing_pct_hfa | CE2: perim_width | CF2: perim_length | CG2: seemtemplate_sort | CH2: official_rtf_prototype | CI2: sqft_per_unit | CJ2: sizecat | CK2: fan_cfm_per_unit | CL2: wh_size_per_unit | CM2: floor_ins_area | CN2: wall_ins_area | CO2: bsmtwall_ins_area | CP2: window_area | CQ2: slab_area | CR2: wall_to_floor_area | CS2: duct_area
AK3: 1 | AL3: c1344 | AM3: 2.5 | AN3: 17.58427263 | AO3: Crawl | AP3: 240 | AQ3: Attic | AR3: 50 | AS3: 1344 | AT3: 10752 | AU3: 0 | AV3: 1184 | AW3: 1344 | AX3: 43.68 | AY3: 43.68 | AZ3: 43.68 | BA3: 43.68 | BB3: 40 | BC3: 1 | BD3: 1344 | BE3: 148 | BF3: 1 | BG3: 2 | BH3: 8 | BI3: 50 | BJ3: 4.5 | BK3: 4.5 | BL3: 1 | BM3: 50 | BN3: 4 | BO3: 0 | BP3: 0 | BQ3: 1 | BR3: 0.65 | BS3: sf home | BT3: sf | BU3: 2.39184953 | BV3: 2.39184953 | BW3: 1 | BX3: 8 | BY3: 1 | BZ3: 8 | CA3: FALSE | CB3: 3 | CC3: 70.32 | CD3: 0.13 | CE3: 32 | CF3: 42 | CG3: 1 | CH3: TRUE | CI3: 1344 | CJ3: 1500 | CK3: 50 | CL3: 50 | CM3: 1344 | CN3: 969.28 | CO3: 0 | CP3: 174.72 | CQ3: 0 | CR3: 0.880952381 | CS3: 290
D4: Project Information | G4: Messages / Results | AK4: 2 | AL4: s1344 | AM4: 2.5 | AN4: 17.58427263 | AO4: Attic | AP4: 240 | AQ4: Attic | AR4: 50 | AS4: 1344 | AT4: 10752 | AU4: 0 | AV4: 1184 | AW4: 1344 | AX4: 43.68 | AY4: 43.68 | AZ4: 43.68 | BA4: 43.68 | BB4: 40 | BC4: 2 | BD4: 1344 | BE4: 148 | BF4: 0 | BG4: 0 | BH4: 8 | BI4: 50 | BJ4: 4.5 | BK4: 4.5 | BL4: 1 | BM4: 50 | BN4: 4 | BO4: 0 | BP4: 0 | BQ4: 1 | BR4: 0.65 | BS4: sf home | BT4: sf | BU4: 2.39184953 | BV4: 2.39184953 | BW4: 1 | BX4: 8 | BY4: 1 | BZ4: 8 | CA4: FALSE | CB4: 3 | CC4: 70.32 | CD4: 0.13 | CE4: 32 | CF4: 42 | CG4: 1 | CH4: TRUE | CI4: 1344 | CJ4: 1500 | CK4: 50 | CL4: 50 | CM4: 0 | CN4: 969.28 | CO4: 0 | CP4: 174.72 | CQ4: 1344 | CR4: 0.880952381 | CS4: 290
G5: =IF(N33=0,"",VLOOKUP(Menu_UseOfCalculator,Table_UseOfCalculator,I252,FALSE)) ->  | AK5: 3 | AL5: c2200 | AM5: 4 | AN5: 23.44569684 | AO5: Crawl | AP5: 300 | AQ5: Attic | AR5: 80 | AS5: 2200 | AT5: 18700 | AU5: 200 | AV5: 2210 | AW5: 1784 | AX5: 91.3 | AY5: 91.3 | AZ5: 91.3 | BA5: 91.3 | BB5: 40 | BC5: 1 | BD5: 1584 | BE5: 160 | BF5: 1 | BG5: 2 | BH5: 17 | BI5: 50 | BJ5: 4.5 | BK5: 4.5 | BL5: 1 | BM5: 50 | BN5: 4 | BO5: 0 | BP5: 0 | BQ5: 1 | BR5: 0.65 | BS5: sf home | BT5: sf | BU5: 2.794416244 | BV5: 2.794416244 | BW5: 1 | BX5: 8.5 | BY5: 2 | BZ5: 17 | CA5: FALSE | CB5: 4 | CC5: 103.5 | CD5: 0.166 | CE5: 36 | CF5: 44 | CG5: 2 | CH5: TRUE | CI5: 2200 | CJ5: 5000 | CK5: 50 | CL5: 50 | CM5: 1784 | CN5: 1804.8 | CO5: 0 | CP5: 365.2 | CQ5: 0 | CR5: 1.004545455 | CS5: 380
G6: =IF(AND(H33>0,N33>0,F59>0),IF(AND(Menu_UseOfCalculator<>Item_Use_RemodelAlteration,N34<Section_EnergyCreditResults),"Energy credit requirements are not met. Select energy credit options from Table 406.2",""),"") ->  | AK6: 4 | AL6: s2200 | AM6: 4 | AN6: 23.44569684 | AO6: Attic | AP6: 300 | AQ6: Attic | AR6: 80 | AS6: 2200 | AT6: 18700 | AU6: 200 | AV6: 2210 | AW6: 1784 | AX6: 91.3 | AY6: 91.3 | AZ6: 91.3 | BA6: 91.3 | BB6: 40 | BC6: 2 | BD6: 1584 | BE6: 160 | BF6: 0 | BG6: 0 | BH6: 17 | BI6: 50 | BJ6: 4.5 | BK6: 4.5 | BL6: 1 | BM6: 50 | BN6: 4 | BO6: 0 | BP6: 0 | BQ6: 1 | BR6: 0.65 | BS6: sf home | BT6: sf | BU6: 2.794416244 | BV6: 2.794416244 | BW6: 1 | BX6: 8.5 | BY6: 2 | BZ6: 17 | CA6: FALSE | CB6: 4 | CC6: 103.5 | CD6: 0.166 | CE6: 36 | CF6: 44 | CG6: 2 | CH6: TRUE | CI6: 2200 | CJ6: 5000 | CK6: 50 | CL6: 50 | CM6: 200 | CN6: 1804.8 | CO6: 0 | CP6: 365.2 | CQ6: 1584 | CR6: 1.004545455 | CS6: 380
G7: =G272 ->  | AK7: 5 | AL7: b2688 | AM7: 3.5 | AN7: 17.58427263 | AO7: In | AP7: 0 | AQ7: Attic | AR7: 40 | AS7: 2688 | AT7: 22848 | AU7: 0 | AV7: 1480 | AW7: 1344 | AX7: 94.08 | AY7: 94.08 | AZ7: 94.08 | BA7: 94.08 | BB7: 40 | BC7: 4 | BD7: 1344 | BE7: 148 | BF7: 0.5 | BG7: 6.5 | BH7: 10 | BI7: 50 | BJ7: 4.5 | BK7: 4.5 | BL7: 1 | BM7: 50 | BN7: 4 | BO7: 0 | BP7: 0 | BQ7: 4 | BR7: 0.65 | BS7: sf home | BT7: sf | BU7: 2.946236559 | BV7: 2.946236559 | BW7: 1 | BX7: 10 | BY7: 2 | BZ7: 20 | CA7: FALSE | CB7: 4 | CC7: 118.14 | CD7: 0.14 | CE7: 32 | CF7: 42 | CG7: 3 | CH7: TRUE | CI7: 2688 | CJ7: 5000 | CK7: 50 | CL7: 50 | CM7: 0 | CN7: 1063.68 | CO7: 1036 | CP7: 376.32 | CQ7: 0 | CR7: 0.9360119048 | CS7: 40
G8: =I258 ->  | AK8: 6 | AL8: b5000 | AM8: 6 | AN8: 35.16854525 | AO8: In | AP8: 0 | AQ8: Attic | AR8: 60 | AS8: 5000 | AT8: 40100 | AU8: 200 | AV8: 2788 | AW8: 1800 | AX8: 187.5 | AY8: 187.5 | AZ8: 187.5 | BA8: 187.5 | BB8: 40 | BC8: 4 | BD8: 1600 | BE8: 164 | BF8: 0.5 | BG8: 6.5 | BH8: 17 | BI8: 50 | BJ8: 4.5 | BK8: 4.5 | BL8: 1 | BM8: 50 | BN8: 4 | BO8: 0 | BP8: 0 | BQ8: 4 | BR8: 0.65 | BS8: sf home | BT8: sf | BU8: 3.935566237 | BV8: 3.935566237 | BW8: 1 | BX8: 10 | BY8: 3 | BZ8: 30 | CA8: FALSE | CB8: 4 | CC8: 187.5 | CD8: 0.15 | CE8: 32 | CF8: 50 | CH8: FALSE | CI8: 5000 | CJ8: 9999 | CK8: 50 | CL8: 50 | CM8: 200 | CN8: 1998 | CO8: 1148 | CP8: 750 | CQ8: 0 | CR8: 0.7872 | CS8: 60
G9: =IF(M25>0.15*F59,"Vertical glazing area exceeds 15% of floor area.","") ->  | AK9: 7 | AL9: c2460 | AM9: 6 | AN9: 23.44569684 | AO9: In | AP9: 280 | AQ9: In | AR9: 70 | AS9: 2460 | AT9: 20910 | AU9: 0 | AV9: 2193 | AW9: 820 | AX9: 92.25 | AY9: 92.25 | AZ9: 92.25 | BA9: 92.25 | BB9: 60 | BC9: 1 | BD9: 821.5 | BE9: 86 | BF9: 1 | BG9: 2 | BH9: 25.5 | BI9: 150 | BJ9: 4.5 | BK9: 4.5 | BL9: 1 | BM9: 150 | BN9: 4 | BO9: 0 | BP9: 0 | BQ9: 1 | BR9: 0.65 | BS9: garden style | BT9: mf | BU9: 2.25 | BV9: 6.75 | BW9: 3 | BX9: 8.5 | BY9: 3 | BZ9: 25.5 | CA9: TRUE | CB9: 2 | CC9: 141.3 | CD9: 0.15 | CE9: 26.5 | CF9: 31 | CH9: FALSE | CI9: 820 | CJ9: 1500 | CK9: 50 | CL9: 50 | CM9: 821.5 | CN9: 1764 | CO9: 0 | CP9: 369 | CQ9: 0 | CR9: 0.8914634146 | CS9: 350
AK11: vvvvvvvv Not used in 2018 WSREC Analysis | AS11: Not used in 2018 WSREC Analysis | AW11: Not used in 2018 WSREC Analysis | BA11: Not used in 2018 WSREC Analysis | BE11: Not used in 2018 WSREC Analysis | BI11: Not used in 2018 WSREC Analysis | BM11: Not used in 2018 WSREC Analysis
AK12: 10 | AL12: c1500 | AM12: 6 | AN12: 35.16854525 | AO12: Crawl | AP12: 100 | AQ12: Attic | AR12: 50 | AS12: 1500 | AT12: 14250 | AU12: 0 | AV12: 1259 | AW12: 500 | AX12: 48.75 | AY12: 48.75 | AZ12: 48.75 | BA12: 48.75 | BB12: 40 | BC12: 1 | BD12: 500 | BE12: 90 | BF12: 1 | BG12: 2 | BH12: 28.5 | BI12: 50 | BJ12: 4.5 | BK12: 4.5 | BL12: 1 | BM12: 50 | BN12: 4 | BO12: 0 | BP12: 0 | BQ12: 1 | BR12: 0.65 | BS12: townhome | BT12: sf | BU12: 1.69 | BV12: 1.69 | BW12: 1 | BX12: 9.5 | BY12: 3 | BZ12: 28.5 | CA12: FALSE | CB12: 3 | CC12: 75 | CD12: 0.13 | CE12: 20 | CF12: 25 | CG12: 4 | CH12: TRUE | CI12: 1500 | CJ12: 5000 | CK12: 50 | CL12: 50 | CM12: 500 | CN12: 1024 | CO12: 0 | CP12: 195 | CQ12: 0 | CR12: 0.8393333333 | CS12: 150
AK13: =AK12+1 -> 11 | AL13: s1500 | AM13: 6 | AN13: 35.16854525 | AO13: Attic | AP13: 20 | AQ13: Attic | AR13: 50 | AS13: 1500 | AT13: 14250 | AU13: 0 | AV13: 1259 | AW13: 500 | AX13: 48.75 | AY13: 48.75 | AZ13: 48.75 | BA13: 48.75 | BB13: 40 | BC13: 2 | BD13: 500 | BE13: 90 | BF13: 0 | BG13: 0 | BH13: 28.5 | BI13: 50 | BJ13: 4.5 | BK13: 4.5 | BL13: 1 | BM13: 50 | BN13: 4 | BO13: 0 | BP13: 0 | BQ13: 1 | BR13: 0.65 | BS13: townhome | BT13: sf | BU13: 1.69 | BV13: 1.69 | BW13: 1 | BX13: 9.5 | BY13: 3 | BZ13: 28.5 | CA13: FALSE | CB13: 3 | CC13: 75 | CD13: 0.13 | CE13: 20 | CF13: 25 | CG13: 5 | CH13: TRUE | CI13: 1500 | CJ13: 5000 | CK13: 50 | CL13: 50 | CM13: 0 | CN13: 1024 | CO13: 0 | CP13: 195 | CQ13: 500 | CR13: 0.8393333333 | CS13: 70
E14: What is this analysis for? | F14: Prescriptive Path Compliance with Option 1 | AK14: =AK13+1 -> 12 | AL14: s1000 | AM14: 6 | AN14: 35.16854525 | AO14: In | AP14: 0 | AQ14: In | AR14: 0 | AS14: 26400 | AT14: 237600 | AU14: 0 | AV14: 10152 | AW14: 8800 | AX14: 990 | AY14: 990 | AZ14: 990 | BA14: 990 | BB14: 84 | BC14: 2 | BD14: 8800 | BE14: 376 | BF14: 0 | BG14: 0 | BH14: 27 | BI14: 1200 | BJ14: 4.5 | BK14: 4.5 | BL14: 1 | BM14: 1200 | BN14: 4 | BO14: 0 | BP14: 0 | BQ14: 1 | BR14: 0.65 | BS14: double loaded corridor | BT14: mf | BU14: 1.69 | BV14: 40.56 | BW14: 24 | BX14: 9 | BY14: 3 | BZ14: 27 | CA14: TRUE | CB14: 2 | CC14: 1332 | CD14: 0.15 | CE14: 88 | CF14: 100 | CG14: 6 | CH14: TRUE | CI14: 1100 | CJ14: 1500 | CK14: 50 | CL14: 50 | CM14: 0 | CN14: 6108 | CO14: 0 | CP14: 3960 | CQ14: 8800 | CR14: 0.3845454545 | CS14: 0
E15: Project Type | F15: New Construction | AK15: 13 | AL15: c1904 | AM15: 4 | AN15: 17.58427263 | AO15: In | AP15: 280 | AQ15: In | AR15: 70 | AS15: 1904 | AT15: 16184 | AU15: 0 | AV15: 1632 | AW15: 952 | AX15: 71.4 | AY15: 71.4 | AZ15: 71.4 | BA15: 71.4 | BB15: 40 | BC15: 1 | BD15: 952 | BE15: 96 | BF15: 1 | BG15: 2 | BH15: 17 | BI15: 100 | BJ15: 4.5 | BK15: 4.5 | BL15: 1 | BM15: 100 | BN15: 4 | BO15: 0 | BP15: 0 | BQ15: 1 | BR15: 0.65 | BS15: garden style | BT15: mf | BU15: 1.69 | BV15: 3.38 | BW15: 2 | BX15: 8.5 | BY15: 2 | BZ15: 17 | CA15: TRUE | CB15: 2 | CC15: 102.12 | CD15: 0.15 | CE15: 28 | CF15: 34 | CG15: 7 | CH15: FALSE | CI15: 952 | CJ15: 1500 | CK15: 50 | CL15: 50 | CM15: 952 | CN15: 1306.4 | CO15: 0 | CP15: 285.6 | CQ15: 0 | CR15: 0.8571428571 | CS15: 350
E16: Occupancy Type | F16: R2 Multifamily | J16: =IF(ISERROR(F289),"Error: Select option from drop down","") ->  | AK16: 14 | AL16: c2856 | AM16: 6 | AN16: 23.44569684 | AO16: In | AP16: 280 | AQ16: In | AR16: 70 | AS16: 2856 | AT16: 24276 | AU16: 0 | AV16: 2448 | AW16: 952 | AX16: 107.1 | AY16: 107.1 | AZ16: 107.1 | BA16: 107.1 | BB16: 60 | BC16: 1 | BD16: 952 | BE16: 96 | BF16: 1 | BG16: 2 | BH16: 25.5 | BI16: 150 | BJ16: 4.5 | BK16: 4.5 | BL16: 1 | BM16: 150 | BN16: 4 | BO16: 0 | BP16: 0 | BQ16: 1 | BR16: 0.65 | BS16: garden style | BT16: mf | BU16: 1.69 | BV16: 5.07 | BW16: 3 | BX16: 8.5 | BY16: 3 | BZ16: 25.5 | CA16: TRUE | CB16: 2 | CC16: 153.18 | CD16: 0.15 | CE16: 28 | CF16: 34 | CG16: 7 | CH16: FALSE | CI16: 952 | CJ16: 1500 | CK16: 50 | CL16: 50 | CM16: 952 | CN16: 1959.6 | CO16: 0 | CP16: 428.4 | CQ16: 0 | CR16: 0.8571428571 | CS16: 350
E17: Code Version | F17: WSEC 2018 | AK17: 15 | AL17: s1904 | AM17: 4 | AN17: 17.58427263 | AO17: In | AP17: 280 | AQ17: In | AR17: 70 | AS17: 1904 | AT17: 16184 | AU17: 0 | AV17: 1632 | AW17: 952 | AX17: 71.4 | AY17: 71.4 | AZ17: 71.4 | BA17: 71.4 | BB17: 40 | BC17: 2 | BD17: 952 | BE17: 96 | BF17: 0 | BG17: 0 | BH17: 17 | BI17: 100 | BJ17: 4.5 | BK17: 4.5 | BL17: 1 | BM17: 100 | BN17: 4 | BO17: 0 | BP17: 0 | BQ17: 1 | BR17: 0.65 | BS17: garden style | BT17: mf | BU17: 1.69 | BV17: 3.38 | BW17: 2 | BX17: 8.5 | BY17: 2 | BZ17: 17 | CA17: TRUE | CB17: 2 | CC17: 102.12 | CD17: 0.15 | CE17: 28 | CF17: 34 | CG17: 7 | CH17: FALSE | CI17: 952 | CJ17: 1500 | CK17: 50 | CL17: 50 | CM17: 0 | CN17: 1306.4 | CO17: 0 | CP17: 285.6 | CQ17: 952 | CR17: 0.8571428571 | CS17: 350
E18: Classification | F18: =IF(F59>0,F287,"") ->  | AK18: 16 | AL18: s2856 | AM18: 6 | AN18: 23.44569684 | AO18: In | AP18: 280 | AQ18: In | AR18: 70 | AS18: 2856 | AT18: 24276 | AU18: 0 | AV18: 2448 | AW18: 952 | AX18: 107.1 | AY18: 107.1 | AZ18: 107.1 | BA18: 107.1 | BB18: 60 | BC18: 2 | BD18: 952 | BE18: 96 | BF18: 0 | BG18: 0 | BH18: 25.5 | BI18: 150 | BJ18: 4.5 | BK18: 4.5 | BL18: 1 | BM18: 150 | BN18: 4 | BO18: 0 | BP18: 0 | BQ18: 1 | BR18: 0.65 | BS18: garden style | BT18: mf | BU18: 1.69 | BV18: 5.07 | BW18: 3 | BX18: 8.5 | BY18: 3 | BZ18: 25.5 | CA18: TRUE | CB18: 2 | CC18: 153.18 | CD18: 0.15 | CE18: 28 | CF18: 34 | CG18: 7 | CH18: FALSE | CI18: 952 | CJ18: 1500 | CK18: 50 | CL18: 50 | CM18: 0 | CN18: 1959.6 | CO18: 0 | CP18: 428.4 | CQ18: 952 | CR18: 0.8571428571 | CS18: 350
E19: Baseline Description: | F19: =CONCATENATE(F465," - ",VLOOKUP(Menu_UseOfCalculator,Table_UseOfCalculator,F252, TRUE)) -> Code Target - Baseline and proposed window areas are equal. | AK19: 17 | AL19: s952 | AM19: 6 | AN19: 35.16854525 | AO19: In | AP19: 280 | AQ19: In | AR19: 70 | AS19: 7616 | AT19: 64736 | AU19: 0 | AV19: 6528 | AW19: 3808 | AX19: 285.6 | AY19: 285.6 | AZ19: 285.6 | BA19: 285.6 | BB19: 160 | BC19: 2 | BD19: 3808 | BE19: 328 | BF19: 0 | BG19: 0 | BH19: 17 | BI19: 400 | BJ19: 4.5 | BK19: 4.5 | BL19: 1 | BM19: 400 | BN19: 4 | BO19: 0 | BP19: 0 | BQ19: 1 | BR19: 0.65 | BS19: garden style | BT19: sf | BU19: 1.69 | BV19: 13.52 | BW19: 8 | BX19: 8.5 | BY19: 2 | BZ19: 17 | CA19: TRUE | CB19: 2 | CC19: 408.48 | CD19: 0.15 | CE19: 28 | CF19: 136 | CG19: 7 | CH19: TRUE | CI19: 952 | CJ19: 1500 | CK19: 50 | CL19: 50 | CM19: 0 | CN19: 5225.6 | CO19: 0 | CP19: 1142.4 | CQ19: 3808 | CR19: 0.8571428571 | CS19: 350
E21: Component Performance, R occupancies | F21: Baseline | K21: Proposed Design
F22: U | G22: Area | H22: UA | K22: U | M22: Area | N22: UA | AK22: drop down autoload of prototypes
E23: Doors U = | F23: =HLOOKUP($F$465,Table_Uvalue_Options,S472,FALSE) -> 0.3 | G23: =L490 -> 0 | H23: =J452 -> 0 | K23: =IFERROR(N23/M23,"") ->  | M23: =M73 -> 0 | N23: =N73 -> 0 | O23: =IF(Menu_UseOfCalculator=$E$255,IF(OR(N23=0,H23=0),"Missing doors",""),"") -> Missing doors | AK23: exempt doors for prescriptive method
E24: Overhead Glazing U = | F24: 0.5 | G24: =L491 -> 0 | H24: 0 | M24: =M84 -> 0 | N24: =N84 -> 0
E25: Vertical Glazing U = | F25: 0.3 | G25: =IFERROR(L492,"Error") -> 0 | H25: 0 | M25: =M146 -> 0 | N25: =N146 -> 0 | O25: =IF(Menu_UseOfCalculator=$E$255,IF(OR(N25=0,H25=0),"Missing vertical glazing",""),"") -> Missing vertical glazing
E26: Flat/Vaulted Ceilings U = | F26: 0.026 | G26: =L493 -> 0 | H26: 0 | M26: =M157 -> 0 | N26: =N157 -> 0 | O26: =IF(Menu_UseOfCalculator=$E$255,IF(OR(N26=0,H26=0),"Missing ceiling/roof",""),"") -> Missing ceiling/roof | AK26: To do:
E27: Wall (above grade) U = | F27: 0.056 | G27: 0 | H27: 0 | M27: =M167 -> 0 | N27: =N167 -> 0 | O27: =IF(Menu_UseOfCalculator=$E$255,IF(OR(N27=0,H27=0),"Missing above-grade walls",""),"") -> Missing above-grade walls | AK27: Hide calc areas
E28: Floors over Crawlspace U = | F28: 0.029 | G28: 0 | H28: 0 | M28: =M177 -> 0 | N28: =N177 -> 0 | O28: =IF(Menu_UseOfCalculator=$E$255,IF(OR(SUM(H28:H31)=0,SUM(N28:N31)=0),"Missing floor or slab",""),"") -> Missing floor or slab | AK28: Check unlocked areas
E29: Slab on Grade F = | F29: 0.54 | G29: 0 | H29: 0 | M29: =M187 -> 0 | N29: =N187 -> 0 | AK29: Update instructions
E30: Below Grade Wall U = | F30: 0.042 | G30: 0 | H30: 0 | M30: =H197 -> 0 | N30: =I197 -> 0 | AK30: Option 1 percentage baseline - Message in message area
E31: Below Grade Slab F = | F31: 0.57 | G31: 0 | H31: 0 | M31: =M197 -> 0 | N31: =N197 -> 0 | AK31: Ctrl-Z doesn't work
AK32: WSU logo - formatting
G33: Target UA Total | H33: =IF(SUBTOTAL(109,O66:O197)=0,SUM(H23:H31),"Check Missing Inputs") -> 0 | M33: Proposed UA Total | N33: =IF(SUBTOTAL(109,O66:O197)=0,SUM(N23:N31),"Check Missing Inputs") -> 0 | AK33: Change password
G34: Target Credits | H34: =IFERROR(F290,"Select occupancy type") -> 4.5 | M34: Proposed Credits | N34: =P524 -> 0 | O34: =IF(Menu_CodeVersion="WSEC 2015","from Table 406.2","from Tables 406.2 and 406.3") -> from Tables 406.2 and 406.3 | AK34: Baylon Review: For 2018, Appendices were not updated
M35: UA Percent Reduction | N35: =IF(H33+N33=0,"",IFERROR((H33-N33)/H33,"Check Errors")) ->  | AK35: Baylon: Still need U and F for R20 perimeter +R20 underslab for below-grade slabs - Estimated as R20 perimeter + R10 underslab
M36: Difference | N36: =IFERROR(H33-N33,"") -> 0 | AK36: User registration
D37: =IF(Menu_UseOfCalculator=E255,"If the Proposed UA ≤ the Target UA, and the Proposed Credits from Table 406.2 are ≥ those required in Section R406.2, then the home meets the 2015 WSEC.","") -> If the Proposed UA ≤ the Target UA, and the Proposed Credits from Table 406.2 are ≥ those required in Section R406.2, then the home meets the 2015 WSEC.
AK38: Exception R502.1.1 requires calculation of UA of existing building
D39: =IF(Menu_CodeVersion="WSEC 2015",IF(Menu_UseOfCalculator=E255,"Table R406.2 Summary","Table R406.2 Option 1 Energy Credits in Baseline Comparison"),IF(Menu_UseOfCalculator=E255,"Table R406.3 Summary","Table R406.3 Option 1 Energy Credits in Baseline Comparison")) -> Table R406.3 Summary | AK39: Remodel changes use
C40: Cat No. | E40: Category | H40: Select Options | J40: Energy Credits | L40: Brief Description of Selected Options (See Table 406.2 for details)
C41: 1 | E41: Efficient Building Envelope | J41: =IFERROR(VLOOKUP(H41,Table_Option_1,2,TRUE),0) -> 0 | L41: =IFERROR(VLOOKUP(H41,Table_Option_1,3,TRUE)," ") ->  | AK41: Addition less than 500 sf not included in Target Credit calc
C42: 2 | E42: Air Leakage Control and Efficient Ventilation | J42: =IFERROR(VLOOKUP(H42,Table_Option_2,2,TRUE),0) -> 0 | L42: =IFERROR(VLOOKUP(H42,Table_Option_2,3,TRUE)," ") ->  | AK42: Unite forms into one
C43: 3 | E43: High Efficiency HVAC | J43: =IFERROR(VLOOKUP(H43,Table_Option_3,2,TRUE),0) -> 0 | L43: =IFERROR(VLOOKUP(H43,Table_Option_3,3,TRUE)," ") ->  | AK43: 1. Existing baseline --> Add toggle
C44: 4 | E44: High Efficiency HVAC Distribution System | J44: =IFERROR(VLOOKUP(H44,Table_Option_4,2,TRUE),0) -> 0 | L44: =IFERROR(VLOOKUP(H44,Table_Option_4,3,TRUE)," ") ->  | AK44: 2. Double counting energy credits
C45: =IF(Menu_CodeVersion="WSEC 2015","5a","5.1") -> 5.1 | E45: Efficient Water Heating | J45: =IFERROR(VLOOKUP(H45,Table_Option_5a,2,TRUE),0) -> 0 | L45: =IFERROR(VLOOKUP(H45,Table_Option_5a,3,TRUE)," ") ->  | AK45: 5. Most frequently used section on all drop downs
C46: =IF(Menu_CodeVersion="WSEC 2015","5 b&c","5.2-5.6") -> 5.2-5.6 | E46: Efficient Water Heating | J46: =IFERROR(VLOOKUP(H46,Table_Option_5bc,2,TRUE),0) -> 0 | L46: =IFERROR(VLOOKUP(H46,Table_Option_5bc,3,TRUE)," ") ->  | AK46: Existing building as baseline
C47: 5d | E47: Efficient Water Heating | J47: =IFERROR(VLOOKUP(H47,Table_Option_5d,2,TRUE),0) -> 0 | L47: =IFERROR(VLOOKUP(H47,Table_Option_5d,3,TRUE)," ") ->  | AK47: Move heating system sizing inputs over with toggle to open and close
C48: 6 | E48: Renewable Electric Energy | F48: 2000 | G48: kWh | J48: =FLOOR(MIN(IFERROR(VLOOKUP(H48,Table_Option_6,2,TRUE),0)*F48/1200,3),0.5) -> 0 | L48: =IFERROR(VLOOKUP(H48,Table_Option_6,3,TRUE)," ") ->  | AK48: Strip out blank rows in menus
C49: 7 | E49: Appliance Package | J49: =IFERROR(VLOOKUP(H49,Table_Option_7,2,TRUE),0) -> 0 | L49: =IFERROR(VLOOKUP(H49,Table_Option_7,3,TRUE)," ") ->  | AK49: warnings about missing data if prescriptive path
I50: Total Energy Credits | J50: =SUBTOTAL(109,J41:J49) -> 0 | AK50: warings about custom data
E51: *Please refer to Table R406.2 for complete option descriptions | AK51: Update front matter - copyright
D53: Table R406.2 Fuel Normalization Credits
C54: System No. | E54: Full Description | H54: Select System Type | L54: Fuel Normalization Credits | N54: Energy Credits | P54: Total Credits
C55: =VLOOKUP(H55,Table_FuelNormalization,3,FALSE) -> 1 | E55: =VLOOKUP(H55,Table_FuelNormalization,2,FALSE) -> Combustion heating equipment meeting minimum federal efficiency standards for the equipment listed in Table C403.3.2(4) or C403.3.2(5) | H55: Min Federal Efficiency System | L55: =IF(Menu_CodeVersion="WSEC 2015",0,VLOOKUP(H55,Table_FuelNormalization,H521,FALSE)) -> 0 | N55: =J50 -> 0 | P55: =IF(ISNUMBER(L55)=TRUE,L55+J50,N55) -> 0
AK57: R406.2, small dwelling unit -- Less than 300 sf of glazing area
D58: Thermal Envelope Details - Proposed Design | R58: Thermal Envelope Details - Baseline Design
E59: Conditioned Floor Area, Proposed Design | G59: sq. ft | H59: =IF(F59<>"","", "Missing Conditioned Floor Area") -> Missing Conditioned Floor Area | T59: Conditioned Floor Area, Baseline | V59: sq. ft
AK60: Tier 2/3
AK61: correct message about window area
D62: Exterior Doors | S62: Exterior Doors | AK62: baseline - code target - Not selected
D63: Plan | E63: Component | G63: Door | I63: Width | K63: Height | S63: Plan | T63: Component | V63: Door | X63: Width | Z63: Height | AK63: drop down on Project type
D64: ID | E64: Description | F64: Ref. | G64: U | H64: Qt. | I64: Feet | J64: Inch | K64: Feet | L64: Inch | M64: Area | N64: UA | S64: ID | T64: Description | U64: Ref. | V64: U | W64: Qt. | X64: Feet | Y64: Inch | Z64: Feet | AA64: Inch | AB64: Area | AC64: UA
D65: Exempt | F65: =IFERROR(VLOOKUP($E65,Table_Doors,2,FALSE),"") ->  | G65: =IFERROR(VLOOKUP($E65,Table_Doors,3,FALSE),"") ->  | M65: =H65*(I65+(J65/12))*(K65+(L65/12)) -> 0 | N65: =IFERROR(G65*M65,0) -> 0 | O65: =IF(M65>24,1,IF(AND(F65="Custom",G65=0),1,IF(AND(G65="",SUM(H65:L65)=0),0,IF(AND(G65<>"",M65>0),0,1)))) -> 0 | P65: =IF(M65>24,"Exempt Door>24 sf",IF(F65="Custom",IF(G65=0,"U-value missing in Custom Input","Refer to WSEC R402.1.5 U-factor Reference and Calculations"),"")) -> 
M66: =H66*(I66+(J66/12))*(K66+(L66/12)) -> 0 | N66: =IFERROR(G66*M66,0) -> 0 | O66: =IF(AND(E66="",M66=0),0,IF(AND(E66="",M66>0),1,IF(AND(E66<>"",N66=0),1,IF(AND(F66="Custom",G66=0),1,IF(AND(G66="",SUM(H66:L66)=0),0,IF(AND(G66<>"",M66>0),0,1)))))) -> 0 | P66: =IF(F66="Custom",IF(G66=0,"U-value missing in Custom Input","Refer to WSEC R402.1.5 U-factor Reference and Calculations"),"") ->  | U66: =IFERROR(VLOOKUP($T66,Table_Doors,2,FALSE),"") ->  | V66: =IFERROR(VLOOKUP($T66,Table_Doors,3,FALSE),"") ->  | AB66: =W66*(X66+(Y66/12))*(Z66+(AA66/12)) -> 0 | AC66: =IFERROR(V66*AB66,0) -> 0 | AD66: =IF(AND(T66="",AB66=0),0,IF(AND(T66="",AB66>0),1,IF(AND(T66<>"",AC66=0),1,IF(AND(U66="Custom",V66=0),1,IF(AND(V66="",SUM(W66:AA66)=0),0,IF(AND(V66<>"",AB66>0),0,1)))))) -> 0 | AE66: =IF(U66="Custom","Refer to WSEC R402.1.5 U-factor Reference and Calculations","") ->  | AK66: flag if U-value=0
M67: 0 | N67: =IFERROR(G67*M67,0) -> 0 | O67: =IF(AND(E67="",M67=0),0,IF(AND(E67="",M67>0),1,IF(AND(E67<>"",N67=0),1,IF(AND(F67="Custom",G67=0),1,IF(AND(G67="",SUM(H67:L67)=0),0,IF(AND(G67<>"",M67>0),0,1)))))) -> 0 | P67: =IF(F67="Custom",IF(G67=0,"U-value missing in Custom Input","Refer to WSEC R402.1.5 U-factor Reference and Calculations"),"") ->  | AB67: 0 | AC67: =IFERROR(V67*AB67,0) -> 0 | AD67: =IF(AND(T67="",AB67=0),0,IF(AND(T67="",AB67>0),1,IF(AND(T67<>"",AC67=0),1,IF(AND(U67="Custom",V67=0),1,IF(AND(V67="",SUM(W67:AA67)=0),0,IF(AND(V67<>"",AB67>0),0,1)))))) -> 0 | AE67: =IF(U67="Custom","Refer to WSEC R402.1.5 U-factor Reference and Calculations","") -> 
M68: 0 | N68: 0 | O68: 0 | AB68: 0 | AC68: 0 | AD68: 0 | AK68: Error checking
M69: 0 | N69: 0 | O69: 0 | AB69: 0 | AC69: 0 | AD69: 0 | AK69: Windows can't be below U0.14
M70: 0 | N70: 0 | O70: 0 | AB70: 0 | AC70: 0 | AD70: 0
M71: 0 | N71: 0 | O71: 0 | AB71: 0 | AC71: 0 | AD71: 0
M72: 0 | N72: 0 | O72: 0 | AB72: 0 | AC72: 0 | AD72: 0 | AK72: For 2018 version
L73: =IF(AND(M65>0,Switch_ShowExempt="Show"),"Sum of Area and UA (excluding exempt door)","Sum of Area and UA") -> Sum of Area and UA | M73: =IF(O73>0,"",SUM(M66:M72)) -> 0 | N73: =IF(O73>0,"Erorr",SUM(N66:N72)) -> 0 | O73: =SUBTOTAL(109,O65:O72) -> 0 | P73: =ROW(P72)-ROW(P65)+1-COUNTBLANK(P65:P72) -> 0 | W73: Sum of Area and UA | AB73: =IF(AD73>0,"",SUM(AB66:AB72)) -> 0 | AC73: =IF(AD73>0,"Erorr",SUM(AC66:AC72)) -> 0 | AD73: =SUM(AD66:AD72) -> 0 | AE73: =ROW(AE72)-ROW(AE66)+1-COUNTBLANK(AE66:AE72) -> 0 | AK73: Brief description of options in Table R406
AK74: Code target on most frequently selected
D76: Overhead Glazing: | S76: Overhead Glazing:
D77: Plan | E77: Component | F77: Ref. | G77: Glazing | H77: Qt. | I77: Width | K77: Height | M77: Area | N77: UA | S77: Plan | T77: Component | U77: Ref. | V77: Glazing | W77: Qt. | X77: Width | Z77: Height | AB77: Area | AC77: UA
D78: ID | E78: Description | G78: U | I78: Feet | J78: Inch | K78: Feet | L78: Inch | S78: ID | T78: Description | V78: U | X78: Feet | Y78: Inch | Z78: Feet | AA78: Inch
F79: =IFERROR(VLOOKUP($E79,Table_OverheadGlazing,2,FALSE),"") ->  | G79: =IFERROR(VLOOKUP($E79,Table_OverheadGlazing,3,FALSE),"") ->  | M79: =H79*(I79+(J79/12))*(K79+(L79/12)) -> 0 | N79: =IFERROR(G79*M79,"") ->  | O79: =IF(AND(E79="",M79=0),0,IF(AND(E79="",M79>0),1,IF(AND(E79<>"",N79=0),1,IF(AND(F79="Custom",G79=0),1,IF(AND(G79="",SUM(H79:L79)=0),0,IF(AND(G79<>"",M79>0),0,1)))))) -> 0 | P79: =IF(F79="Custom","Refer to WSEC R402.1.5 U-factor Reference and Calculations","") ->  | U79: =IFERROR(VLOOKUP($T79,Table_OverheadGlazing,2,FALSE),"") ->  | V79: =IFERROR(VLOOKUP($T79,Table_OverheadGlazing,3,FALSE),"") ->  | AB79: =W79*(X79+(Y79/12))*(Z79+(AA79/12)) -> 0 | AC79: =IFERROR(V79*AB79,"") ->  | AD79: =IF(AND(T79="",AB79=0),0,IF(AND(T79="",AB79>0),1,IF(AND(T79<>"",AC79=0),1,IF(AND(U79="Custom",V79=0),1,IF(AND(V79="",SUM(W79:AA79)=0),0,IF(AND(V79<>"",AB79>0),0,1)))))) -> 0 | AE79: =IF(U79="Custom","Refer to WSEC R402.1.5 U-factor Reference and Calculations","") -> 
F80: =IFERROR(VLOOKUP($E80,Table_OverheadGlazing,2,FALSE),"") ->  | G80: =IFERROR(VLOOKUP($E80,Table_OverheadGlazing,3,FALSE),"") ->  | M80: =H80*(I80+(J80/12))*(K80+(L80/12)) -> 0 | N80: =IFERROR(G80*M80,"") ->  | O80: 0 | P80: =IF(F80="Custom","Refer to WSEC R402.1.5 U-factor Reference and Calculations","") ->  | U80: =IFERROR(VLOOKUP($T80,Table_OverheadGlazing,2,FALSE),"") ->  | V80: =IFERROR(VLOOKUP($T80,Table_OverheadGlazing,3,FALSE),"") ->  | AB80: =W80*(X80+(Y80/12))*(Z80+(AA80/12)) -> 0 | AC80: =IFERROR(V80*AB80,"") ->  | AD80: 0 | AE80: =IF(U80="Custom","Refer to WSEC R402.1.5 U-factor Reference and Calculations","") -> 
F81: =IFERROR(VLOOKUP($E81,Table_OverheadGlazing,2,FALSE),"") ->  | G81: =IFERROR(VLOOKUP($E81,Table_OverheadGlazing,3,FALSE),"") ->  | M81: =H81*(I81+(J81/12))*(K81+(L81/12)) -> 0 | N81: =IFERROR(G81*M81,"") ->  | O81: 0 | P81: =IF(F81="Custom","Refer to WSEC R402.1.5 U-factor Reference and Calculations","") ->  | U81: =IFERROR(VLOOKUP($T81,Table_OverheadGlazing,2,FALSE),"") ->  | V81: =IFERROR(VLOOKUP($T81,Table_OverheadGlazing,3,FALSE),"") ->  | AB81: =W81*(X81+(Y81/12))*(Z81+(AA81/12)) -> 0 | AC81: =IFERROR(V81*AB81,"") ->  | AD81: 0 | AE81: =IF(U81="Custom","Refer to WSEC R402.1.5 U-factor Reference and Calculations","") -> 
F82: =IFERROR(VLOOKUP($E82,Table_OverheadGlazing,2,FALSE),"") ->  | G82: =IFERROR(VLOOKUP($E82,Table_OverheadGlazing,3,FALSE),"") ->  | M82: =H82*(I82+(J82/12))*(K82+(L82/12)) -> 0 | N82: =IFERROR(G82*M82,"") ->  | O82: 0 | P82: =IF(F82="Custom","Refer to WSEC R402.1.5 U-factor Reference and Calculations","") ->  | U82: =IFERROR(VLOOKUP($T82,Table_OverheadGlazing,2,FALSE),"") ->  | V82: =IFERROR(VLOOKUP($T82,Table_OverheadGlazing,3,FALSE),"") ->  | AB82: =W82*(X82+(Y82/12))*(Z82+(AA82/12)) -> 0 | AC82: =IFERROR(V82*AB82,"") ->  | AD82: 0 | AE82: =IF(U82="Custom","Refer to WSEC R402.1.5 U-factor Reference and Calculations","") -> 
F83: =IFERROR(VLOOKUP($E83,Table_OverheadGlazing,2,FALSE),"") ->  | G83: =IFERROR(VLOOKUP($E83,Table_OverheadGlazing,3,FALSE),"") ->  | M83: =H83*(I83+(J83/12))*(K83+(L83/12)) -> 0 | N83: =IFERROR(G83*M83,"") ->  | O83: 0 | P83: =IF(F83="Custom","Refer to WSEC R402.1.5 U-factor Reference and Calculations","") ->  | U83: =IFERROR(VLOOKUP($T83,Table_OverheadGlazing,2,FALSE),"") ->  | V83: =IFERROR(VLOOKUP($T83,Table_OverheadGlazing,3,FALSE),"") ->  | AB83: =W83*(X83+(Y83/12))*(Z83+(AA83/12)) -> 0 | AC83: =IFERROR(V83*AB83,"") ->  | AD83: 0 | AE83: =IF(U83="Custom","Refer to WSEC R402.1.5 U-factor Reference and Calculations","") -> 
H84: Sum of Area and UA | M84: =IF(O84>0,"",SUM(M79:M83)) -> 0 | N84: =IF(O84>0,"Error",SUM(N79:N83)) -> 0 | O84: =SUM(O79:O83) -> 0 | P84: =ROW(P83)-ROW(P79)+1-COUNTBLANK(P79:P83) -> 0 | W84: Sum of Area and UA | AB84: =IF(AD84>0,"",SUM(AB79:AB83)) -> 0 | AC84: =IF(AD84>0,"Error",SUM(AC79:AC83)) -> 0 | AD84: =SUM(AD77:AD83) -> 0 | AE84: =ROW(AE83)-ROW(AE79)+1-COUNTBLANK(AE79:AE83) -> 0
D87: Vertical Glazing Schedule | M87: Rows to Show | N87: 10 | S87: Vertical Glazing
D88: Plan | E88: Component | F88: Ref. | G88: Glazing | H88: Qt. | I88: Width | K88: Height | M88: Area | N88: UA | S88: Plan | T88: Component | U88: Ref. | V88: Glazing | W88: Qt. | X88: Width | Z88: Height | AB88: Area | AC88: UA
D89: ID | E89: Description | G89: U | I89: Feet | J89: Inch | K89: Feet | L89: Inch | S89: ID | T89: Description | V89: U | X89: Feet | Y89: Inch | Z89: Feet | AA89: Inch
D90: Exempt | F90: =IFERROR(VLOOKUP($E90,Table_VerticalGlazing,2,FALSE),"") ->  | G90: =IFERROR(VLOOKUP($E90,Table_VerticalGlazing,3,FALSE),0) -> 0 | M90: =H90*(I90+(J90/12))*(K90+(L90/12)) -> 0 | N90: =IFERROR(G90*M90,0) -> 0 | O90: =IF(AND(E90="",M90=0),0,IF(AND(E90="",M90>0),1,IF(AND(E90<>"",N90=0),1,IF(AND(F90="Custom",G90=0),1,IF(AND(G90="",SUM(H90:L90)=0),0,IF(AND(G90<>"",M90>0),0,1)))))) -> 0 | P90: =IF(M90>15,"Exempt Window>15 sf",IF(F90="Custom",IF(G90=0,"U-value missing in Custom Input","Refer to WSEC R402.1.5 U-factor Reference and Calculations"),"")) -> 
A91: \ | C91: 1 | G91: =IFERROR(VLOOKUP($E91,Table_VerticalGlazing,3,FALSE),0) -> 0 | M91: =H91*(I91+(J91/12))*(K91+(L91/12)) -> 0 | N91: =IFERROR(G91*M91,0) -> 0 | O91: =IF(AND(E91="",M91=0),0,IF(AND(E91="",M91>0),1,IF(AND(E91<>"",N91=0),1,IF(AND(F91="Custom",G91=0),1,IF(AND(G91="",SUM(H91:L91)=0),0,IF(AND(G91<>"",M91>0),0,1)))))) -> 0 | P91: =IF(F91="Custom",IF(G91=0,"U-value missing in Custom Input","Refer to WSEC R402.1.5 U-factor Reference and Calculations"),"") ->  | U91: =IFERROR(VLOOKUP($T91,Table_VerticalGlazing,2,FALSE),"") ->  | V91: =IFERROR(VLOOKUP(T91,Table_VerticalGlazing,3,FALSE),0) -> 0 | AB91: =W91*(X91+(Y91/12))*(Z91+(AA91/12)) -> 0 | AC91: =IFERROR(V91*AB91,0) -> 0 | AD91: =IF(AND(T91="",AB91=0),0,IF(AND(T91="",AB91>0),1,IF(AND(T91<>"",AC91=0),1,IF(AND(U91="Custom",V91=0),1,IF(AND(V91="",SUM(W91:AA91)=0),0,IF(AND(V91<>"",AB91>0),0,1)))))) -> 0 | AE91: =IF(U91="Custom","Refer to WSEC R402.1.5 U-factor Reference and Calculations","") -> 
C92: =C91+1 -> 2 | G92: =IFERROR(VLOOKUP($E92,Table_VerticalGlazing,3,FALSE),+"") ->  | M92: =H92*(I92+(J92/12))*(K92+(L92/12)) -> 0 | N92: =IFERROR(G92*M92,0) -> 0 | O92: =IF(AND(E92="",M92=0),0,IF(AND(E92="",M92>0),1,IF(AND(E92<>"",N92=0),1,IF(AND(F92="Custom",G92=0),1,IF(AND(G92="",SUM(H92:L92)=0),0,IF(AND(G92<>"",M92>0),0,1)))))) -> 0 | P92: =IF(F92="Custom",IF(G92=0,"U-value missing in Custom Input","Refer to WSEC R402.1.5 U-factor Reference and Calculations"),"") ->  | V92: 0 | AB92: 0 | AC92: =IFERROR(V92*AB92,0) -> 0 | AD92: =IF(AND(T92="",AB92=0),0,IF(AND(T92="",AB92>0),1,IF(AND(T92<>"",AC92=0),1,IF(AND(U92="Custom",V92=0),1,IF(AND(V92="",SUM(W92:AA92)=0),0,IF(AND(V92<>"",AB92>0),0,1)))))) -> 0 | AE92: =IF(U92="Custom","Refer to WSEC R402.1.5 U-factor Reference and Calculations","") -> 
C93: =C92+1 -> 3 | M93: =H93*(I93+(J93/12))*(K93+(L93/12)) -> 0 | N93: =IFERROR(G93*M93,0) -> 0 | O93: 0 | V93: 0 | AB93: 0 | AC93: 0 | AD93: 0
C94: 4 | M94: 0 | N94: 0 | O94: 0 | V94: 0 | AB94: 0 | AC94: 0 | AD94: 0
C95: 5 | M95: 0 | N95: 0 | O95: 0 | V95: 0 | AB95: 0 | AC95: 0 | AD95: 0
C96: 6 | M96: 0 | N96: 0 | O96: 0 | V96: 0 | AB96: 0 | AC96: 0 | AD96: 0
C97: 7 | M97: 0 | N97: 0 | O97: 0 | V97: 0 | AB97: 0 | AC97: 0 | AD97: 0
C98: 8 | M98: 0 | N98: 0 | O98: 0 | V98: 0 | AB98: 0 | AC98: 0 | AD98: 0
C99: 9 | M99: 0 | N99: 0 | O99: 0 | V99: 0 | AB99: 0 | AC99: 0 | AD99: 0
C100: 10 | M100: 0 | N100: 0 | O100: 0 | V100: 0 | AB100: 0 | AC100: 0 | AD100: 0
C101: 11 | M101: 0 | N101: 0 | O101: 0 | V101: 0 | AB101: 0 | AC101: 0 | AD101: 0
C102: 12 | M102: 0 | N102: 0 | O102: 0 | V102: 0 | AB102: 0 | AC102: 0 | AD102: 0
C103: 13 | M103: 0 | N103: 0 | O103: 0 | V103: 0 | AB103: 0 | AC103: 0 | AD103: 0
C104: 14 | M104: 0 | N104: 0 | O104: 0 | V104: 0 | AB104: 0 | AC104: 0 | AD104: 0
C105: 15 | M105: 0 | N105: 0 | O105: 0 | V105: 0 | AB105: 0 | AC105: 0 | AD105: 0
C106: 16 | M106: 0 | N106: 0 | O106: 0 | V106: 0 | AB106: 0 | AC106: 0 | AD106: 0
C107: 17 | M107: 0 | N107: 0 | O107: 0 | V107: 0 | AB107: 0 | AC107: 0 | AD107: 0
C108: 18 | M108: 0 | N108: 0 | O108: 0 | V108: 0 | AB108: 0 | AC108: 0 | AD108: 0
C109: 19 | M109: 0 | N109: 0 | O109: 0 | V109: 0 | AB109: 0 | AC109: 0 | AD109: 0
C110: 20 | M110: 0 | N110: 0 | O110: 0 | V110: 0 | AB110: 0 | AC110: 0 | AD110: 0
C111: 21 | M111: 0 | N111: 0 | O111: 0 | V111: 0 | AB111: 0 | AC111: 0 | AD111: 0
C112: 22 | M112: 0 | N112: 0 | O112: 0 | V112: 0 | AB112: 0 | AC112: 0 | AD112: 0
C113: 23 | M113: 0 | N113: 0 | O113: 0 | V113: 0 | AB113: 0 | AC113: 0 | AD113: 0
C114: 24 | M114: 0 | N114: 0 | O114: 0 | V114: 0 | AB114: 0 | AC114: 0 | AD114: 0
C115: 25 | M115: 0 | N115: 0 | O115: 0 | V115: 0 | AB115: 0 | AC115: 0 | AD115: 0
C116: 26 | M116: 0 | N116: 0 | O116: 0 | V116: 0 | AB116: 0 | AC116: 0 | AD116: 0
C117: 27 | M117: 0 | N117: 0 | O117: 0 | V117: 0 | AB117: 0 | AC117: 0 | AD117: 0
C118: 28 | M118: 0 | N118: 0 | O118: 0 | V118: 0 | AB118: 0 | AC118: 0 | AD118: 0
C119: 29 | M119: 0 | N119: 0 | O119: 0 | V119: 0 | AB119: 0 | AC119: 0 | AD119: 0
C120: 30 | M120: 0 | N120: 0 | O120: 0 | V120: 0 | AB120: 0 | AC120: 0 | AD120: 0
C121: 31 | M121: 0 | N121: 0 | O121: 0 | V121: 0 | AB121: 0 | AC121: 0 | AD121: 0
C122: 32 | M122: 0 | N122: 0 | O122: 0 | V122: 0 | AB122: 0 | AC122: 0 | AD122: 0
C123: 33 | M123: 0 | N123: 0 | O123: 0 | U123: =IFERROR(VLOOKUP($T123,Table_VerticalGlazing,2,FALSE),"") ->  | V123: =IFERROR(VLOOKUP(T123,Table_VerticalGlazing,3,FALSE),0) -> 0 | AB123: 0 | AC123: 0 | AD123: 0
C124: 34 | G124: =IFERROR(VLOOKUP($E124,Table_VerticalGlazing,3,FALSE),+"") ->  | M124: 0 | N124: 0 | O124: 0 | V124: 0 | AB124: 0 | AC124: 0 | AD124: 0
C125: 35 | M125: 0 | N125: 0 | O125: 0 | V125: 0 | AB125: 0 | AC125: 0 | AD125: 0
C126: 36 | M126: 0 | N126: 0 | O126: 0 | V126: 0 | AB126: 0 | AC126: 0 | AD126: 0
C127: 37 | M127: =H127*(I127+(J127/12))*(K127+(L127/12)) -> 0 | N127: =IFERROR(G127*M127,0) -> 0 | O127: 0 | V127: 0 | AB127: 0 | AC127: 0 | AD127: 0
C128: 38 | M128: 0 | N128: 0 | O128: 0 | V128: 0 | AB128: 0 | AC128: 0 | AD128: 0
C129: 39 | M129: 0 | N129: 0 | O129: 0 | V129: 0 | AB129: 0 | AC129: 0 | AD129: 0
C130: 40 | M130: 0 | N130: 0 | O130: 0 | V130: 0 | AB130: 0 | AC130: 0 | AD130: 0
C131: 41 | M131: 0 | N131: 0 | O131: 0 | V131: 0 | AB131: 0 | AC131: 0 | AD131: 0
C132: 42 | M132: 0 | N132: 0 | O132: 0 | V132: 0 | AB132: 0 | AC132: 0 | AD132: 0
C133: 43 | M133: 0 | N133: 0 | O133: 0 | V133: 0 | AB133: 0 | AC133: 0 | AD133: 0
C134: 44 | M134: 0 | N134: 0 | O134: 0 | V134: 0 | AB134: 0 | AC134: 0 | AD134: 0
C135: 45 | M135: 0 | N135: 0 | O135: 0 | V135: 0 | AB135: 0 | AC135: 0 | AD135: 0
C136: 46 | M136: 0 | N136: 0 | O136: 0 | V136: 0 | AB136: 0 | AC136: 0 | AD136: 0
C137: 47 | M137: 0 | N137: 0 | O137: 0 | V137: 0 | AB137: 0 | AC137: 0 | AD137: 0
C138: 48 | M138: 0 | N138: 0 | O138: 0 | V138: 0 | AB138: 0 | AC138: 0 | AD138: 0
C139: 49 | M139: 0 | N139: 0 | O139: 0 | V139: 0 | AB139: 0 | AC139: 0 | AD139: 0
C140: 50 | M140: 0 | N140: 0 | O140: 0 | V140: 0 | AB140: 0 | AC140: 0 | AD140: 0
C141: 51 | M141: 0 | N141: 0 | O141: 0 | V141: 0 | AB141: 0 | AC141: 0 | AD141: 0
C142: 52 | M142: 0 | N142: 0 | O142: 0 | V142: 0 | AB142: 0 | AC142: 0 | AD142: 0
C143: 53 | M143: 0 | N143: 0 | O143: 0 | V143: 0 | AB143: 0 | AC143: 0 | AD143: 0
C144: 54 | M144: 0 | N144: 0 | O144: 0 | V144: 0 | AB144: 0 | AC144: 0 | AD144: 0
C145: 55 | M145: 0 | N145: 0 | O145: 0 | V145: 0 | AB145: 0 | AC145: 0 | AD145: 0
L146: =IF(AND(M90>0,Switch_ShowExempt="Show"),"Sum of Area and UA (excluding exempt window)","Sum of Area and UA") -> Sum of Area and UA | M146: =IF(O146>0,"",SUBTOTAL(109,M91:M145)) -> 0 | N146: =IF(O146>0,"Error",SUBTOTAL(109,N91:N145)) -> 0 | O146: =SUBTOTAL(109,O90:O145) -> 0 | P146: =ROW(P145)-ROW(P90)+1-COUNTBLANK(P90:P145) -> 0 | AA146: Sum of Area and UA | AB146: =IF(AD146>0,"",SUBTOTAL(109,AB91:AB145)) -> 0 | AC146: =IF(AD146>0,"Error",SUBTOTAL(109,AC91:AC145)) -> 0 | AD146: =SUBTOTAL(109,AD91:AD145) -> 0 | AE146: =ROW(AE145)-ROW(AE91)+1-COUNTBLANK(AE91:AE145) -> 0
L147: Glazing Area Weighted U | N147: =IFERROR(N146/M146,"") ->  | AA147: Glazing Area Weighted U | AC147: =IFERROR(AC146/AB146,"") -> 
D150: Flat/Vaulted Ceilings | S150: Flat/Vaulted Ceilings
D151: Plan | E151: Component | F151: Ref. | G151: Attic | M151: Area | N151: UA | S151: Plan | T151: Component | U151: Ref. | V151: Attic | AB151: Area | AC151: UA
D152: ID | E152: Description | G152: U | S152: ID | T152: Description | V152: U
F153: =IFERROR(VLOOKUP($E153,Table_FlatVaultedCeilings,2,FALSE),"") ->  | G153: =IFERROR(VLOOKUP($E153,Table_FlatVaultedCeilings,3,FALSE),+"") ->  | N153: =IFERROR(G153*M153,"") ->  | O153: =IF(AND(E153="",G153="",M153=""),0,IF(AND(F153="Custom",G153=0),1,IF(AND(G153<>"",N153=0),1,IF(AND(G153="",M153>0),1,0)))) -> 0 | P153: =IF(F153="Custom",IF(G153=0,"U-value missing in Custom Input","Refer to WSEC R402.1.5 U-factor Reference and Calculations"),"") ->  | U153: =IFERROR(VLOOKUP(T153,Table_FlatVaultedCeilings,2,FALSE),"") ->  | V153: =IFERROR(VLOOKUP(T153,Table_FlatVaultedCeilings,3,FALSE),+"") ->  | AB153: =U59 -> 0 | AC153: =IFERROR(V153*AB153,"") ->  | AD153: =IF(AND(T153="",V153="",AB153=""),0,IF(AND(U153="Custom",V153=0),1,IF(AND(V153<>"",AC153=0),1,IF(AND(V153="",AB153>0),1,0)))) -> 0 | AE153: =IF(U153="Custom","Refer to WSEC R402.1.5 U-factor Reference and Calculations","") -> 
F154: =IFERROR(VLOOKUP($E154,Table_FlatVaultedCeilings,2,FALSE),"") ->  | G154: =IFERROR(VLOOKUP($E154,Table_FlatVaultedCeilings,3,FALSE),+"") ->  | N154: =IFERROR(G154*M154,"") ->  | O154: 0 | P154: =IF(F154="Custom",IF(G154=0,"U-value missing in Custom Input","Refer to WSEC R402.1.5 U-factor Reference and Calculations"),"") ->  | U154: =IFERROR(VLOOKUP(T154,Table_FlatVaultedCeilings,2,FALSE),"") ->  | V154: =IFERROR(VLOOKUP(T154,Table_FlatVaultedCeilings,3,FALSE),+"") ->  | AC154: =IFERROR(V154*AB154,"") ->  | AD154: 0 | AE154: =IF(U154="Custom","Refer to WSEC R402.1.5 U-factor Reference and Calculations","") -> 
F155: =IFERROR(VLOOKUP($E155,Table_FlatVaultedCeilings,2,FALSE),"") ->  | G155: =IFERROR(VLOOKUP($E155,Table_FlatVaultedCeilings,3,FALSE),+"") ->  | N155: =IFERROR(G155*M155,"") ->  | O155: 0 | P155: =IF(F155="Custom",IF(G155=0,"U-value missing in Custom Input","Refer to WSEC R402.1.5 U-factor Reference and Calculations"),"") ->  | U155: =IFERROR(VLOOKUP(T155,Table_FlatVaultedCeilings,2,FALSE),"") ->  | V155: =IFERROR(VLOOKUP(T155,Table_FlatVaultedCeilings,3,FALSE),+"") ->  | AC155: =IFERROR(V155*AB155,"") ->  | AD155: 0 | AE155: =IF(U155="Custom","Refer to WSEC R402.1.5 U-factor Reference and Calculations","") -> 
F156: =IFERROR(VLOOKUP($E156,Table_FlatVaultedCeilings,2,FALSE),"") ->  | G156: =IFERROR(VLOOKUP($E156,Table_FlatVaultedCeilings,3,FALSE),+"") ->  | N156: =IFERROR(G156*M156,"") ->  | O156: 0 | P156: =IF(F156="Custom",IF(G156=0,"U-value missing in Custom Input","Refer to WSEC R402.1.5 U-factor Reference and Calculations"),"") ->  | U156: =IFERROR(VLOOKUP(T156,Table_FlatVaultedCeilings,2,FALSE),"") ->  | V156: =IFERROR(VLOOKUP(T156,Table_FlatVaultedCeilings,3,FALSE),+"") ->  | AC156: =IFERROR(V156*AB156,"") ->  | AD156: 0 | AE156: =IF(U156="Custom","Refer to WSEC R402.1.5 U-factor Reference and Calculations","") -> 
H157: Sum of Area and UA | M157: =IF(O157>0,"",SUM(M153:M156)) -> 0 | N157: =IF(O157>0,"Error",SUM(N153:N156)) -> 0 | O157: =SUM(O153:O156) -> 0 | P157: =ROW(P156)-ROW(P153)+1-COUNTBLANK(P153:P156) -> 0 | W157: Sum of Area and UA | AB157: =IF(AD157>0,"",SUM(AB153:AB156)) -> 0 | AC157: =IF(AD157>0,"Error",SUM(AC153:AC156)) -> 0 | AD157: =SUM(AD153:AD156) -> 0 | AE157: =ROW(AE156)-ROW(AE153)+1-COUNTBLANK(AE153:AE156) -> 0
D160: Walls (Above Grade) | S160: Walls (Above Grade)
D161: Plan | E161: Component | G161: Wall | M161: Net Area | S161: Plan | T161: Component | V161: Wall | AB161: Net Area
D162: ID | E162: Description | F162: Ref. | G162: U | N162: UA | S162: ID | T162: Description | U162: Ref. | V162: U | AC162: UA
F163: =IFERROR(VLOOKUP($E163,Table_AboveGradeWalls,2,FALSE),"") ->  | G163: =IFERROR(VLOOKUP($E163,Table_AboveGradeWalls,3,FALSE),+"") ->  | N163: =IFERROR(G163*M163,"") ->  | O163: =IF(AND(E163="",G163="",M163=""),0,IF(AND(F163="Custom",G163=0),1,IF(AND(G163<>"",N163=0),1,IF(AND(G163="",M163>0),1,0)))) -> 0 | P163: =IF(F163="Custom","Refer to WSEC R402.1.5 U-factor Reference and Calculations","") ->  | U163: =IFERROR(VLOOKUP(T163,Table_AboveGradeWalls,2,FALSE),"") ->  | V163: =IFERROR(VLOOKUP(T163,Table_AboveGradeWalls,3,FALSE),+"") ->  | AC163: =IFERROR(V163*AB163,"") ->  | AD163: =IF(AND(T163="",V163="",AB163=""),0,IF(AND(U163="Custom",V163=0),1,IF(AND(V163<>"",AC163=0),1,IF(AND(V163="",AB163>0),1,0)))) -> 0 | AE163: =IF(U163="Custom","Refer to WSEC R402.1.5 U-factor Reference and Calculations","") -> 
F164: =IFERROR(VLOOKUP($E164,Table_AboveGradeWalls,2,FALSE),"") ->  | G164: =IFERROR(VLOOKUP($E164,Table_AboveGradeWalls,3,FALSE),+"") ->  | N164: =IFERROR(G164*M164,"") ->  | O164: 0 | P164: =IF(F164="Custom","Refer to WSEC R402.1.5 U-factor Reference and Calculations","") ->  | U164: =IFERROR(VLOOKUP(T164,Table_AboveGradeWalls,2,FALSE),"") ->  | V164: =IFERROR(VLOOKUP(T164,Table_AboveGradeWalls,3,FALSE),+"") ->  | AC164: =IFERROR(V164*AB164,"") ->  | AD164: 0 | AE164: =IF(U164="Custom","Refer to WSEC R402.1.5 U-factor Reference and Calculations","") -> 
F165: =IFERROR(VLOOKUP($E165,Table_AboveGradeWalls,2,FALSE),"") ->  | G165: =IFERROR(VLOOKUP($E165,Table_AboveGradeWalls,3,FALSE),+"") ->  | N165: =IFERROR(G165*M165,"") ->  | O165: 0 | P165: =IF(F165="Custom","Refer to WSEC R402.1.5 U-factor Reference and Calculations","") ->  | U165: =IFERROR(VLOOKUP(T165,Table_AboveGradeWalls,2,FALSE),"") ->  | V165: =IFERROR(VLOOKUP(T165,Table_AboveGradeWalls,3,FALSE),+"") ->  | AC165: =IFERROR(V165*AB165,"") ->  | AD165: 0 | AE165: =IF(U165="Custom","Refer to WSEC R402.1.5 U-factor Reference and Calculations","") -> 
F166: =IFERROR(VLOOKUP($E166,Table_AboveGradeWalls,2,FALSE),"") ->  | G166: =IFERROR(VLOOKUP($E166,Table_AboveGradeWalls,3,FALSE),+"") ->  | N166: =IFERROR(G166*M166,"") ->  | O166: 0 | P166: =IF(F166="Custom","Refer to WSEC R402.1.5 U-factor Reference and Calculations","") ->  | U166: =IFERROR(VLOOKUP(T166,Table_AboveGradeWalls,2,FALSE),"") ->  | V166: =IFERROR(VLOOKUP(T166,Table_AboveGradeWalls,3,FALSE),+"") ->  | AC166: =IFERROR(V166*AB166,"") ->  | AD166: 0 | AE166: =IF(U166="Custom","Refer to WSEC R402.1.5 U-factor Reference and Calculations","") -> 
H167: Sum of Area and UA | M167: =IF(O167>0,"",SUM(M163:M166)) -> 0 | N167: =IF(O167>0,"Error",SUM(N163:N166)) -> 0 | O167: =SUM(O163:O166) -> 0 | P167: =ROW(P166)-ROW(P163)+1-COUNTBLANK(P163:P166) -> 0 | W167: Sum of Area and UA | AB167: =IF(AD167>0,"",SUM(AB163:AB166)) -> 0 | AC167: =IF(AD167>0,"Error",SUM(AC163:AC166)) -> 0 | AD167: =SUM(AD163:AD166) -> 0 | AE167: =ROW(AE166)-ROW(AE163)+1-COUNTBLANK(AE163:AE166) -> 0
D170: Floor (over crawl or exterior) | S170: Floor (over crawl or exterior)
D171: Plan | E171: Component | G171: Floor | M171: Area | N171: UA | S171: Plan | T171: Component | V171: Floor | AB171: Area | AC171: UA
D172: ID | E172: Description | F172: Ref. | G172: U | S172: ID | T172: Description | U172: Ref. | V172: U
F173: =IFERROR(VLOOKUP($E173,Table_FloorOverCrawlspace,2,FALSE),"") ->  | G173: =IFERROR(VLOOKUP($E173,Table_FloorOverCrawlspace,3,FALSE),+"") ->  | N173: =IFERROR(G173*M173,"") ->  | O173: =IF(AND(E173="",G173="",M173=""),0,IF(AND(F173="Custom",G173=0),1,IF(AND(G173<>"",N173=0),1,IF(AND(G173="",M173>0),1,0)))) -> 0 | P173: =IF(F173="Custom",IF(G173=0,"U-value missing in Custom Input","Refer to WSEC R402.1.5 U-factor Reference and Calculations"),"") ->  | U173: =IFERROR(VLOOKUP(T173,Table_FloorOverCrawlspace,2,FALSE),"") ->  | V173: =IFERROR(VLOOKUP(T173,Table_FloorOverCrawlspace,3,FALSE),+"") ->  | AC173: =IFERROR(V173*AB173,"") ->  | AD173: =IF(AND(T173="",V173="",AB173=""),0,IF(AND(U173="Custom",V173=0),1,IF(AND(V173<>"",AC173=0),1,IF(AND(V173="",AB173>0),1,0)))) -> 0 | AE173: =IF(U173="Custom","Refer to WSEC R402.1.5 U-factor Reference and Calculations","") -> 
F174: =IFERROR(VLOOKUP($E174,Table_FloorOverCrawlspace,2,FALSE),"") ->  | G174: =IFERROR(VLOOKUP($E174,Table_FloorOverCrawlspace,3,FALSE),+"") ->  | N174: =IFERROR(G174*M174,"") ->  | O174: =IF(AND(E174="",G174="",M174=""),0,IF(AND(F174="Custom",G174=0),1,IF(AND(G174<>"",N174=0),1,IF(AND(G174="",M174>0),1,0)))) -> 0 | P174: =IF(F174="Custom",IF(G174=0,"U-value missing in Custom Input","Refer to WSEC R402.1.5 U-factor Reference and Calculations"),"") ->  | U174: =IFERROR(VLOOKUP(T174,Table_FloorOverCrawlspace,2,FALSE),"") ->  | V174: =IFERROR(VLOOKUP(T174,Table_FloorOverCrawlspace,3,FALSE),+"") ->  | AC174: =IFERROR(V174*AB174,"") ->  | AD174: 0 | AE174: =IF(U174="Custom","Refer to WSEC R402.1.5 U-factor Reference and Calculations","") -> 
F175: =IFERROR(VLOOKUP($E175,Table_FloorOverCrawlspace,2,FALSE),"") ->  | G175: =IFERROR(VLOOKUP($E175,Table_FloorOverCrawlspace,3,FALSE),+"") ->  | N175: =IFERROR(G175*M175,"") ->  | O175: 0 | P175: =IF(F175="Custom",IF(G175=0,"U-value missing in Custom Input","Refer to WSEC R402.1.5 U-factor Reference and Calculations"),"") ->  | U175: =IFERROR(VLOOKUP(T175,Table_FloorOverCrawlspace,2,FALSE),"") ->  | V175: =IFERROR(VLOOKUP(T175,Table_FloorOverCrawlspace,3,FALSE),+"") ->  | AC175: =IFERROR(V175*AB175,"") ->  | AD175: 0 | AE175: =IF(U175="Custom","Refer to WSEC R402.1.5 U-factor Reference and Calculations","") -> 
F176: =IFERROR(VLOOKUP($E176,Table_FloorOverCrawlspace,2,FALSE),"") ->  | G176: =IFERROR(VLOOKUP($E176,Table_FloorOverCrawlspace,3,FALSE),+"") ->  | N176: =IFERROR(G176*M176,"") ->  | O176: 0 | P176: =IF(F176="Custom",IF(G176=0,"U-value missing in Custom Input","Refer to WSEC R402.1.5 U-factor Reference and Calculations"),"") ->  | U176: =IFERROR(VLOOKUP(T176,Table_FloorOverCrawlspace,2,FALSE),"") ->  | V176: =IFERROR(VLOOKUP(T176,Table_FloorOverCrawlspace,3,FALSE),+"") ->  | AC176: =IFERROR(V176*AB176,"") ->  | AD176: 0 | AE176: =IF(U176="Custom","Refer to WSEC R402.1.5 U-factor Reference and Calculations","") -> 
H177: Sum of Area and UA | M177: =IF(O177>0,"",SUM(M173:M176)) -> 0 | N177: =IF(O177>0,"Error",SUM(N173:N176)) -> 0 | O177: =SUM(O173:O176) -> 0 | P177: =ROW(P176)-ROW(P173)+1-COUNTBLANK(P173:P176) -> 0 | W177: Sum of Area and UA | AB177: =IF(AD177>0,"",SUM(AB173:AB176)) -> 0 | AC177: =IF(AD177>0,"Error",SUM(AC173:AC176)) -> 0 | AD177: =SUM(AD173:AD176) -> 0 | AE177: =ROW(AE176)-ROW(AE173)+1-COUNTBLANK(AE173:AE176) -> 0
D180: Slab on Grade (less than 2 feet below grade) | S180: Slab on Grade (less than 2 feet below grade)
D181: Plan | E181: Component | G181: Slab | M181: Slab Perim | S181: Plan | T181: Component | V181: Slab | AB181: Slab Perim
D182: ID | E182: Description | F182: Ref. | G182: F | M182: Perimeter | N182: FP | S182: ID | T182: Description | U182: Ref. | V182: F | AB182: Perimeter | AC182: FP
F183: =IFERROR(VLOOKUP($E183,Table_SlabOnGrade,2,FALSE),"") ->  | G183: =IFERROR(VLOOKUP($E183,Table_SlabOnGrade,3,FALSE),+"") ->  | N183: =IFERROR(G183*M183,"") ->  | O183: =IF(AND(E183<>"",G183=""),1,IF(AND(F183="Custom",G183=0),1,IF(AND(G183="",SUM(H183:L183)=0),0,IF(AND(G183<>"",M183>0),0,1)))) -> 0 | P183: =IF(F183="Custom",IF(G183=0,"U-value missing in Custom Input","Refer to WSEC R402.1.5 U-factor Reference and Calculations"),"") ->  | U183: =IFERROR(VLOOKUP(T183,Table_SlabOnGrade,2,FALSE),"") ->  | V183: =IFERROR(VLOOKUP(T183,Table_SlabOnGrade,3,FALSE),+"") ->  | AC183: =IFERROR(V183*AB183,"") ->  | AD183: =IF(AND(T183<>"",V183=""),1,IF(AND(U183="Custom",V183=0),1,IF(AND(V183="",SUM(W183:AA183)=0),0,IF(AND(V183<>"",AB183>0),0,1)))) -> 0 | AE183: =IF(U183="Custom","Refer to WSEC R402.1.5 U-factor Reference and Calculations","") -> 
F184: =IFERROR(VLOOKUP($E184,Table_SlabOnGrade,2,FALSE),"") ->  | G184: =IFERROR(VLOOKUP($E184,Table_SlabOnGrade,3,FALSE),"") ->  | N184: =IFERROR(G184*M184,"") ->  | O184: =IF(AND(E184<>"",G184=""),1,IF(AND(F184="Custom",G184=0),1,IF(AND(G184="",SUM(H184:L184)=0),0,IF(AND(G184<>"",M184>0),0,1)))) -> 0 | P184: =IF(F184="Custom",IF(G184=0,"U-value missing in Custom Input","Refer to WSEC R402.1.5 U-factor Reference and Calculations"),"") ->  | U184: =IFERROR(VLOOKUP(T184,Table_SlabOnGrade,2,FALSE),"") ->  | V184: =IFERROR(VLOOKUP(T184,Table_SlabOnGrade,3,FALSE),+"") ->  | AC184: =IFERROR(V184*AB184,"") ->  | AD184: 0 | AE184: =IF(U184="Custom","Refer to WSEC R402.1.5 U-factor Reference and Calculations","") -> 
F185: =IFERROR(VLOOKUP($E185,Table_SlabOnGrade,2,FALSE),"") ->  | G185: =IFERROR(VLOOKUP($E185,Table_SlabOnGrade,3,FALSE),+"") ->  | N185: =IFERROR(G185*M185,"") ->  | O185: =IF(AND(E185<>"",G185=""),1,IF(AND(F185="Custom",G185=0),1,IF(AND(G185="",SUM(H185:L185)=0),0,IF(AND(G185<>"",M185>0),0,1)))) -> 0 | P185: =IF(F185="Custom",IF(G185=0,"U-value missing in Custom Input","Refer to WSEC R402.1.5 U-factor Reference and Calculations"),"") ->  | U185: =IFERROR(VLOOKUP(T185,Table_SlabOnGrade,2,FALSE),"") ->  | V185: =IFERROR(VLOOKUP(T185,Table_SlabOnGrade,3,FALSE),+"") ->  | AC185: =IFERROR(V185*AB185,"") ->  | AD185: 0 | AE185: =IF(U185="Custom","Refer to WSEC R402.1.5 U-factor Reference and Calculations","") -> 
F186: =IFERROR(VLOOKUP($E186,Table_SlabOnGrade,2,FALSE),"") ->  | G186: =IFERROR(VLOOKUP($E186,Table_SlabOnGrade,3,FALSE),+"") ->  | N186: =IFERROR(G186*M186,"") ->  | O186: 0 | P186: =IF(F186="Custom",IF(G186=0,"U-value missing in Custom Input","Refer to WSEC R402.1.5 U-factor Reference and Calculations"),"") ->  | U186: =IFERROR(VLOOKUP(T186,Table_SlabOnGrade,2,FALSE),"") ->  | V186: =IFERROR(VLOOKUP(T186,Table_SlabOnGrade,3,FALSE),+"") ->  | AC186: =IFERROR(V186*AB186,"") ->  | AD186: 0 | AE186: =IF(U186="Custom","Refer to WSEC R402.1.5 U-factor Reference and Calculations","") -> 
H187: Sum of Perimeter and FP | M187: =IF(O187>0,"",SUM(M183:M186)) -> 0 | N187: =IF(O187>0,"Error",SUM(N183:N186)) -> 0 | O187: =SUM(O183:O186) -> 0 | P187: =ROW(P186)-ROW(P183)+1-COUNTBLANK(P183:P186) -> 0 | W187: Sum of Perimeter and FP | AB187: =IF(AD187>0,"",SUM(AB183:AB186)) -> 0 | AC187: =IF(AD187>0,"Error",SUM(AC183:AC186)) -> 0 | AD187: =SUM(AD183:AD186) -> 0 | AE187: =ROW(AE186)-ROW(AE183)+1-COUNTBLANK(AE183:AE186) -> 0
D190: Below Grade Walls and Slabs | S190: Below Grade Walls and Slabs
D191: Plan | E191: Component | G191: Wall | H191: Wall | I191: Wall | K191: Slab | M191: Slab | N191: Slab | S191: Plan | T191: Component | V191: Wall | W191: Wall | X191: Wall | Z191: Slab | AB191: Slab | AC191: Slab
D192: ID | E192: Description | F192: Ref. | G192: U | H192: Area | I192: UA | K192: F | M192: Perimeter | N192: UA | S192: ID | T192: Description | U192: Ref. | V192: U | W192: Area | X192: UA | Z192: F | AB192: Perimeter | AC192: FP
F193: =IFERROR(VLOOKUP($E193,Table_BelowGradeWalls,2,FALSE),"") ->  | G193: =IFERROR(VLOOKUP($E193,Table_BelowGradeWalls,3,FALSE),+"") ->  | I193: =IFERROR(G193*H193,"") ->  | K193: =IFERROR(VLOOKUP($E193,Table_BelowGradeWalls,4,FALSE),+"") ->  | N193: =IFERROR(K193*M193,"") ->  | O193: =IF(AND(F193="Custom",G193=0),1,IF(AND(G193="",SUM(H193:L193)=0),0,IF(AND(G193<>"",M193>0),0,1))) -> 0 | P193: =IF(F193="Custom",IF(G193=0,"U-value missing in Custom Input","Refer to WSEC R402.1.5 U-factor Reference and Calculations"),"") ->  | U193: =IFERROR(VLOOKUP(T193,Table_BelowGradeWalls,2,FALSE),"") ->  | V193: =IFERROR(VLOOKUP(T193,Table_BelowGradeWalls,3,FALSE),+"") ->  | X193: =IFERROR(V193*W193,"") ->  | Z193: =IFERROR(VLOOKUP(T193,Table_BelowGradeWalls,4,FALSE),+"") ->  | AC193: =IFERROR(Z193*AB193,"") ->  | AD193: =IF(AND(U193="Custom",V193=0),1,IF(AND(V193="",SUM(W193:AA193)=0),0,IF(AND(V193<>"",AB193>0),0,1))) -> 0 | AE193: =IF(U193="Custom","Refer to WSEC R402.1.5 U-factor Reference and Calculations","") -> 
F194: =IFERROR(VLOOKUP($E194,Table_BelowGradeWalls,2,FALSE),"") ->  | G194: =IFERROR(VLOOKUP($E194,Table_BelowGradeWalls,3,FALSE),+"") ->  | I194: =IFERROR(G194*H194,"") ->  | K194: =IFERROR(VLOOKUP($E194,Table_BelowGradeWalls,4,FALSE),+"") ->  | N194: =IFERROR(K194*M194,"") ->  | O194: =IF(AND(F194="Custom",G194=0),1,IF(AND(G194="",SUM(H194:L194)=0),0,IF(AND(G194<>"",M194>0),0,1))) -> 0 | P194: =IF(F194="Custom",IF(G194=0,"U-value missing in Custom Input","Refer to WSEC R402.1.5 U-factor Reference and Calculations"),"") ->  | U194: =IFERROR(VLOOKUP(T194,Table_BelowGradeWalls,2,FALSE),"") ->  | V194: =IFERROR(VLOOKUP(T194,Table_BelowGradeWalls,3,FALSE),+"") ->  | X194: =IFERROR(V194*W194,"") ->  | Z194: =IFERROR(VLOOKUP(T194,Table_BelowGradeWalls,4,FALSE),+"") ->  | AC194: =IFERROR(Z194*AB194,"") ->  | AD194: 0 | AE194: =IF(U194="Custom","Refer to WSEC R402.1.5 U-factor Reference and Calculations","") -> 
F195: =IFERROR(VLOOKUP($E195,Table_BelowGradeWalls,2,FALSE),"") ->  | G195: =IFERROR(VLOOKUP($E195,Table_BelowGradeWalls,3,FALSE),+"") ->  | I195: =IFERROR(G195*H195,"") ->  | K195: =IFERROR(VLOOKUP($E195,Table_BelowGradeWalls,4,FALSE),+"") ->  | N195: =IFERROR(K195*M195,"") ->  | O195: =IF(AND(F195="Custom",G195=0),1,IF(AND(G195="",SUM(H195:L195)=0),0,IF(AND(G195<>"",M195>0),0,1))) -> 0 | P195: =IF(F195="Custom",IF(G195=0,"U-value missing in Custom Input","Refer to WSEC R402.1.5 U-factor Reference and Calculations"),"") ->  | U195: =IFERROR(VLOOKUP(T195,Table_BelowGradeWalls,2,FALSE),"") ->  | V195: =IFERROR(VLOOKUP(T195,Table_BelowGradeWalls,3,FALSE),+"") ->  | X195: =IFERROR(V195*W195,"") ->  | Z195: =IFERROR(VLOOKUP(T195,Table_BelowGradeWalls,4,FALSE),+"") ->  | AC195: =IFERROR(Z195*AB195,"") ->  | AD195: 0 | AE195: =IF(U195="Custom","Refer to WSEC R402.1.5 U-factor Reference and Calculations","") -> 
F196: =IFERROR(VLOOKUP($E196,Table_BelowGradeWalls,2,FALSE),"") ->  | G196: =IFERROR(VLOOKUP($E196,Table_BelowGradeWalls,3,FALSE),+"") ->  | I196: =IFERROR(G196*H196,"") ->  | K196: =IFERROR(VLOOKUP($E196,Table_BelowGradeWalls,4,FALSE),+"") ->  | N196: =IFERROR(K196*M196,"") ->  | O196: =IF(AND(F196="Custom",G196=0),1,IF(AND(G196="",SUM(H196:L196)=0),0,IF(AND(G196<>"",M196>0),0,1))) -> 0 | P196: =IF(F196="Custom",IF(G196=0,"U-value missing in Custom Input","Refer to WSEC R402.1.5 U-factor Reference and Calculations"),"") ->  | U196: =IFERROR(VLOOKUP(T196,Table_BelowGradeWalls,2,FALSE),"") ->  | V196: =IFERROR(VLOOKUP(T196,Table_BelowGradeWalls,3,FALSE),+"") ->  | X196: =IFERROR(V196*W196,"") ->  | Z196: =IFERROR(VLOOKUP(T196,Table_BelowGradeWalls,4,FALSE),+"") ->  | AC196: =IFERROR(Z196*AB196,"") ->  | AD196: 0 | AE196: =IF(U196="Custom","Refer to WSEC R402.1.5 U-factor Reference and Calculations","") -> 
G197: Sum of Area, Length and UA | H197: =IF(O197>0,"",SUM(H193:H196)) -> 0 | I197: =IF(O197>0,"Error",SUM(I193:J196)) -> 0 | M197: =IF($O197>0,"",SUM(M193:M196)) -> 0 | N197: =IF($O197>0,"Error",SUM(N193:N196)) -> 0 | O197: =SUM(O193:O196) -> 0 | P197: =ROW(P196)-ROW(P193)+1-COUNTBLANK(P193:P196) -> 0 | V197: Sum of Area, Length and UA | W197: =IF(AD197>0,"",SUM(W193:W196)) -> 0 | X197: =IF(AD197>0,"Error",SUM(X193:Y196)) -> 0 | AB197: =IF($O197>0,"",SUM(AB193:AB196)) -> 0 | AC197: =IF($O197>0,"Error",SUM(AC193:AC196)) -> 0 | AD197: =SUM(AD193:AD196) -> 0 | AE197: =ROW(AE196)-ROW(AE193)+1-COUNTBLANK(AE193:AE196) -> 0
D200: Heating System Sizing Worksheet - Proposed Design | H200: Try Out NEEA's SpecPro: | I200: https://betterbuiltnw.com/resources/hvac-sizing-tool | S200: Heating System Sizing Worksheet - Existing Baseline
E201: Nearest Weather Station | T201: Nearest Weather Station | U201: =IF(F201="","",F201) -> 
E202: Indoor Design Temperature | F202: 70 | G202: F | T202: Indoor Design Temperature | U202: 70 | V202: F
E203: Outdoor Design Temperature | F203: =IFERROR(VLOOKUP(F201,Table_Weather,2,FALSE),"") ->  | G203: F | T203: Outdoor Design Temperature | U203: =IFERROR(VLOOKUP(F201,Table_Weather,2,FALSE),"") ->  | V203: F
E204: Design Temperature Difference (∆T) | F204: =IFERROR(F202-F203,"") ->  | G204: F | T204: Design Temperature Difference (∆T) | U204: =IFERROR(U202-U203,"") ->  | V204: F
E206: Conditioned Floor Area | F206: =F59 -> 0 | G206: ft2 | T206: Conditioned Floor Area | U206: =U59 -> 0 | V206: ft2
E207: Conditioned Volume | G207: ft3 | H207: =IF(OR(F207=0,F207=""),"If blank, volume is calculated assuming ceiling height of 8.5 ft","") -> If blank, volume is calculated assuming ceiling height of 8.5 ft | T207: Conditioned Volume | V207: ft3 | W207: =IF(OR(U207=0,U207=""),H207,"") -> If blank, volume is calculated assuming ceiling height of 8.5 ft
E209: System Type | T209: System Type
E210: Location of Ducts | T210: Location of Ducts
E212: =IF(Menu_UseOfCalculator=E255,"Sum of UA, including exempt door and window","Sum of UA") -> Sum of UA, including exempt door and window | F212: =F508 -> 0 | T212: Sum of UA | U212: =H33 -> 0
E214: Envelope Heat Load | F214: =IFERROR(F212*F204,"") ->  | G214: Btu / Hour | T214: Envelope Heat Load | U214: =IFERROR(U212*U204,"") ->  | V214: Btu / Hour
E215: Sum of UA X ∆T | T215: Sum of UA X ∆T
E216: Air Leakage Heat Load | F216: =IFERROR(IF(OR(F207=0,F207=""),(((F501*0.6)*F204)*0.018),(((F207*0.6)*F204)*0.018)),"") ->  | G216: Btu / Hour | T216: Air Leakage Heat Load | U216: =IFERROR(IF(OR(U212=0,U212=""),"",IF(OR(U207=0,U207=""),(((F502*0.6)*U204)*0.018),(((U207*0.6)*U204)*0.018))),"") ->  | V216: Btu / Hour
E217: ((Volume X 0.6) X ∆T) X .018)) | T217: ((Volume X 0.6) X ∆T) X .018))
E218: Building Design Heat Load | F218: =IFERROR(F214+F216,"") ->  | G218: Btu / Hour | T218: Building Design Heat Load | U218: =IFERROR(U214+U216,"") ->  | V218: Btu / Hour
E219: Air Leakage + Envelope Heat Loss | T219: Air Leakage + Envelope Heat Loss
E220: Building and Duct Heat Load | F220: =IFERROR(F218*F515,"") ->  | G220: Btu / Hour | T220: Building and Duct Heat Load | U220: =IFERROR(U218*F516,"") ->  | V220: Btu / Hour
E221: For ducts located in unconditioned space: Sum of Building Heat Loss X 1.1 | T221: For ducts located in unconditioned space: Sum of Building Heat Loss X 1.1
E222: For ducts located in conditioned space or ductless: Sum of Building Heat Loss X 1 | T222: For ducts located in conditioned space or ductless: Sum of Building Heat Loss X 1
E223: Maximum Heat Equipment Output | F223: =IFERROR(F220*I514,"Error") -> Error | G223: Btu / Hour | T223: Maximum Heat Equipment Output | U223: =IFERROR(U220*I515,"Error") -> Error | V223: Btu / Hour
... 231 more rows

Sheet User Notes

Sheet Vertical Glazing (hidden)
A1: Index | B1: Component Description | C1: Reference | D1: Glazing U
A3: 1
A4: =A3+1 -> 2 | B4: === Most Frequently Used =========
A5: 3 | B5: 1gl Wood/Vinyl Clear | C5: 10-6A | D5: 1.2
A6: 4 | B6: 2gl Wood/vinyl, Low-e2 ½" | C6: 10-6B | D6: 0.4
A7: 5 | B7: 3gl Wood/vinyl, Low-e2 ½" + argon (Code Target) | C7: 10-6B | D7: 0.3
A8: 6 | B8: 3gl Wood/vinyl, Low-e1 ½" + argon | C8: 10-6B | D8: 0.29
A9: 7 | B9: Code Target: U=0.30 | C9: Table 406.2 | D9: 0.3
A10: 8 | B10: Option 1a: U=0.28 | C10: Table 406.2 | D10: 0.28
A11: 9 | B11: Option 1b: U=0.25 | C11: Table 406.2 | D11: 0.25
A12: 10 | B12: Option 1c: U=0.22 | C12: Table 406.2 | D12: 0.22
A13: 11 | B13: Option 1d: U=0.24 | C13: Table 406.2 | D13: 0.24
A14: 12 | B14: Default Metal, Single Pane | C14: Table R303.1.3(1) | D14: 1.2
A15: 13 | B15: Default Metal, Double Pane | C15: Table R303.1.3(1) | D15: 0.8
A16: 14 | B16: Default Metal w/TB, Single Pane | C16: Table R303.1.3(1) | D16: 2.2
A17: 15 | B17: Default Metal w/TB, Double Pane | C17: Table R303.1.3(1) | D17: 0.65
A18: 16 | B18: Default Nonmetal or Metal Clad, Single Pane | C18: Table R303.1.3(1) | D18: 0.95
A19: 17 | B19: Default Nonmetal or Metal Clad, Double Pane | C19: Table R303.1.3(1) | D19: 0.55
A20: 18 | B20: Default Glazed Block | C20: Table R303.1.3(1) | D20: 0.6
A21: 19 | B21: =============================
A22: 20 | B22: 1gl Wood/Vinyl Clear | C22: 10-6A | D22: 1.2
A23: 21 | B23: 2gl Wood/Vinyl Clear <1/2" spacer | C23: 10-6A | D23: 0.63
A24: 22 | B24: 2gl Wood/Vinyl Clear+Argon <1/2"spacer | C24: 10-6A | D24: 0.6
A25: 23 | B25: 2gl Wood/Vinyl LowE <1/2"spacer | C25: 10-6A | D25: 0.58
A26: 24 | B26: 2gl Wood/Vinyl LowE+Argon <1/2"spacer | C26: 10-6A | D26: 0.53
A27: 25 | B27: 2gl Wood/Vinyl Clear ≥1/2"spacer | C27: 10-6A | D27: 0.58
A28: =A27+1 -> 26 | B28: 2gl Wood/Vinyl Clear+Argon ≥1/2"spacer | C28: 10-6A | D28: 0.55
A29: 27 | B29: 2gl Wood/Vinyl LowE ≥1/2"spacer | C29: 10-6A | D29: 0.51
A30: 28 | B30: 2gl Wood/Vinyl LowE+Argon ≥1/2"spacer | C30: 10-6A | D30: 0.48
A31: 29 | B31: 3gl Wood/Vinyl Clear | C31: 10-6A | D31: 0.43
A32: 30 | B32: 3gl Wood/Vinyl Clear+Argon | C32: 10-6A | D32: 0.41
A33: 31 | B33: 3gl Wood/Vinyl LowE | C33: 10-6A | D33: 0.4
A34: 32 | B34: 3gl Wood/Vinyl LowE+Argon | C34: 10-6A | D34: 0.37
A35: 33 | B35: 1gl Garden Wood/Vinyl Clear | C35: 10-6A | D35: 2.31
A36: 34 | B36: 2gl Garden Wood/Vinyl Clear | C36: 10-6A | D36: 1.61
A37: 35 | B37: 2gl Garden Wood/Vinyl Clear+Argon | C37: 10-6A | D37: 1.56
A38: 36 | B38: 2gl Garden Wood/Vinyl LowE+Argon | C38: 10-6A | D38: 1.54
A39: 37 | B39: 2gl Garden Wood/Vinyl LowE+Argon | C39: 10-6A | D39: 1.47
A40: 38 | B40: 1gl Alum with TB Clear | C40: 10-6A | D40: 1.2
A41: 39 | B41: 2gl Alum with TB Clear <1/2" spacer | C41: 10-6A | D41: 0.75
A42: 40 | B42: 2gl Alum with TB Clear+Argon <1/2"spacer | C42: 10-6A | D42: 0.71
A43: 41 | B43: 2gl Alum with TB LowE <1/2"spacer | C43: 10-6A | D43: 0.69
A44: 42 | B44: 2gl Alum with TB LowE+Argon <1/2"spacer | C44: 10-6A | D44: 0.62
A45: 43 | B45: 2gl Alum with TB Clear ≥1/2"spacer | C45: 10-6A | D45: 0.69
A46: 44 | B46: 2gl Alum with TB Clear+Argon ≥1/2"spacer | C46: 10-6A | D46: 0.67
A47: 45 | B47: 2gl Alum with TB LowE ≥1/2"spacer | C47: 10-6A | D47: 0.61
A48: 46 | B48: 2gl Alum with TB LowE+Argon ≥1/2"spacer | C48: 10-6A | D48: 0.58
A49: 47 | B49: 3gl Alum with TB Clear | C49: 10-6A | D49: 0.53
A50: 48 | B50: 3gl Alum with TB Clear+Argon | C50: 10-6A | D50: 0.52
A51: 49 | B51: 3gl Alum with TB LowE | C51: 10-6A | D51: 0.49
A52: 50 | B52: 3gl Alum with TB LowE+Argon | C52: 10-6A | D52: 0.47
A53: 51 | B53: 1gl Aluminum Clear | C53: 10-6A | D53: 1.2
A54: 52 | B54: 2gl Aluminum Clear <1/2" spacer | C54: 10-6A | D54: 0.92
A55: 53 | B55: 2gl Aluminum Clear+Argon <1/2"spacer | C55: 10-6A | D55: 0.87
A56: 54 | B56: 2gl Aluminum LowE <1/2"spacer | C56: 10-6A | D56: 0.85
A57: 55 | B57: 2gl Aluminum LowE+Argon <1/2"spacer | C57: 10-6A | D57: 0.79
A58: 56 | B58: 2gl Aluminum Clear ≥1/2"spacer | C58: 10-6A | D58: 0.86
A59: 57 | B59: 2gl Aluminum Clear+Argon ≥1/2"spacer | C59: 10-6A | D59: 0.83
A60: 58 | B60: 2gl Aluminum LowE ≥1/2"spacer | C60: 10-6A | D60: 0.78
A61: 59 | B61: 2gl Aluminum LowE+Argon ≥1/2"spacer | C61: 10-6A | D61: 0.75
A62: 60 | B62: 3gl Aluminum Clear | C62: 10-6A | D62: 0.7
A63: 61 | B63: 3gl Aluminum Clear+Argon | C63: 10-6A | D63: 0.69
A64: 62 | B64: 3gl Aluminum LowE | C64: 10-6A | D64: 0.67
A65: 63 | B65: 3gl Aluminum LowE+Argon | C65: 10-6A | D65: 0.63
A66: 64 | B66: 1gl Garden Aluminum Clear | C66: 10-6A | D66: 2.6
A67: 65 | B67: 2gl Garden Aluminum Clear | C67: 10-6A | D67: 1.81
A68: 66 | B68: 2gl Garden Aluminum Clear+Argon | C68: 10-6A | D68: 1.76
A69: 67 | B69: 2gl Garden Aluminum LowE+Argon | C69: 10-6A | D69: 1.73
A70: 68 | B70: 2gl Garden Aluminum LowE+Argon | C70: 10-6A | D70: 1.64
A71: 69 | B71: Glass Block | C71: 10-6A | D71: 0.51
A72: 70 | B72: 2gl Alum clad wood, Clear ¼" | C72: 10-6B | D72: 0.59
A73: 71 | B73: 2gl Alum clad wood, Clear ¼" + argon | C73: 10-6B | D73: 0.56
A74: 72 | B74: 2gl Alum clad wood, Low-e4 ¼" | C74: 10-6B | D74: 0.54
A75: 73 | B75: 2gl Alum clad wood, Low-e2 ¼" | C75: 10-6B | D75: 0.51
A76: 74 | B76: 2gl Alum clad wood, Low-e1 ¼" | C76: 10-6B | D76: 0.49
A77: 75 | B77: 2gl Alum clad wood, Low-e4 ¼" + argon | C77: 10-6B | D77: 0.49
A78: 76 | B78: 2gl Alum clad wood, Low-e2 ¼" + argon | C78: 10-6B | D78: 0.46
A79: 77 | B79: 2gl Alum clad wood, Low-e1 ¼" + argon | C79: 10-6B | D79: 0.43
A80: 78 | B80: 2gl Alum clad wood, Clear 3/8" | C80: 10-6B | D80: 0.57
A81: 79 | B81: 2gl Alum clad wood, Clear 3/8" + argon | C81: 10-6B | D81: 0.54
A82: 80 | B82: 2gl Alum clad wood, Low-e4 3/8" | C82: 10-6B | D82: 0.51
A83: 81 | B83: 2gl Alum clad wood, Low-e2 3/8" | C83: 10-6B | D83: 0.48
A84: 82 | B84: 2gl Alum clad wood, Low-e1 3/8" | C84: 10-6B | D84: 0.46
A85: 83 | B85: 2gl Alum clad wood, Low-e4 3/8" + argon | C85: 10-6B | D85: 0.47
A86: 84 | B86: 2gl Alum clad wood, Low-e2 3/8" + argon | C86: 10-6B | D86: 0.44
A87: =A86+1 -> 85 | B87: 2gl Alum clad wood, Low-e1 3/8" + argon | C87: 10-6B | D87: 0.41
A88: 86 | B88: 2gl Alum clad wood, Clear ½" | C88: 10-6B | D88: 0.54
A89: 87 | B89: 2gl Alum clad wood, Clear ½" + argon | C89: 10-6B | D89: 0.51
A90: 88 | B90: 2gl Alum clad wood, Low-e4 ½" | C90: 10-6B | D90: 0.47
A91: 89 | B91: 2gl Alum clad wood, Low-e2 ½" | C91: 10-6B | D91: 0.44
A92: 90 | B92: 2gl Alum clad wood, Low-e1 ½" | C92: 10-6B | D92: 0.42
A93: 91 | B93: 2gl Alum clad wood, Low-e4 ½" + argon | C93: 10-6B | D93: 0.44
A94: 92 | B94: 2gl Alum clad wood, Low-e2 ½" + argon | C94: 10-6B | D94: 0.4
A95: 93 | B95: 2gl Alum clad wood, Low-e1 ½" + argon | C95: 10-6B | D95: 0.38
A96: 94 | B96: 3gl Alum clad wood, Clear ¼" | C96: 10-6B | D96: 0.44
A97: 95 | B97: 3gl Alum clad wood, Clear ¼" + argon | C97: 10-6B | D97: 0.42
A98: 96 | B98: 3gl Alum clad wood, Low-e4 ¼" | C98: 10-6B | D98: 0.4
A99: 97 | B99: 3gl Alum clad wood, Low-e2 ¼" | C99: 10-6B | D99: 0.41
A100: 98 | B100: 3gl Alum clad wood, Low-e1 ¼" | C100: 10-6B | D100: 0.4
A101: 99 | B101: 3gl Alum clad wood, Low-e4 ¼" + argon | C101: 10-6B | D101: 0.39
A102: 100 | B102: 3gl Alum clad wood, Low-e2 ¼" + argon | C102: 10-6B | D102: 0.37
A103: 101 | B103: 3gl Alum clad wood, Low-e1 ¼" + argon | C103: 10-6B | D103: 0.36
A104: 102 | B104: 3gl Alum clad wood, Clear ½" | C104: 10-6B | D104: 0.4
A105: 103 | B105: 3gl Alum clad wood, Clear ½" + argon | C105: 10-6B | D105: 0.38
A106: 104 | B106: 3gl Alum clad wood, Low-e4 ½" | C106: 10-6B | D106: 0.37
A107: 105 | B107: 3gl Alum clad wood, Low-e2 ½" | C107: 10-6B | D107: 0.35
A108: 106 | B108: 3gl Alum clad wood, Low-e1 ½" | C108: 10-6B | D108: 0.33
A109: 107 | B109: 3gl Alum clad wood, Low-e4 ½" + argon | C109: 10-6B | D109: 0.35
A110: 108 | B110: 3gl Alum clad wood, Low-e2 ½" + argon | C110: 10-6B | D110: 0.32
A111: 109 | B111: 3gl Alum clad wood, Low-e1 ½" + argon | C111: 10-6B | D111: 0.31
A112: 110 | B112: 2gl Wood/vinyl, Clear ¼" | C112: 10-6B | D112: 0.56
A113: 111 | B113: 2gl Wood/vinyl, Clear ¼" + argon | C113: 10-6B | D113: 0.53
A114: 112 | B114: 2gl Wood/vinyl, Low-e4 ¼" | C114: 10-6B | D114: 0.52
A115: 113 | B115: 2gl Wood/vinyl, Low-e2 ¼" | C115: 10-6B | D115: 0.49
A116: 114 | B116: 2gl Wood/vinyl, Low-e1 ¼" | C116: 10-6B | D116: 0.47
A117: 115 | B117: 2gl Wood/vinyl, Low-e4 ¼" + argon | C117: 10-6B | D117: 0.47
A118: 116 | B118: 2gl Wood/vinyl, Low-e2 ¼" + argon | C118: 10-6B | D118: 0.43
A119: 117 | B119: 2gl Wood/vinyl, Low-e1 ¼" + argon | C119: 10-6B | D119: 0.41
A120: 118 | B120: 2gl Wood/vinyl, Clear 3/8" | C120: 10-6B | D120: 0.54
A121: 119 | B121: 2gl Wood/vinyl, Clear 3/8" + argon | C121: 10-6B | D121: 0.51
A122: 120 | B122: 2gl Wood/vinyl, Low-e4 3/8" | C122: 10-6B | D122: 0.48
A123: 121 | B123: 2gl Wood/vinyl, Low-e2 3/8" | C123: 10-6B | D123: 0.45
A124: 122 | B124: 2gl Wood/vinyl, Low-e1 3/8" | C124: 10-6B | D124: 0.43
A125: 123 | B125: 2gl Wood/vinyl, Low-e4 3/8" + argon | C125: 10-6B | D125: 0.44
A126: 124 | B126: 2gl Wood/vinyl, Low-e2 3/8" + argon | C126: 10-6B | D126: 0.41
A127: 125 | B127: 2gl Wood/vinyl, Low-e1 3/8" + argon | C127: 10-6B | D127: 0.39
A128: 126 | B128: 2gl Wood/vinyl, Clear ½" | C128: 10-6B | D128: 0.5
A129: 127 | B129: 2gl Wood/vinyl, Clear ½" + argon | C129: 10-6B | D129: 0.48
A130: 128 | B130: 2gl Wood/vinyl, Low-e4 ½" | C130: 10-6B | D130: 0.44
A131: 129 | B131: 2gl Wood/vinyl, Low-e2 ½" | C131: 10-6B | D131: 0.4
A132: 130 | B132: 2gl Wood/vinyl, Low-e1 ½" | C132: 10-6B | D132: 0.35
A133: 131 | B133: 2gl Wood/vinyl, Low-e4 ½" + argon | C133: 10-6B | D133: 0.42
A134: 132 | B134: 2gl Wood/vinyl, Low-e2 ½" + argon | C134: 10-6B | D134: 0.37
A135: 133 | B135: 2gl Wood/vinyl, Low-e1 ½" + argon | C135: 10-6B | D135: 0.35
A136: 134 | B136: 3gl Wood/vinyl, Clear ¼" | C136: 10-6B | D136: 0.42
A137: 135 | B137: 3gl Wood/vinyl, Clear ¼" + argon | C137: 10-6B | D137: 0.39
A138: 136 | B138: 3gl Wood/vinyl, Low-e4 ¼" | C138: 10-6B | D138: 0.4
A139: 137 | B139: 3gl Wood/vinyl, Low-e2 ¼" | C139: 10-6B | D139: 0.39
A140: 138 | B140: 3gl Wood/vinyl, Low-e1 ¼" | C140: 10-6B | D140: 0.38
A141: 139 | B141: 3gl Wood/vinyl, Low-e4 ¼" + argon | C141: 10-6B | D141: 0.37
A142: 140 | B142: 3gl Wood/vinyl, Low-e2 ¼" + argon | C142: 10-6B | D142: 0.34
A143: 141 | B143: 3gl Wood/vinyl, Low-e1 ¼" + argon | C143: 10-6B | D143: 0.34
A144: 142 | B144: 3gl Wood/vinyl, Clear ½" | C144: 10-6B | D144: 0.37
A145: 143 | B145: 3gl Wood/vinyl, Clear ½" + argon | C145: 10-6B | D145: 0.36
A146: 144 | B146: 3gl Wood/vinyl, Low-e4 ½" | C146: 10-6B | D146: 0.35
A147: 145 | B147: 3gl Wood/vinyl, Low-e2 ½" | C147: 10-6B | D147: 0.32
A148: 146 | B148: 3gl Wood/vinyl, Low-e1 ½" | C148: 10-6B | D148: 0.31
A149: 147 | B149: 3gl Wood/vinyl, Low-e4 ½" + argon | C149: 10-6B | D149: 0.32
A150: 148 | B150: 3gl Wood/vinyl, Low-e2 ½" + argon | C150: 10-6B | D150: 0.3
A151: =A150+1 -> 149 | B151: 3gl Wood/vinyl, Low-e1 ½" + argon | C151: 10-6B | D151: 0.29
A152: 150 | B152: 2gl Alum with TB, Clear ¼" | C152: 10-6B | D152: 0.66
A153: 151 | B153: 2gl Alum with TB, Clear ¼" + argon | C153: 10-6B | D153: 0.63
A154: 152 | B154: 2gl Alum with TB, Low-e4 ¼" | C154: 10-6B | D154: 0.61
A155: 153 | B155: 2gl Alum with TB, Low-e2 ¼" | C155: 10-6B | D155: 0.58
A156: 154 | B156: 2gl Alum with TB, Low-e1 ¼" | C156: 10-6B | D156: 0.55
A157: 155 | B157: 2gl Alum with TB, Low-e4 ¼" + argon | C157: 10-6B | D157: 0.55
A158: 156 | B158: 2gl Alum with TB, Low-e2 ¼" + argon | C158: 10-6B | D158: 0.52
A159: 157 | B159: 2gl Alum with TB, Low-e1 ¼" + argon | C159: 10-6B | D159: 0.5
A160: 158 | B160: 2gl Alum with TB, Clear 3/8" | C160: 10-6B | D160: 0.63
A161: 159 | B161: 2gl Alum with TB, Clear 3/8" + argon | C161: 10-6B | D161: 0.6
A162: 160 | B162: 2gl Alum with TB, Low-e4 3/8" | C162: 10-6B | D162: 0.57
A163: 161 | B163: 2gl Alum with TB, Low-e2 3/8" | C163: 10-6B | D163: 0.54
A164: 162 | B164: 2gl Alum with TB, Low-e1 3/8" | C164: 10-6B | D164: 0.51
A165: 163 | B165: 2gl Alum with TB, Low-e4 3/8" + argon | C165: 10-6B | D165: 0.53
A166: 164 | B166: 2gl Alum with TB, Low-e2 3/8" + argon | C166: 10-6B | D166: 0.49
A167: 165 | B167: 2gl Alum with TB, Low-e1 3/8" + argon | C167: 10-6B | D167: 0.47
A168: 166 | B168: 2gl Alum with TB, Clear ½" | C168: 10-6B | D168: 0.6
A169: 167 | B169: 2gl Alum with TB, Clear ½" + argon | C169: 10-6B | D169: 0.58
A170: 168 | B170: 2gl Alum with TB, Low-e4 ½" | C170: 10-6B | D170: 0.53
A171: 169 | B171: 2gl Alum with TB, Low-e2 ½" | C171: 10-6B | D171: 0.5
A172: 170 | B172: 2gl Alum with TB, Low-e1 ½" | C172: 10-6B | D172: 0.47
A173: 171 | B173: 2gl Alum with TB, Low-e4 ½" + argon | C173: 10-6B | D173: 0.5
A174: 172 | B174: 2gl Alum with TB, Low-e2 ½" + argon | C174: 10-6B | D174: 0.46
A175: 173 | B175: 2gl Alum with TB, Low-e1 ½" + argon | C175: 10-6B | D175: 0.43
A176: 174 | B176: 3gl Alum with TB, Clear ¼" | C176: 10-6B | D176: 0.52
A177: 175 | B177: 3gl Alum with TB, Clear ¼" + argon | C177: 10-6B | D177: 0.49
A178: 176 | B178: 3gl Alum with TB, Low-e4 ¼" | C178: 10-6B | D178: 0.5
A179: 177 | B179: 3gl Alum with TB, Low-e2 ¼" | C179: 10-6B | D179: 0.48
A180: 178 | B180: 3gl Alum with TB, Low-e1 ¼" | C180: 10-6B | D180: 0.47
A181: 179 | B181: 3gl Alum with TB, Low-e4 ¼" + argon | C181: 10-6B | D181: 0.46
A182: 180 | B182: 3gl Alum with TB, Low-e2 ¼" + argon | C182: 10-6B | D182: 0.43
A183: 181 | B183: 3gl Alum with TB, Low-e1 ¼" + argon | C183: 10-6B | D183: 0.42
A184: 182 | B184: 3gl Alum with TB, Clear ½" | C184: 10-6B | D184: 0.46
A185: 183 | B185: 3gl Alum with TB, Clear ½" + argon | C185: 10-6B | D185: 0.45
A186: 184 | B186: 3gl Alum with TB, Low-e4 ½" | C186: 10-6B | D186: 0.43
A187: 185 | B187: 3gl Alum with TB, Low-e2 ½" | C187: 10-6B | D187: 0.41
A188: 186 | B188: 3gl Alum with TB, Low-e1 ½" | C188: 10-6B | D188: 0.39
A189: 187 | B189: 3gl Alum with TB, Low-e4 ½" + argon | C189: 10-6B | D189: 0.41
A190: 188 | B190: 3gl Alum with TB, Low-e2 ½" + argon | C190: 10-6B | D190: 0.38
A191: 189 | B191: 3gl Alum with TB, Low-e1 ½" + argon | C191: 10-6B | D191: 0.37
A192: 190 | B192: 2gl Aluminum, Clear ¼" | C192: 10-6B | D192: 0.82
A193: 191 | B193: 2gl Aluminum, Clear ¼" + argon | C193: 10-6B | D193: 0.77
A194: 192 | B194: 2gl Aluminum, Low-e4 ¼" | C194: 10-6B | D194: 0.76
A195: 193 | B195: 2gl Aluminum, Low-e2 ¼" | C195: 10-6B | D195: 0.73
A196: 194 | B196: 2gl Aluminum, Low-e1 ¼" | C196: 10-6B | D196: 0.7
A197: 195 | B197: 2gl Aluminum, Low-e4 ¼" + argon | C197: 10-6B | D197: 0.7
A198: 196 | B198: 2gl Aluminum, Low-e2 ¼" + argon | C198: 10-6B | D198: 0.66
A199: 197 | B199: 2gl Aluminum, Low-e1 ¼" + argon | C199: 10-6B | D199: 0.64
A200: 198 | B200: 2gl Aluminum, Clear 3/8" | C200: 10-6B | D200: 0.78
A201: 199 | B201: 2gl Aluminum, Clear 3/8" + argon | C201: 10-6B | D201: 0.75
... 176 more rows

Sheet Overhead Glazing (hidden)
A1: Index | B1: Component Description | C1: Reference | D1: Glazing U
A3: 1
A4: =A3+1 -> 2 | B4: === Most Frequently Used =========
A5: 3 | B5: 1gl wood glass | C5: 10-6E | D5: 1.18
A6: 4 | B6: 2gl wood, e=0.05 argon (Code Target) | C6: 10-6E | D6: 0.5
A7: 5 | B7: 3gl wood, e=0.20 air | C7: 10-6E | D7: 0.47
A8: 6 | B8: 3gl wood, e=0.20 argon | C8: 10-6E | D8: 0.43
A9: 7 | B9: 3gl wood, e=0.20 on 2 surfaces air | C9: 10-6E | D9: 0.44
A10: 8 | B10: 3gl wood, e=0.20 on 2 surfaces argon | C10: 10-6E | D10: 0.4
A11: 9 | B11: 3gl wood, e=0.10 on 2 surfaces air | C11: 10-6E | D11: 0.42
A12: 10 | B12: 3gl wood, e=0.10 on 2 surfaces argon | C12: 10-6E | D12: 0.38
A13: 11 | B13: 4gl wood, e=0.10 on 2 surfaces air | C13: 10-6E | D13: 0.39
A14: 12 | B14: 4gl wood, e=0.10 on 2 surfaces argon | C14: 10-6E | D14: 0.36
A15: 13 | B15: 4gl wood, e=0.10 on 2 surfaces krypton | C15: 10-6E | D15: 0.32
A16: 14 | B16: 4gl Alum clad wood, e=0.10 on 2 surf krypton | C16: 10-6E | D16: 0.48
A17: 15 | B17: =============================
A18: 16 | B18: 1gl wood glass | C18: 10-6E | D18: 1.18
A19: 17 | B19: 1gl wood acrylic/polycarb | C19: 10-6E | D19: 1.11
A20: 18 | B20: 2gl wood clear air | C20: 10-6E | D20: 0.67
A21: 19 | B21: 2gl wood clear argon | C21: 10-6E | D21: 0.64
A22: 20 | B22: 2gl wood, e=0.20 air | C22: 10-6E | D22: 0.59
A23: 21 | B23: 2gl wood, e=0.20 argon | C23: 10-6E | D23: 0.54
A24: 22 | B24: 2gl wood, e=0.10 air | C24: 10-6E | D24: 0.58
A25: 23 | B25: 2gl wood, e=0.10 argon | C25: 10-6E | D25: 0.52
A26: 24 | B26: 2gl wood, e=0.05 air | C26: 10-6E | D26: 0.56
A27: 25 | B27: 2gl wood, e=0.05 argon | C27: 10-6E | D27: 0.5
A28: 26 | B28: 3gl wood clear air | C28: 10-6E | D28: 0.51
A29: 27 | B29: 3gl wood clear argon | C29: 10-6E | D29: 0.48
A30: 28 | B30: 3gl wood, e=0.20 air | C30: 10-6E | D30: 0.47
A31: 29 | B31: 3gl wood, e=0.20 argon | C31: 10-6E | D31: 0.43
A32: 30 | B32: 3gl wood, e=0.20 on 2 surfaces air | C32: 10-6E | D32: 0.44
A33: 31 | B33: 3gl wood, e=0.20 on 2 surfaces argon | C33: 10-6E | D33: 0.4
A34: 32 | B34: 3gl wood, e=0.10 on 2 surfaces air | C34: 10-6E | D34: 0.42
A35: 33 | B35: 3gl wood, e=0.10 on 2 surfaces argon | C35: 10-6E | D35: 0.38
A36: 34 | B36: 4gl wood, e=0.10 on 2 surfaces air | C36: 10-6E | D36: 0.39
A37: 35 | B37: 4gl wood, e=0.10 on 2 surfaces argon | C37: 10-6E | D37: 0.36
A38: 36 | B38: 4gl wood, e=0.10 on 2 surfaces krypton | C38: 10-6E | D38: 0.32
A39: 37 | B39: 1gl Alum clad wood glass | C39: 10-6E | D39: 1.4
A40: 38 | B40: 1gl Alum clad wood acrylic/polycarb | C40: 10-6E | D40: 1.34
A41: 39 | B41: 2gl Alum clad wood clear air | C41: 10-6E | D41: 0.84
A42: 40 | B42: 2gl Alum clad wood clear argon | C42: 10-6E | D42: 0.8
A43: 41 | B43: 2gl Alum clad wood, e=0.20 air | C43: 10-6E | D43: 0.75
A44: 42 | B44: 2gl Alum clad wood, e=0.20 argon | C44: 10-6E | D44: 0.7
A45: 43 | B45: 2gl Alum clad wood, e=0.10 air | C45: 10-6E | D45: 0.74
A46: 44 | B46: 2gl Alum clad wood, e=0.10 argon | C46: 10-6E | D46: 0.68
A47: 45 | B47: 2gl Alum clad wood, e=0.05 air | C47: 10-6E | D47: 0.73
A48: 46 | B48: 2gl Alum clad wood, e=0.05 argon | C48: 10-6E | D48: 0.66
A49: 47 | B49: 3gl Alum clad wood clear air | C49: 10-6E | D49: 0.67
A50: 48 | B50: 3gl Alum clad wood clear argon | C50: 10-6E | D50: 0.64
A51: 49 | B51: 3gl Alum clad wood, e=0.20 air | C51: 10-6E | D51: 0.63
A52: 50 | B52: 3gl Alum clad wood, e=0.20 argon | C52: 10-6E | D52: 0.59
A53: 51 | B53: 3gl Alum clad wood, e=0.20 on 2 surf air | C53: 10-6E | D53: 0.6
A54: 52 | B54: 3gl Alum clad wood, e=0.20 on 2 surf argon | C54: 10-6E | D54: 0.56
A55: 53 | B55: 3gl Alum clad wood, e=0.10 on 2 surf air | C55: 10-6E | D55: 0.58
A56: 54 | B56: 3gl Alum clad wood, e=0.10 on 2 surf argon | C56: 10-6E | D56: 0.54
A57: 55 | B57: 4gl Alum clad wood, e=0.10 on 2 surf air | C57: 10-6E | D57: 0.55
A58: 56 | B58: 4gl Alum clad wood, e=0.10 on 2 surf argon | C58: 10-6E | D58: 0.52
A59: 57 | B59: 4gl Alum clad wood, e=0.10 on 2 surf krypton | C59: 10-6E | D59: 0.48
A60: 58 | B60: 1gl Alum with TB glass | C60: 10-6E | D60: 1.51
A61: 59 | B61: 1gl Alum with TB acrylic/polycarb | C61: 10-6E | D61: 1.45
A62: 60 | B62: 2gl Alum with TB clear air | C62: 10-6E | D62: 0.89
A63: =A62+1 -> 61 | B63: 2gl Alum with TB clear argon | C63: 10-6E | D63: 0.86
A64: 62 | B64: 2gl Alum with TB, e=0.20 air | C64: 10-6E | D64: 0.8
A65: 63 | B65: 2gl Alum with TB, e=0.20 argon | C65: 10-6E | D65: 0.75
A66: 64 | B66: 2gl Alum with TB, e=0.10 air | C66: 10-6E | D66: 0.79
A67: 65 | B67: 2gl Alum with TB, e=0.10 argon | C67: 10-6E | D67: 0.73
A68: 66 | B68: 2gl Alum with TB, e=0.05 air | C68: 10-6E | D68: 0.78
A69: 67 | B69: 2gl Alum with TB, e=0.05 argon | C69: 10-6E | D69: 0.71
A70: 68 | B70: 3gl Alum with TB clear air | C70: 10-6E | D70: 0.7
A71: 69 | B71: 3gl Alum with TB clear argon | C71: 10-6E | D71: 0.69
A72: 70 | B72: 3gl Alum with TB, e=0.20 air | C72: 10-6E | D72: 0.68
A73: 71 | B73: 3gl Alum with TB, e=0.20 argon | C73: 10-6E | D73: 0.63
A74: 72 | B74: 3gl Alum with TB, e=0.20 on 2 surf air | C74: 10-6E | D74: 0.64
A75: 73 | B75: 3gl Alum with TB, e=0.20 on 2 surf argon | C75: 10-6E | D75: 0.6
A76: 74 | B76: 3gl Alum with TB, e=0.10 on 2 surfaces air | C76: 10-6E | D76: 0.62
A77: 75 | B77: 3gl Alum with TB, e=0.10 on 2 surf argon | C77: 10-6E | D77: 0.58
A78: 76 | B78: 4gl Alum with TB, e=0.10 on 2 surfaces air | C78: 10-6E | D78: 0.59
A79: 77 | B79: 4gl Alum with TB, e=0.10 on 2 surf argon | C79: 10-6E | D79: 0.56
A80: 78 | B80: 4gl Alum with TB, e=0.10 on 2 surf krypton | C80: 10-6E | D80: 0.52
A81: 79 | B81: 1gl Aluminum glass | C81: 10-6E | D81: 1.58
A82: 80 | B82: 1gl Aluminum acrylic/polycarb | C82: 10-6E | D82: 1.52
A83: 81 | B83: 2gl Aluminum clear air | C83: 10-6E | D83: 1.05
A84: 82 | B84: 2gl Aluminum clear argon | C84: 10-6E | D84: 1.02
A85: 83 | B85: 2gl Aluminum, e=0.20 air | C85: 10-6E | D85: 0.96
A86: 84 | B86: 2gl Aluminum, e=0.20 argon | C86: 10-6E | D86: 0.91
A87: 85 | B87: 2gl Aluminum, e=0.10 air | C87: 10-6E | D87: 0.94
A88: 86 | B88: 2gl Aluminum, e=0.10 argon | C88: 10-6E | D88: 0.89
A89: 87 | B89: 2gl Aluminum, e=0.05 air | C89: 10-6E | D89: 0.93
A90: 88 | B90: 2gl Aluminum, e=0.05 argon | C90: 10-6E | D90: 0.87
A91: 89 | B91: 3gl Aluminum clear air | C91: 10-6E | D91: 0.9
A92: 90 | B92: 3gl Aluminum clear argon | C92: 10-6E | D92: 0.87
A93: 91 | B93: 3gl Aluminum, e=0.20 air | C93: 10-6E | D93: 0.86
A94: 92 | B94: 3gl Aluminum, e=0.20 argon | C94: 10-6E | D94: 0.82
A95: 93 | B95: 3gl Aluminum, e=0.20 on 2 surf air | C95: 10-6E | D95: 0.82
A96: 94 | B96: 3gl Aluminum, e=0.20 on 2 surf argon | C96: 10-6E | D96: 0.79
A97: 95 | B97: 3gl Aluminum, e=0.10 on 2 surf air | C97: 10-6E | D97: 0.81
A98: 96 | B98: 3gl Aluminum, e=0.10 on 2 surf argon | C98: 10-6E | D98: 0.77
A99: 97 | B99: 4gl Aluminum, e=0.10 on 2 surf air | C99: 10-6E | D99: 0.78
A100: 98 | B100: 4gl Aluminum, e=0.10 on 2 surf argon | C100: 10-6E | D100: 0.74
A101: 99 | B101: 4gl Aluminum, e=0.10 on 2 surf krypton | C101: 10-6E | D101: 0.7
A102: 100 | B102: === Custom Entries: Use NFRC Tested Values ================ | E102: Notes
A103: 101 | C103: Custom | F103: =IF(AND(B104<>"",B103=""),"Don't skip lines",IF(AND(D103="",B103<>""),"Enter U-value",IF(AND(D103<>"",B103=""),"Enter Description",""))) -> 
A104: 102 | C104: Custom
A105: 103 | C105: Custom
A106: 104 | C106: Custom
A107: 105 | C107: Custom
A108: 106 | C108: Custom
A109: 107 | C109: Custom
A110: 108 | C110: Custom
A111: 109 | C111: Custom
A112: 110 | C112: Custom
A113: 111 | C113: Custom
A114: 112 | C114: Custom
A115: 113 | C115: Custom
A116: 114 | C116: Custom
A117: 115 | C117: Custom
A118: 116 | C118: Custom
A119: 117 | C119: Custom
A120: 118 | C120: Custom
A121: 119 | C121: Custom
A122: 120 | C122: Custom
A123: 121 | C123: Custom
A124: 122 | C124: Custom
A125: 123 | C125: Custom
A126: 124 | C126: Custom
A127: 125 | C127: Custom
A128: =A127+1 -> 126 | C128: Custom
A129: 127 | C129: Custom
A130: 128 | C130: Custom
A131: 129 | C131: Custom
A132: 130 | C132: Custom
A133: 131 | C133: Custom
A134: 132 | C134: Custom
A135: 133 | C135: Custom
A136: 134 | C136: Custom
A137: 135 | C137: Custom
A138: 136 | C138: Custom
A139: 137 | C139: Custom
A140: 138 | C140: Custom
A141: 139 | C141: Custom
A142: 140 | C142: Custom
A143: 141 | C143: Custom
A144: 142 | C144: Custom
A145: 143 | C145: Custom
A146: 144 | C146: Custom
A147: 145 | C147: Custom
A148: 146 | C148: Custom
A149: 147 | C149: Custom
A150: 148 | C150: Custom
A151: 149 | C151: Custom
A152: 150 | C152: Custom
A153: 151 | C153: Custom
A154: 152 | C154: Custom
A155: 153 | C155: Custom
A156: 154 | C156: Custom
A157: 155 | C157: Custom
A158: 156 | C158: Custom
A159: 157 | C159: Custom
A160: 158 | C160: Custom
A161: 159 | C161: Custom
A162: 160 | C162: Custom
A163: 161 | C163: Custom
A164: 162 | C164: Custom
A165: 163 | C165: Custom
A166: 164 | C166: Custom
A167: 165 | C167: Custom | F167: =IF(AND(B168<>"",B167=""),"Don't skip lines",IF(AND(D167="",B167<>""),"Enter U-value",IF(AND(D167<>"",B167=""),"Enter Description",""))) -> 
A168: 166 | C168: Custom
A169: 167 | C169: Custom
A170: 168 | C170: Custom
A171: 169 | C171: Custom
A172: 170 | C172: Custom
A173: 171 | C173: Custom
A174: 172 | C174: Custom
A175: 173 | C175: Custom
A176: 174 | C176: Custom
A177: 175 | C177: Custom
A178: 176 | C178: Custom
A179: 177 | C179: Custom
A180: 178 | C180: Custom
A181: 179 | C181: Custom
A182: 180 | C182: Custom
A183: 181 | C183: Custom
A184: 182 | C184: Custom
A185: 183 | C185: Custom
A186: 184 | C186: Custom
A187: 185 | C187: Custom
A188: 186 | C188: Custom
A189: 187 | C189: Custom
A190: 188 | C190: Custom
A191: 189 | C191: Custom
A192: =A191+1 -> 190 | C192: Custom
A193: 191 | C193: Custom
A194: 192 | C194: Custom
A195: 193 | C195: Custom
A196: 194 | C196: Custom
A197: 195 | C197: Custom
A198: 196 | C198: Custom
A199: 197 | C199: Custom
A200: 198 | C200: Custom
A201: 199 | C201: Custom
... 1816 more rows

Sheet Doors (hidden)
A1: Index | B1: Component Description | C1: Reference | D1: Glazing U
A3: 1 | C3: 0 | D3: 0
A4: =A3+1 -> 2 | B4: === Most Frequently Used =========
A5: =A4+1 -> 3 | B5: Wood slab in wood frame (WoodSWF) | C5: 10-6C | D5: 0.46
A6: 4 | B6: Code Target, U=0.30 | D6: 0.3
A7: 5 | B7: Insulated Steel, Wood Edge (ISteelWE) | C7: 10-6C | D7: 0.16
A8: 6 | B8: ISteelWE 1gl 6% 22x8" | C8: 10-6C | D8: 0.21
A9: 7 | B9: ISteelWE 2gl 6% 22x8' 1/4" | C9: 10-6C | D9: 0.2
A10: 8 | B10: ISteelWE 2gl 25% 22x8' 1/4" | C10: 10-6C | D10: 0.28
A11: 9 | B11: ISteelWE 2gl 6% 22x8' 1/2" | C11: 10-6C | D11: 0.19
A12: 10 | B12: ISteelWE 2gl 6% 22x8' 1/2" LowE.1 Ar | C12: 10-6C | D12: 0.18
A13: 11 | B13: ISteelWE2gl 25% 22x36' 1/2" LowE .1 Ar | C13: 10-6C | D13: 0.23
A14: 12 | B14: ISteelWE2gl 45% 22x64' 1/2" LowE .1 Ar | C14: 10-6C | D14: 0.26
A15: 13 | B15: ============================
A16: 14 | B16: Wood slab in wood frame (WoodSWF) | C16: 10-6C | D16: 0.46
A17: 15 | B17: WoodSWF 1gl 6% 22x8" | C17: 10-6C | D17: 0.48
A18: 16 | B18: WoodSWF 1gl 25% 22x36' | C18: 10-6C | D18: 0.58
A19: 17 | B19: WoodSWF 1gl 45% 22x64' | C19: 10-6C | D19: 0.69
A20: 18 | B20: WoodSWF 1gl >50% | C20: 10-6A | D20: 1.2
A21: 19 | B21: WoodSWF 2gl 6% 22x8' 1/4" | C21: 10-6C | D21: 0.47
A22: 20 | B22: WoodSWF 2gl 25% 22x8' 1/4" | C22: 10-6C | D22: 0.48
A23: =A22+1 -> 21 | B23: WoodSWF 2gl 45% 22x8' 1/4" | C23: 10-6C | D23: 0.49
A24: 22 | B24: WoodSWF 2gl >50% 1/4" | C24: 10-6A | D24: 0.63
A25: 23 | B25: WoodSWF 2gl 6% 22x8' 1/2" | C25: 10-6C | D25: 0.46
A26: 24 | B26: WoodSWF 2gl 25% 22x8' 1/2" | C26: 10-6C | D26: 0.46
A27: 25 | B27: WoodSWF 2gl 45% 22x8' 1/2" | C27: 10-6C | D27: 0.46
A28: 26 | B28: WoodSWF 2gl >50% 1/2" | C28: 10-6A | D28: 0.58
A29: 27 | B29: WoodSWF 2gl 6% 22x8' 1/2" LowE.1 Ar | C29: 10-6C | D29: 0.44
A30: 28 | B30: WoodSWF2gl 25% 22x36' 1/2" LowE .1 Ar | C30: 10-6C | D30: 0.42
A31: 29 | B31: WoodSWF2gl 45% 22x64' 1/2" LowE .1 Ar | C31: 10-6C | D31: 0.39
A32: 30 | B32: WoodSWF 2gl >50% 1/2" LowE .1 Ar | C32: 10-6A | D32: 0.48
A33: 31 | B33: Insulated Steel, Wood Edge (ISteelWE) | C33: 10-6C | D33: 0.16
A34: 32 | B34: ISteelWE 1gl 6% 22x8' | C34: 10-6C | D34: 0.21
A35: 33 | B35: ISteelWE 1gl 25% 22x36' | C35: 10-6C | D35: 0.39
A36: 34 | B36: ISteelWE 1gl 45% 22x64' | C36: 10-6C | D36: 0.58
A37: 35 | B37: ISteelWE 1gl >50% | C37: 10-6A | D37: 1.2
A38: 36 | B38: ISteelWE 2gl 6% 22x8' 1/4" | C38: 10-6C | D38: 0.2
A39: 37 | B39: ISteelWE 2gl 25% 22x8' 1/4" | C39: 10-6C | D39: 0.28
A40: 38 | B40: ISteelWE 2gl 45% 22x8' 1/4" | C40: 10-6C | D40: 0.38
A41: 39 | B41: ISteelWE 2gl >50% 1/4" | C41: 10-6A | D41: 0.63
A42: 40 | B42: ISteelWE 2gl 6% 22x8' 1/2" | C42: 10-6C | D42: 0.19
A43: 41 | B43: ISteelWE 2gl 25% 22x8' 1/2" | C43: 10-6C | D43: 0.26
A44: 42 | B44: ISteelWE 2gl 45% 22x8' 1/2" | C44: 10-6C | D44: 0.35
A45: 43 | B45: ISteelWE 2gl >50% 1/2" | C45: 10-6A | D45: 0.58
A46: 44 | B46: ISteelWE 2gl 6% 22x8' 1/2" LowE.1 Ar | C46: 10-6C | D46: 0.18
A47: 45 | B47: ISteelWE2gl 25% 22x36' 1/2" LowE .1 Ar | C47: 10-6C | D47: 0.23
A48: 46 | B48: ISteelWE2gl 45% 22x64' 1/2" LowE .1 Ar | C48: 10-6C | D48: 0.26
A49: 47 | B49: ISteelWE 2gl >50% 1/2" LowE .1 Ar | C49: 10-6A | D49: 0.48
A50: 48 | B50: Insulated Steel, Steel Edge Steel Frame (ISteel,SEdge,SFrame) | C50: 10-6C | D50: 0.37
A51: 49 | B51: ISteel,SEdge,SFrame 1gl 6% 22x8' | C51: 10-6C | D51: 0.44
A52: 50 | B52: ISteel,SEdge,SFrame 1gl 25% 22x36' | C52: 10-6C | D52: 0.55
A53: 51 | B53: ISteel,SEdge,SFrame 1gl 45% 22x64' | C53: 10-6C | D53: 0.71
A54: 52 | B54: ISteel,SEdge,SFrame 1gl > 50% | C54: 10-6A | D54: 1.2
A55: 53 | B55: ISteel,SEdge,SFrame 2gl 6% 22x8' 1/4" | C55: 10-6C | D55: 0.42
A56: 54 | B56: ISteel,SEdge,SFrame 2gl 25% 22x36' 1/4" | C56: 10-6C | D56: 0.5
A57: 55 | B57: ISteel,SEdge,SFrame 2gl 45% 22x64' 1/4" | C57: 10-6C | D57: 0.59
A58: 56 | B58: ISteel,SEdge,SFrame 2gl > 50% 1/4" | C58: 10-6A | D58: 0.92
A59: 57 | B59: ISteel,SEdge,SFrame 2gl 6% 22x8' 1/2" | C59: 10-6C | D59: 0.41
A60: 58 | B60: ISteel,SEdge,SFrame 2gl 25% 22x36' 1/2" | C60: 10-6C | D60: 0.48
A61: 59 | B61: ISteel,SEdge,SFrame 2gl 45% 22x64' 1/2" | C61: 10-6C | D61: 0.56
A62: 60 | B62: ISteel,SEdge,SFrame 2gl > 50% 1/2" | C62: 10-6A | D62: 0.86
A63: 61 | B63: ISteel,SEdge,SFrame 2gl 6% 22x8' 1/2" LowE.1 Ar | C63: 10-6C | D63: 0.39
A64: 62 | B64: ISteel,SEdge,SFrame 2gl 25% 22x36' 1/2" LowE .1 Ar | C64: 10-6C | D64: 0.44
A65: 63 | B65: ISteel,SEdge,SFrame 2gl 45% 22x64' 1/2" LowE .1 Ar | C65: 10-6C | D65: 0.48
A66: 64 | B66: ISteel,SEdge,SFrame 2gl > 50% 1/2" LowE .1 Ar | C66: 10-6A | D66: 0.79
A67: 65 | B67: ='Flat-Vaulted Ceilings'!B330 -> == Custom Entries per WSEC R402.1.5 U-factor Reference and Calculations ======== | E67: Notes
A68: 66 | C68: Custom | F68: =IF(AND(B69<>"",B68=""),"Don't skip lines",IF(AND(D68="",B68<>""),"Enter U-value",IF(AND(D68<>"",B68=""),"Enter Description",""))) -> 
A69: 67 | C69: Custom
A70: 68 | C70: Custom
A71: 69 | C71: Custom
A72: 70 | C72: Custom
A73: 71 | C73: Custom
A74: 72 | C74: Custom
A75: 73 | C75: Custom
A76: 74 | C76: Custom
A77: 75 | C77: Custom
A78: 76 | C78: Custom
A79: 77 | C79: Custom
A80: 78 | C80: Custom
A81: 79 | C81: Custom
A82: 80 | C82: Custom
A83: 81 | C83: Custom
A84: =A83+1 -> 82 | C84: Custom
A85: 83 | C85: Custom
A86: 84 | C86: Custom
A87: 85 | C87: Custom
A88: 86 | C88: Custom
A89: 87 | C89: Custom
A90: 88 | C90: Custom
A91: 89 | C91: Custom
A92: 90 | C92: Custom
A93: 91 | C93: Custom
A94: 92 | C94: Custom
A95: 93 | C95: Custom
A96: 94 | C96: Custom
A97: 95 | C97: Custom
A98: 96 | C98: Custom
A99: 97 | C99: Custom
A100: 98 | C100: Custom
A101: 99 | C101: Custom
A102: 100 | C102: Custom
A103: 101 | C103: Custom
A104: 102 | C104: Custom
A105: 103 | C105: Custom
A106: 104 | C106: Custom
A107: 105 | C107: Custom
A108: 106 | C108: Custom
A109: 107 | C109: Custom
A110: 108 | C110: Custom
A111: 109 | C111: Custom
A112: 110 | C112: Custom
A113: 111 | C113: Custom
A114: 112 | C114: Custom

Sheet Flat-Vaulted Ceilings (hidden)
A1: Index | B1: Component Description | C1: Reference | D1: Attic U
A3: 1
A4: =A3+1 -> 2 | B4: === Most Frequently Used =========
A5: =A4+1 -> 3 | B5: R0 Attic | C5: WSU | D5: 0.302
A6: 4 | B6: R0 Scissors | C6: WSU | D6: 0.284
A7: 5 | B7: R19 blown Attic STD baffled | C7: 10-7 | D7: 0.049
A8: 6 | B8: R30 blown Attic STD baffled | C8: 10-7 | D8: 0.036
A9: 7 | B9: R38 blown Attic ADV baffled (Code Target) | C9: 10-7 | D9: 0.026
A10: 8 | B10: R49 blown Attic STD baffled (Code Target) | C10: 10-7 | D10: 0.027
A11: =A9+1 -> 8 | B11: R49 blown Attic ADV baffled | C11: 10-7 | D11: 0.02
A12: 9 | B12: R60 blown Attic ADV baffled | C12: 10-7 | D12: 0.017
A13: =A11+1 -> 9 | B13: R38 blown Scissor 4:12 ADV baffled | C13: 10-7 | D13: 0.025
A14: =A12+1 -> 10 | B14: R49 blown Scissor 4:12 ADV baffled | C14: 10-7 | D14: 0.02
A15: 10 | B15: R38 blown Scissor 5:12 ADV baffled | C15: 10-7 | D15: 0.026
A16: 11 | B16: R49 blown Scissor 5:12 ADV baffled | C16: 10-7 | D16: 0.02
A17: 11 | B17: R19 batt Vault vented 2x10 16oc | C17: 10-7 | D17: 0.049
A18: 12 | B18: R19 batt Vault vented 2x10 24oc | C18: 10-7 | D18: 0.048
A19: 13 | B19: R30 batt Vault vented 2x12 16oc | C19: 10-7 | D19: 0.034
A20: 14 | B20: R30 batt Vault vented 2x12 24oc | C20: 10-7 | D20: 0.033
A21: 15 | B21: R38 batt Vault vented 2x14 16oc | C21: 10-7 | D21: 0.027
A22: 16 | B22: R38 batt Vault vented 2x14 24oc | C22: 10-7 | D22: 0.027
A23: 17 | B23: ============================
A24: =A23+1 -> 18 | B24: R0 Attic | C24: WSU | D24: 0.302
A25: 19 | B25: R0 Scissors | C25: WSU | D25: 0.284
A26: 20 | B26: R19 blown Attic STD baffled | C26: 10-7 | D26: 0.049
A27: 21 | B27: R19 blown Attic ADV baffled | C27: 10-7 | D27: 0.047
A28: 22 | B28: R30 blown Attic STD baffled | C28: 10-7 | D28: 0.036
A29: 23 | B29: R30 blown Attic ADV baffled | C29: 10-7 | D29: 0.032
A30: 24 | B30: R38 blown Attic STD baffled | C30: 10-7 | D30: 0.031
A31: 25 | B31: R38 blown Attic ADV baffled | C31: 10-7 | D31: 0.026
A32: 26 | B32: R49 blown Attic STD baffled | C32: 10-7 | D32: 0.027
A33: 27 | B33: R49 blown Attic ADV baffled | C33: 10-7 | D33: 0.02
A34: 28 | B34: R60 blown Attic STD baffled | C34: 10-7 | D34: 0.025
A35: 29 | B35: R60 blown Attic ADV baffled | C35: 10-7 | D35: 0.017
A36: 30 | B36: R30 blown Scissor 4:12 STD baffled | C36: 10-7 | D36: 0.043
A37: 31 | B37: R30 blown Scissor 4:12 ADV baffled | C37: 10-7 | D37: 0.031
A38: 32 | B38: R38 blown Scissor 4:12 STD baffled | C38: 10-7 | D38: 0.04
A39: 33 | B39: R38 blown Scissor 4:12 ADV baffled | C39: 10-7 | D39: 0.025
A40: 34 | B40: R49 blown Scissor 4:12 STD baffled | C40: 10-7 | D40: 0.038
A41: 35 | B41: R49 blown Scissor 4:12 ADV baffled | C41: 10-7 | D41: 0.02
A42: 36 | B42: R30 blown Scissor 5:12 STD baffled | C42: 10-7 | D42: 0.039
A43: 37 | B43: R30 blown Scissor 5:12 ADV baffled | C43: 10-7 | D43: 0.032
A44: 38 | B44: R38 blown Scissor 5:12 STD baffled | C44: 10-7 | D44: 0.035
A45: 39 | B45: R38 blown Scissor 5:12 ADV baffled | C45: 10-7 | D45: 0.026
A46: 40 | B46: R49 blown Scissor 5:12 STD baffled | C46: 10-7 | D46: 0.032
A47: 41 | B47: R49 blown Scissor 5:12 ADV baffled | C47: 10-7 | D47: 0.02
A48: 42 | B48: St Truss R19 cavity 12' Span | C48: 10-7A | D48: 0.1075
A49: 43 | B49: St Truss R19 cavity 14' Span | C49: 10-7A | D49: 0.0991
A50: 44 | B50: St Truss R19 cavity 16' Span | C50: 10-7A | D50: 0.0928
A51: 45 | B51: St Truss R19 cavity 18' Span | C51: 10-7A | D51: 0.0878
A52: 46 | B52: St Truss R19 cavity 20' Span | C52: 10-7A | D52: 0.0839
A53: 47 | B53: St Truss R19 cavity 22' Span | C53: 10-7A | D53: 0.0807
A54: 48 | B54: St Truss R19 cavity 24' Span | C54: 10-7A | D54: 0.078
A55: 49 | B55: St Truss R19 cavity 26' Span | C55: 10-7A | D55: 0.0757
A56: 50 | B56: St Truss R19 cavity 28' Span | C56: 10-7A | D56: 0.0737
A57: 51 | B57: St Truss R19 cavity 30' Span | C57: 10-7A | D57: 0.072
A58: 52 | B58: St Truss R19 cavity 32' Span | C58: 10-7A | D58: 0.0706
A59: 53 | B59: St Truss R19 cavity 34' Span | C59: 10-7A | D59: 0.0693
A60: 54 | B60: St Truss R19 cavity 36' Span | C60: 10-7A | D60: 0.0681
A61: 55 | B61: St Truss R30 cavity 12' Span | C61: 10-7A | D61: 0.0907
A62: 56 | B62: St Truss R30 cavity 14' Span | C62: 10-7A | D62: 0.0823
A63: 57 | B63: St Truss R30 cavity 16' Span | C63: 10-7A | D63: 0.076
A64: 58 | B64: St Truss R30 cavity 18' Span | C64: 10-7A | D64: 0.071
A65: 59 | B65: St Truss R30 cavity 20' Span | C65: 10-7A | D65: 0.0671
A66: 60 | B66: St Truss R30 cavity 22' Span | C66: 10-7A | D66: 0.0638
A67: 61 | B67: St Truss R30 cavity 24' Span | C67: 10-7A | D67: 0.0612
A68: 62 | B68: St Truss R30 cavity 26' Span | C68: 10-7A | D68: 0.0589
A69: 63 | B69: St Truss R30 cavity 28' Span | C69: 10-7A | D69: 0.0569
A70: 64 | B70: St Truss R30 cavity 30' Span | C70: 10-7A | D70: 0.0552
A71: 65 | B71: St Truss R30 cavity 32' Span | C71: 10-7A | D71: 0.0538
A72: 66 | B72: St Truss R30 cavity 34' Span | C72: 10-7A | D72: 0.0525
A73: 67 | B73: St Truss R30 cavity 36' Span | C73: 10-7A | D73: 0.0513
A74: 68 | B74: St Truss R38 cavity 12' Span | C74: 10-7A | D74: 0.0844
A75: 69 | B75: St Truss R38 cavity 14' Span | C75: 10-7A | D75: 0.0759
A76: 70 | B76: St Truss R38 cavity 16' Span | C76: 10-7A | D76: 0.0696
A77: 71 | B77: St Truss R38 cavity 18' Span | C77: 10-7A | D77: 0.0647
A78: =A77+1 -> 72 | B78: St Truss R38 cavity 20' Span | C78: 10-7A | D78: 0.0607
A79: 73 | B79: St Truss R38 cavity 22' Span | C79: 10-7A | D79: 0.0575
A80: 74 | B80: St Truss R38 cavity 24' Span | C80: 10-7A | D80: 0.0548
A81: 75 | B81: St Truss R38 cavity 26' Span | C81: 10-7A | D81: 0.0525
A82: 76 | B82: St Truss R38 cavity 28' Span | C82: 10-7A | D82: 0.0506
A83: 77 | B83: St Truss R38 cavity 30' Span | C83: 10-7A | D83: 0.0489
A84: 78 | B84: St Truss R38 cavity 32' Span | C84: 10-7A | D84: 0.0474
A85: 79 | B85: St Truss R38 cavity 34' Span | C85: 10-7A | D85: 0.0461
A86: 80 | B86: St Truss R38 cavity 36' Span | C86: 10-7A | D86: 0.0449
A87: 81 | B87: St Truss R49 cavity 12' Span | C87: 10-7A | D87: 0.0789
A88: 82 | B88: St Truss R49 cavity 14' Span | C88: 10-7A | D88: 0.0704
A89: 83 | B89: St Truss R49 cavity 16' Span | C89: 10-7A | D89: 0.0641
A90: 84 | B90: St Truss R49 cavity 18' Span | C90: 10-7A | D90: 0.0592
A91: 85 | B91: St Truss R49 cavity 20' Span | C91: 10-7A | D91: 0.0552
A92: 86 | B92: St Truss R49 cavity 22' Span | C92: 10-7A | D92: 0.052
A93: 87 | B93: St Truss R49 cavity 24' Span | C93: 10-7A | D93: 0.0493
A94: 88 | B94: St Truss R49 cavity 26' Span | C94: 10-7A | D94: 0.047
A95: 89 | B95: St Truss R49 cavity 28' Span | C95: 10-7A | D95: 0.0451
A96: 90 | B96: St Truss R49 cavity 30' Span | C96: 10-7A | D96: 0.0434
A97: 91 | B97: St Truss R49 cavity 32' Span | C97: 10-7A | D97: 0.0419
A98: 92 | B98: St Truss R49 cavity 34' Span | C98: 10-7A | D98: 0.0406
A99: 93 | B99: St Truss R49 cavity 36' Span | C99: 10-7A | D99: 0.0395
A100: 94 | B100: St Truss R19 cavity R3 Sheath 12' Span | C100: 10-7A | D100: 0.0809
A101: 95 | B101: St Truss R19 cavity R3 Sheath 14' Span | C101: 10-7A | D101: 0.0763
A102: 96 | B102: St Truss R19 cavity R3 Sheath 16' Span | C102: 10-7A | D102: 0.0728
A103: 97 | B103: St Truss R19 cavity R3 Sheath 18' Span | C103: 10-7A | D103: 0.0701
A104: 98 | B104: St Truss R19 cavity R3 Sheath 20' Span | C104: 10-7A | D104: 0.0679
A105: 99 | B105: St Truss R19 cavity R3 Sheath 22' Span | C105: 10-7A | D105: 0.0661
A106: 100 | B106: St Truss R19 cavity R3 Sheath 24' Span | C106: 10-7A | D106: 0.0647
A107: 101 | B107: St Truss R19 cavity R3 Sheath 26' Span | C107: 10-7A | D107: 0.0634
A108: 102 | B108: St Truss R19 cavity R3 Sheath 28' Span | C108: 10-7A | D108: 0.0623
A109: 103 | B109: St Truss R19 cavity R3 Sheath 30' Span | C109: 10-7A | D109: 0.0614
A110: 104 | B110: St Truss R19 cavity R3 Sheath 32' Span | C110: 10-7A | D110: 0.0606
A111: 105 | B111: St Truss R19 cavity R3 Sheath 34' Span | C111: 10-7A | D111: 0.0599
A112: 106 | B112: St Truss R19 cavity R3 Sheath 36' Span | C112: 10-7A | D112: 0.0592
A113: 107 | B113: St Truss R30 cavity R3 Sheath 12' Span | C113: 10-7A | D113: 0.0641
A114: 108 | B114: St Truss R30 cavity R3 Sheath 14' Span | C114: 10-7A | D114: 0.0595
A115: 109 | B115: St Truss R30 cavity R3 Sheath 16' Span | C115: 10-7A | D115: 0.056
A116: 110 | B116: St Truss R30 cavity R3 Sheath 18' Span | C116: 10-7A | D116: 0.0533
A117: 111 | B117: St Truss R30 cavity R3 Sheath 20' Span | C117: 10-7A | D117: 0.0511
A118: 112 | B118: St Truss R30 cavity R3 Sheath 22' Span | C118: 10-7A | D118: 0.0493
A119: 113 | B119: St Truss R30 cavity R3 Sheath 24' Span | C119: 10-7A | D119: 0.0478
A120: 114 | B120: St Truss R30 cavity R3 Sheath 26' Span | C120: 10-7A | D120: 0.0466
A121: 115 | B121: St Truss R30 cavity R3 Sheath 28' Span | C121: 10-7A | D121: 0.0455
A122: 116 | B122: St Truss R30 cavity R3 Sheath 30' Span | C122: 10-7A | D122: 0.0446
A123: 117 | B123: St Truss R30 cavity R3 Sheath 32' Span | C123: 10-7A | D123: 0.0438
A124: 118 | B124: St Truss R30 cavity R3 Sheath 34' Span | C124: 10-7A | D124: 0.0431
A125: 119 | B125: St Truss R30 cavity R3 Sheath 36' Span | C125: 10-7A | D125: 0.0424
A126: 120 | B126: St Truss R38 cavity R3 Sheath 12' Span | C126: 10-7A | D126: 0.0577
A127: 121 | B127: St Truss R38 cavity R3 Sheath 14' Span | C127: 10-7A | D127: 0.0531
A128: 122 | B128: St Truss R38 cavity R3 Sheath 16' Span | C128: 10-7A | D128: 0.0496
A129: 123 | B129: St Truss R38 cavity R3 Sheath 18' Span | C129: 10-7A | D129: 0.0469
A130: 124 | B130: St Truss R38 cavity R3 Sheath 20' Span | C130: 10-7A | D130: 0.0447
A131: 125 | B131: St Truss R38 cavity R3 Sheath 22' Span | C131: 10-7A | D131: 0.043
A132: 126 | B132: St Truss R38 cavity R3 Sheath 24' Span | C132: 10-7A | D132: 0.0415
A133: 127 | B133: St Truss R38 cavity R3 Sheath 26' Span | C133: 10-7A | D133: 0.0402
A134: 128 | B134: St Truss R38 cavity R3 Sheath 28' Span | C134: 10-7A | D134: 0.0392
A135: 129 | B135: St Truss R38 cavity R3 Sheath 30' Span | C135: 10-7A | D135: 0.0382
A136: 130 | B136: St Truss R38 cavity R3 Sheath 32' Span | C136: 10-7A | D136: 0.0374
A137: 131 | B137: St Truss R38 cavity R3 Sheath 34' Span | C137: 10-7A | D137: 0.0367
A138: 132 | B138: St Truss R38 cavity R3 Sheath 36' Span | C138: 10-7A | D138: 0.0361
A139: 133 | B139: St Truss R49 cavity R3 Sheath 12' Span | C139: 10-7A | D139: 0.0523
A140: 134 | B140: St Truss R49 cavity R3 Sheath 14' Span | C140: 10-7A | D140: 0.0476
A141: 135 | B141: St Truss R49 cavity R3 Sheath 16' Span | C141: 10-7A | D141: 0.0441
A142: =A141+1 -> 136 | B142: St Truss R49 cavity R3 Sheath 18' Span | C142: 10-7A | D142: 0.0414
A143: 137 | B143: St Truss R49 cavity R3 Sheath 20' Span | C143: 10-7A | D143: 0.0393
A144: 138 | B144: St Truss R49 cavity R3 Sheath 22' Span | C144: 10-7A | D144: 0.0375
A145: 139 | B145: St Truss R49 cavity R3 Sheath 24' Span | C145: 10-7A | D145: 0.036
A146: 140 | B146: St Truss R49 cavity R3 Sheath 26' Span | C146: 10-7A | D146: 0.0348
A147: 141 | B147: St Truss R49 cavity R3 Sheath 28' Span | C147: 10-7A | D147: 0.0337
A148: 142 | B148: St Truss R49 cavity R3 Sheath 30' Span | C148: 10-7A | D148: 0.0328
A149: 143 | B149: St Truss R49 cavity R3 Sheath 32' Span | C149: 10-7A | D149: 0.0319
A150: 144 | B150: St Truss R49 cavity R3 Sheath 34' Span | C150: 10-7A | D150: 0.0312
A151: 145 | B151: St Truss R49 cavity R3 Sheath 36' Span | C151: 10-7A | D151: 0.0306
A152: 146 | B152: St Truss R19 cavity R5 Sheath 12' Span | C152: 10-7A | D152: 0.0732
A153: 147 | B153: St Truss R19 cavity R5 Sheath 14' Span | C153: 10-7A | D153: 0.0697
A154: 148 | B154: St Truss R19 cavity R5 Sheath 16' Span | C154: 10-7A | D154: 0.067
A155: 149 | B155: St Truss R19 cavity R5 Sheath 18' Span | C155: 10-7A | D155: 0.0649
A156: 150 | B156: St Truss R19 cavity R5 Sheath 20' Span | C156: 10-7A | D156: 0.0633
A157: 151 | B157: St Truss R19 cavity R5 Sheath 22' Span | C157: 10-7A | D157: 0.0619
A158: 152 | B158: St Truss R19 cavity R5 Sheath 24' Span | C158: 10-7A | D158: 0.0608
A159: 153 | B159: St Truss R19 cavity R5 Sheath 26' Span | C159: 10-7A | D159: 0.0598
A160: 154 | B160: St Truss R19 cavity R5 Sheath 28' Span | C160: 10-7A | D160: 0.059
A161: 155 | B161: St Truss R19 cavity R5 Sheath 30' Span | C161: 10-7A | D161: 0.0583
A162: 156 | B162: St Truss R19 cavity R5 Sheath 32' Span | C162: 10-7A | D162: 0.0577
A163: 157 | B163: St Truss R19 cavity R5 Sheath 34' Span | C163: 10-7A | D163: 0.0571
A164: 158 | B164: St Truss R19 cavity R5 Sheath 36' Span | C164: 10-7A | D164: 0.0567
A165: 159 | B165: St Truss R30 cavity R5 Sheath 12' Span | C165: 10-7A | D165: 0.0564
A166: 160 | B166: St Truss R30 cavity R5 Sheath 14' Span | C166: 10-7A | D166: 0.0529
A167: 161 | B167: St Truss R30 cavity R5 Sheath 16' Span | C167: 10-7A | D167: 0.0502
A168: 162 | B168: St Truss R30 cavity R5 Sheath 18' Span | C168: 10-7A | D168: 0.0481
A169: 163 | B169: St Truss R30 cavity R5 Sheath 20' Span | C169: 10-7A | D169: 0.0465
A170: 164 | B170: St Truss R30 cavity R5 Sheath 22' Span | C170: 10-7A | D170: 0.051
A171: 165 | B171: St Truss R30 cavity R5 Sheath 24' Span | C171: 10-7A | D171: 0.044
A172: 166 | B172: St Truss R30 cavity R5 Sheath 26' Span | C172: 10-7A | D172: 0.043
A173: 167 | B173: St Truss R30 cavity R5 Sheath 28' Span | C173: 10-7A | D173: 0.0422
A174: 168 | B174: St Truss R30 cavity R5 Sheath 30' Span | C174: 10-7A | D174: 0.0415
A175: 169 | B175: St Truss R30 cavity R5 Sheath 32' Span | C175: 10-7A | D175: 0.0409
A176: 170 | B176: St Truss R30 cavity R5 Sheath 34' Span | C176: 10-7A | D176: 0.0403
A177: 171 | B177: St Truss R30 cavity R5 Sheath 36' Span | C177: 10-7A | D177: 0.0399
A178: 172 | B178: St Truss R38 cavity R5 Sheath 12' Span | C178: 10-7A | D178: 0.0501
A179: 173 | B179: St Truss R38 cavity R5 Sheath 14' Span | C179: 10-7A | D179: 0.0465
A180: 174 | B180: St Truss R38 cavity R5 Sheath 16' Span | C180: 10-7A | D180: 0.0438
A181: 175 | B181: St Truss R38 cavity R5 Sheath 18' Span | C181: 10-7A | D181: 0.0418
A182: 176 | B182: St Truss R38 cavity R5 Sheath 20' Span | C182: 10-7A | D182: 0.0401
A183: 177 | B183: St Truss R38 cavity R5 Sheath 22' Span | C183: 10-7A | D183: 0.0388
A184: 178 | B184: St Truss R38 cavity R5 Sheath 24' Span | C184: 10-7A | D184: 0.0376
A185: 179 | B185: St Truss R38 cavity R5 Sheath 26' Span | C185: 10-7A | D185: 0.0367
A186: 180 | B186: St Truss R38 cavity R5 Sheath 28' Span | C186: 10-7A | D186: 0.0359
A187: 181 | B187: St Truss R38 cavity R5 Sheath 30' Span | C187: 10-7A | D187: 0.0351
A188: 182 | B188: St Truss R38 cavity R5 Sheath 32' Span | C188: 10-7A | D188: 0.0345
A189: 183 | B189: St Truss R38 cavity R5 Sheath 34' Span | C189: 10-7A | D189: 0.034
A190: 184 | B190: St Truss R38 cavity R5 Sheath 36' Span | C190: 10-7A | D190: 0.0335
A191: 185 | B191: St Truss R49 cavity R5 Sheath 12' Span | C191: 10-7A | D191: 0.0446
A192: 186 | B192: St Truss R49 cavity R5 Sheath 14' Span | C192: 10-7A | D192: 0.041
A193: 187 | B193: St Truss R49 cavity R5 Sheath 16' Span | C193: 10-7A | D193: 0.0384
A194: 188 | B194: St Truss R49 cavity R5 Sheath 18' Span | C194: 10-7A | D194: 0.0363
A195: 189 | B195: St Truss R49 cavity R5 Sheath 20' Span | C195: 10-7A | D195: 0.0346
A196: 190 | B196: St Truss R49 cavity R5 Sheath 22' Span | C196: 10-7A | D196: 0.0333
A197: 191 | B197: St Truss R49 cavity R5 Sheath 24' Span | C197: 10-7A | D197: 0.0322
A198: 192 | B198: St Truss R49 cavity R5 Sheath 26' Span | C198: 10-7A | D198: 0.0312
A199: 193 | B199: St Truss R49 cavity R5 Sheath 28' Span | C199: 10-7A | D199: 0.0304
A200: 194 | B200: St Truss R49 cavity R5 Sheath 30' Span | C200: 10-7A | D200: 0.0297
A201: 195 | B201: St Truss R49 cavity R5 Sheath 32' Span | C201: 10-7A | D201: 0.0291
... 169 more rows

Sheet Walls(above grade) (hidden)
A1: Index | B1: Component Description | C1: Reference | D1: Wall U
A3: 1
A4: =A3+1 -> 2 | B4: === Most Frequently Used =========
A5: =A4+1 -> 3 | B5: R11 cavity+R0 foam STD 2X4W Lap | C5: 10-5 | D5: 0.088
A6: 4 | B6: R19 cavity+R0 foam STD 2X6W Lap | C6: 10-5 | D6: 0.062
A7: 5 | B7: R21 cavity+R0 foam INT 2X6W Lap (Code Target) | C7: 10-5 | D7: 0.054
A8: 6 | B8: R21 cavity+R0 foam INT 2X6W T111 (Code Target) | C8: 10-5 | D8: 0.056
A9: 7 | B9: R21 cavity+R4 foam INT 2X6W Lap (Option 1b) | C9: 10-5 | D9: 0.043
A10: 8 | B10: R21 cavity+R4 foam INT 2X6W T111 (Option 1b) | C10: 10-5 | D10: 0.045
A11: 9 | B11: R21 cavity+R5 foam INT 2X6W Lap | C11: 10-5 | D11: 0.041
A12: 10 | B12: R21 cavity+R5 foam INT 2X6W T111 | C12: 10-5 | D12: 0.042
A13: 11 | B13: R21 cavity+R12 foam INT 2X6W Lap (Option 1c) | C13: 10-5 | D13: 0.031
A14: 12 | B14: R21 cavity+R12 foam INT 2X6W T111 (Option 1c) | C14: 10-5 | D14: 0.032
A15: 13 | B15: ============================
A16: 14 | B16: R11 cavity+R0 foam STD 2X4W Lap | C16: 10-5 | D16: 0.088
A17: 15 | B17: R11 cavity+R0 foam ADV 2X4W Lap | C17: 10-5 | D17: 0.084
A18: 16 | B18: R11 cavity+R0 foam STD 2X4W T111 | C18: 10-5 | D18: 0.094
A19: 17 | B19: R11 cavity+R0 foam ADV 2X4W T111 | C19: 10-5 | D19: 0.09
A20: 18 | B20: R11 cavity+R1 foam STD 2X4W Lap | C20: 10-5 | D20: 0.08
A21: 19 | B21: R11 cavity+R1 foam ADV 2X4W Lap | C21: 10-5 | D21: 0.77
A22: 20 | B22: R11 cavity+R1 foam STD 2X4W T111 | C22: 10-5 | D22: 0.085
A23: 21 | B23: R11 cavity+R1 foam ADV 2X4W T111 | C23: 10-5 | D23: 0.082
A24: 22 | B24: R11 cavity+R2 foam STD 2X4W Lap | C24: 10-5 | D24: 0.074
A25: 23 | B25: R11 cavity+R2 foam ADV 2X4W Lap | C25: 10-5 | D25: 0.071
A26: 24 | B26: R11 cavity+R2 foam STD 2X4W T111 | C26: 10-5 | D26: 0.078
A27: 25 | B27: R11 cavity+R2 foam ADV 2X4W T111 | C27: 10-5 | D27: 0.075
A28: 26 | B28: R11 cavity+R3 foam STD 2X4W Lap | C28: 10-5 | D28: 0.069
A29: 27 | B29: R11 cavity+R3 foam ADV 2X4W Lap | C29: 10-5 | D29: 0.066
A30: 28 | B30: R11 cavity+R3 foam STD 2X4W T111 | C30: 10-5 | D30: 0.072
A31: 29 | B31: R11 cavity+R3 foam ADV 2X4W T111 | C31: 10-5 | D31: 0.07
A32: 30 | B32: R11 cavity+R4 foam STD 2X4W Lap | C32: 10-5 | D32: 0.064
A33: 31 | B33: R11 cavity+R4 foam ADV 2X4W Lap | C33: 10-5 | D33: 0.062
A34: 32 | B34: R11 cavity+R4 foam STD 2X4W T111 | C34: 10-5 | D34: 0.067
A35: 33 | B35: R11 cavity+R4 foam ADV 2X4W T111 | C35: 10-5 | D35: 0.065
A36: 34 | B36: R11 cavity+R5 foam STD 2X4W Lap | C36: 10-5 | D36: 0.06
A37: 35 | B37: R11 cavity+R5 foam ADV 2X4W Lap | C37: 10-5 | D37: 0.058
A38: 36 | B38: R11 cavity+R5 foam STD 2X4W T111 | C38: 10-5 | D38: 0.063
A39: 37 | B39: R11 cavity+R5 foam ADV 2X4W T111 | C39: 10-5 | D39: 0.061
A40: 38 | B40: R11 cavity+R6 foam STD 2X4W Lap | C40: 10-5 | D40: 0.056
A41: 39 | B41: R11 cavity+R6 foam ADV 2X4W Lap | C41: 10-5 | D41: 0.055
A42: 40 | B42: R11 cavity+R6 foam STD 2X4W T111 | C42: 10-5 | D42: 0.059
A43: 41 | B43: R11 cavity+R6 foam ADV 2X4W T111 | C43: 10-5 | D43: 0.057
A44: 42 | B44: R11 cavity+R7 foam STD 2X4W Lap | C44: 10-5 | D44: 0.053
A45: 43 | B45: R11 cavity+R7 foam ADV 2X4W Lap | C45: 10-5 | D45: 0.052
A46: 44 | B46: R11 cavity+R7 foam STD 2X4W T111 | C46: 10-5 | D46: 0.055
A47: 45 | B47: R11 cavity+R7 foam ADV 2X4W T111 | C47: 10-5 | D47: 0.054
A48: 46 | B48: R11 cavity+R8 foam STD 2X4W Lap | C48: 10-5 | D48: 0.051
A49: 47 | B49: R11 cavity+R8 foam ADV 2X4W Lap | C49: 10-5 | D49: 0.049
A50: 48 | B50: R11 cavity+R8 foam STD 2X4W T111 | C50: 10-5 | D50: 0.052
A51: 49 | B51: R11 cavity+R8 foam ADV 2X4W T111 | C51: 10-5 | D51: 0.051
A52: 50 | B52: R11 cavity+R9 foam STD 2X4W Lap | C52: 10-5 | D52: 0.048
A53: 51 | B53: R11 cavity+R9 foam ADV 2X4W Lap | C53: 10-5 | D53: 0.047
A54: 52 | B54: R11 cavity+R9 foam STD 2X4W T111 | C54: 10-5 | D54: 0.05
A55: 53 | B55: R11 cavity+R9 foam ADV 2X4W T111 | C55: 10-5 | D55: 0.049
A56: 54 | B56: R11 cavity+R10 foam STD 2X4W Lap | C56: 10-5 | D56: 0.046
A57: 55 | B57: R11 cavity+R10 foam ADV 2X4W Lap | C57: 10-5 | D57: 0.045
A58: 56 | B58: R11 cavity+R10 foam STD 2X4W T111 | C58: 10-5 | D58: 0.047
A59: 57 | B59: R11 cavity+R10 foam ADV 2X4W T111 | C59: 10-5 | D59: 0.046
A60: 58 | B60: R11 cavity+R11 foam STD 2X4W Lap | C60: 10-5 | D60: 0.044
A61: 59 | B61: R11 cavity+R11 foam ADV 2X4W Lap | C61: 10-5 | D61: 0.043
A62: 60 | B62: R11 cavity+R11 foam STD 2X4W T111 | C62: 10-5 | D62: 0.045
A63: 61 | B63: R11 cavity+R11 foam ADV 2X4W T111 | C63: 10-5 | D63: 0.044
A64: 62 | B64: R11 cavity+R12 foam STD 2X4W Lap | C64: 10-5 | D64: 0.042
A65: 63 | B65: R11 cavity+R12 foam ADV 2X4W Lap | C65: 10-5 | D65: 0.041
A66: 64 | B66: R11 cavity+R12 foam STD 2X4W T111 | C66: 10-5 | D66: 0.043
A67: 65 | B67: R11 cavity+R12 foam ADV 2X4W T111 | C67: 10-5 | D67: 0.042
A68: 66 | B68: R13 cavity+R0 foam STD 2X4W Lap | C68: 10-5 | D68: 0.082
A69: =A68+1 -> 67 | B69: R13 cavity+R0 foam ADV 2X4W Lap | C69: 10-5 | D69: 0.078
A70: 68 | B70: R13 cavity+R0 foam STD 2X4W T111 | C70: 10-5 | D70: 0.088
A71: 69 | B71: R13 cavity+R0 foam ADV 2X4W T111 | C71: 10-5 | D71: 0.083
A72: 70 | B72: R13 cavity+R1 foam STD 2X4W Lap | C72: 10-5 | D72: 0.075
A73: 71 | B73: R13 cavity+R1 foam ADV 2X4W Lap | C73: 10-5 | D73: 0.072
A74: 72 | B74: R13 cavity+R1 foam STD 2X4W T111 | C74: 10-5 | D74: 0.08
A75: 73 | B75: R13 cavity+R1 foam ADV 2X4W T111 | C75: 10-5 | D75: 0.076
A76: 74 | B76: R13 cavity+R2 foam STD 2X4W Lap | C76: 10-5 | D76: 0.069
A77: 75 | B77: R13 cavity+R2 foam ADV 2X4W Lap | C77: 10-5 | D77: 0.066
A78: 76 | B78: R13 cavity+R2 foam STD 2X4W T111 | C78: 10-5 | D78: 0.073
A79: 77 | B79: R13 cavity+R2 foam ADV 2X4W T111 | C79: 10-5 | D79: 0.07
A80: 78 | B80: R13 cavity+R3 foam STD 2X4W Lap | C80: 10-5 | D80: 0.065
A81: 79 | B81: R13 cavity+R3 foam ADV 2X4W Lap | C81: 10-5 | D81: 0.062
A82: 80 | B82: R13 cavity+R3 foam STD 2X4W T111 | C82: 10-5 | D82: 0.068
A83: 81 | B83: R13 cavity+R3 foam ADV 2X4W T111 | C83: 10-5 | D83: 0.065
A84: 82 | B84: R13 cavity+R4 foam STD 2X4W Lap | C84: 10-5 | D84: 0.06
A85: 83 | B85: R13 cavity+R4 foam ADV 2X4W Lap | C85: 10-5 | D85: 0.058
A86: 84 | B86: R13 cavity+R4 foam STD 2X4W T111 | C86: 10-5 | D86: 0.063
A87: 85 | B87: R13 cavity+R4 foam ADV 2X4W T111 | C87: 10-5 | D87: 0.061
A88: 86 | B88: R13 cavity+R5 foam STD 2X4W Lap | C88: 10-5 | D88: 0.057
A89: 87 | B89: R13 cavity+R5 foam ADV 2X4W Lap | C89: 10-5 | D89: 0.055
A90: 88 | B90: R13 cavity+R5 foam STD 2X4W T111 | C90: 10-5 | D90: 0.059
A91: 89 | B91: R13 cavity+R5 foam ADV 2X4W T111 | C91: 10-5 | D91: 0.057
A92: 90 | B92: R13 cavity+R6 foam STD 2X4W Lap | C92: 10-5 | D92: 0.053
A93: 91 | B93: R13 cavity+R6 foam ADV 2X4W Lap | C93: 10-5 | D93: 0.052
A94: 92 | B94: R13 cavity+R6 foam STD 2X4W T111 | C94: 10-5 | D94: 0.056
A95: 93 | B95: R13 cavity+R6 foam ADV 2X4W T111 | C95: 10-5 | D95: 0.054
A96: 94 | B96: R13 cavity+R7 foam STD 2X4W Lap | C96: 10-5 | D96: 0.051
A97: 95 | B97: R13 cavity+R7 foam ADV 2X4W Lap | C97: 10-5 | D97: 0.049
A98: 96 | B98: R13 cavity+R7 foam STD 2X4W T111 | C98: 10-5 | D98: 0.052
A99: 97 | B99: R13 cavity+R7 foam ADV 2X4W T111 | C99: 10-5 | D99: 0.051
A100: 98 | B100: R13 cavity+R8 foam STD 2X4W Lap | C100: 10-5 | D100: 0.048
A101: 99 | B101: R13 cavity+R8 foam ADV 2X4W Lap | C101: 10-5 | D101: 0.047
A102: 100 | B102: R13 cavity+R8 foam STD 2X4W T111 | C102: 10-5 | D102: 0.05
A103: 101 | B103: R13 cavity+R8 foam ADV 2X4W T111 | C103: 10-5 | D103: 0.048
A104: 102 | B104: R13 cavity+R9 foam STD 2X4W Lap | C104: 10-5 | D104: 0.046
A105: 103 | B105: R13 cavity+R9 foam ADV 2X4W Lap | C105: 10-5 | D105: 0.045
A106: 104 | B106: R13 cavity+R9 foam STD 2X4W T111 | C106: 10-5 | D106: 0.047
A107: 105 | B107: R13 cavity+R9 foam ADV 2X4W T111 | C107: 10-5 | D107: 0.046
A108: 106 | B108: R13 cavity+R10 foam STD 2X4W Lap | C108: 10-5 | D108: 0.044
A109: 107 | B109: R13 cavity+R10 foam ADV 2X4W Lap | C109: 10-5 | D109: 0.043
A110: 108 | B110: R13 cavity+R10 foam STD 2X4W T111 | C110: 10-5 | D110: 0.045
A111: 109 | B111: R13 cavity+R10 foam ADV 2X4W T111 | C111: 10-5 | D111: 0.044
A112: 110 | B112: R13 cavity+R11 foam STD 2X4W Lap | C112: 10-5 | D112: 0.042
A113: 111 | B113: R13 cavity+R11 foam ADV 2X4W Lap | C113: 10-5 | D113: 0.041
A114: 112 | B114: R13 cavity+R11 foam STD 2X4W T111 | C114: 10-5 | D114: 0.043
A115: 113 | B115: R13 cavity+R11 foam ADV 2X4W T111 | C115: 10-5 | D115: 0.042
A116: 114 | B116: R13 cavity+R12 foam STD 2X4W Lap | C116: 10-5 | D116: 0.04
A117: 115 | B117: R13 cavity+R12 foam ADV 2X4W Lap | C117: 10-5 | D117: 0.039
A118: 116 | B118: R13 cavity+R12 foam STD 2X4W T111 | C118: 10-5 | D118: 0.041
A119: 117 | B119: R13 cavity+R12 foam ADV 2X4W T111 | C119: 10-5 | D119: 0.04
A120: 118 | B120: R15 cavity+R0 foam STD 2X4W Lap | C120: 10-5 | D120: 0.076
A121: 119 | B121: R15 cavity+R0 foam ADV 2X4W Lap | C121: 10-5 | D121: 0.071
A122: 120 | B122: R15 cavity+R0 foam STD 2X4W T111 | C122: 10-5 | D122: 0.081
A123: 121 | B123: R15 cavity+R0 foam ADV 2X4W T111 | C123: 10-5 | D123: 0.075
A124: 122 | B124: R15 cavity+R1 foam STD 2X4W Lap | C124: 10-5 | D124: 0.069
A125: 123 | B125: R15 cavity+R1 foam ADV 2X4W Lap | C125: 10-5 | D125: 0.065
A126: 124 | B126: R15 cavity+R1 foam STD 2X4W T111 | C126: 10-5 | D126: 0.073
A127: 125 | B127: R15 cavity+R1 foam ADV 2X4W T111 | C127: 10-5 | D127: 0.069
A128: 126 | B128: R15 cavity+R2 foam STD 2X4W Lap | C128: 10-5 | D128: 0.064
A129: 127 | B129: R15 cavity+R2 foam ADV 2X4W Lap | C129: 10-5 | D129: 0.061
A130: 128 | B130: R15 cavity+R2 foam STD 2X4W T111 | C130: 10-5 | D130: 0.068
A131: 129 | B131: R15 cavity+R2 foam ADV 2X4W T111 | C131: 10-5 | D131: 0.069
A132: 130 | B132: R15 cavity+R3 foam STD 2X4W Lap | C132: 10-5 | D132: 0.06
A133: =A132+1 -> 131 | B133: R15 cavity+R3 foam ADV 2X4W Lap | C133: 10-5 | D133: 0.057
A134: 132 | B134: R15 cavity+R3 foam STD 2X4W T111 | C134: 10-5 | D134: 0.063
A135: 133 | B135: R15 cavity+R3 foam ADV 2X4W T111 | C135: 10-5 | D135: 0.059
A136: 134 | B136: R15 cavity+R4 foam STD 2X4W Lap | C136: 10-5 | D136: 0.056
A137: 135 | B137: R15 cavity+R4 foam ADV 2X4W Lap | C137: 10-5 | D137: 0.053
A138: 136 | B138: R15 cavity+R4 foam STD 2X4W T111 | C138: 10-5 | D138: 0.059
A139: 137 | B139: R15 cavity+R4 foam ADV 2X4W T111 | C139: 10-5 | D139: 0.056
A140: 138 | B140: R15 cavity+R5 foam STD 2X4W Lap | C140: 10-5 | D140: 0.053
A141: 139 | B141: R15 cavity+R5 foam ADV 2X4W Lap | C141: 10-5 | D141: 0.051
A142: 140 | B142: R15 cavity+R5 foam STD 2X4W T111 | C142: 10-5 | D142: 0.055
A143: 141 | B143: R15 cavity+R5 foam ADV 2X4W T111 | C143: 10-5 | D143: 0.052
A144: 142 | B144: R15 cavity+R6 foam STD 2X4W Lap | C144: 10-5 | D144: 0.05
A145: 143 | B145: R15 cavity+R6 foam ADV 2X4W Lap | C145: 10-5 | D145: 0.048
A146: 144 | B146: R15 cavity+R6 foam STD 2X4W T111 | C146: 10-5 | D146: 0.052
A147: 145 | B147: R15 cavity+R6 foam ADV 2X4W T111 | C147: 10-5 | D147: 0.05
A148: 146 | B148: R15 cavity+R7 foam STD 2X4W Lap | C148: 10-5 | D148: 0.047
A149: 147 | B149: R15 cavity+R7 foam ADV 2X4W Lap | C149: 10-5 | D149: 0.046
A150: 148 | B150: R15 cavity+R7 foam STD 2X4W T111 | C150: 10-5 | D150: 0.049
A151: 149 | B151: R15 cavity+R7 foam ADV 2X4W T111 | C151: 10-5 | D151: 0.047
A152: 150 | B152: R15 cavity+R8 foam STD 2X4W Lap | C152: 10-5 | D152: 0.045
A153: 151 | B153: R15 cavity+R8 foam ADV 2X4W Lap | C153: 10-5 | D153: 0.044
A154: 152 | B154: R15 cavity+R8 foam STD 2X4W T111 | C154: 10-5 | D154: 0.047
A155: 153 | B155: R15 cavity+R8 foam ADV 2X4W T111 | C155: 10-5 | D155: 0.045
A156: 154 | B156: R15 cavity+R9 foam STD 2X4W Lap | C156: 10-5 | D156: 0.043
A157: 155 | B157: R15 cavity+R9 foam ADV 2X4W Lap | C157: 10-5 | D157: 0.042
A158: 156 | B158: R15 cavity+R9 foam STD 2X4W T111 | C158: 10-5 | D158: 0.044
A159: 157 | B159: R15 cavity+R9 foam ADV 2X4W T111 | C159: 10-5 | D159: 0.043
A160: 158 | B160: R15 cavity+R10 foam STD 2X4W Lap | C160: 10-5 | D160: 0.041
A161: 159 | B161: R15 cavity+R10 foam ADV 2X4W Lap | C161: 10-5 | D161: 0.04
A162: 160 | B162: R15 cavity+R10 foam STD 2X4W T111 | C162: 10-5 | D162: 0.042
A163: 161 | B163: R15 cavity+R10 foam ADV 2X4W T111 | C163: 10-5 | D163: 0.041
A164: 162 | B164: R15 cavity+R11 foam STD 2X4W Lap | C164: 10-5 | D164: 0.039
A165: 163 | B165: R15 cavity+R11 foam ADV 2X4W Lap | C165: 10-5 | D165: 0.038
A166: 164 | B166: R15 cavity+R11 foam STD 2X4W T111 | C166: 10-5 | D166: 0.041
A167: 165 | B167: R15 cavity+R11 foam ADV 2X4W T111 | C167: 10-5 | D167: 0.039
A168: 166 | B168: R15 cavity+R12 foam STD 2X4W Lap | C168: 10-5 | D168: 0.038
A169: 167 | B169: R15 cavity+R12 foam ADV 2X4W Lap | C169: 10-5 | D169: 0.037
A170: 168 | B170: R15 cavity+R12 foam STD 2X4W T111 | C170: 10-5 | D170: 0.039
A171: 169 | B171: R15 cavity+R12 foam ADV 2X4W T111 | C171: 10-5 | D171: 0.038
A172: 170 | B172: R19 cavity+R0 foam STD 2X6W Lap | C172: 10-5 | D172: 0.062
A173: 171 | B173: R19 cavity+R0 foam INT 2X6W Lap | C173: 10-5 | D173: 0.058
A174: 172 | B174: R19 cavity+R0 foam ADV 2X6W Lap | C174: 10-5 | D174: 0.055
A175: 173 | B175: R19 cavity+R0 foam STD 2X6W T111 | C175: 10-5 | D175: 0.065
A176: 174 | B176: R19 cavity+R0 foam INT 2X6W T111 | C176: 10-5 | D176: 0.061
A177: 175 | B177: R19 cavity+R0 foam ADV 2X6W T111 | C177: 10-5 | D177: 0.058
A178: 176 | B178: R19 cavity+R1 foam STD 2X6W Lap | C178: 10-5 | D178: 0.058
A179: 177 | B179: R19 cavity+R1 foam INT 2X6W Lap | C179: 10-5 | D179: 0.055
A180: 178 | B180: R19 cavity+R1 foam ADV 2X6W Lap | C180: 10-5 | D180: 0.052
A181: 179 | B181: R19 cavity+R1 foam STD 2X6W T111 | C181: 10-5 | D181: 0.06
A182: 180 | B182: R19 cavity+R1 foam INT 2X6W T111 | C182: 10-5 | D182: 0.057
A183: 181 | B183: R19 cavity+R1 foam ADV 2X6W T111 | C183: 10-5 | D183: 0.055
A184: 182 | B184: R19 cavity+R2 foam STD 2X6W Lap | C184: 10-5 | D184: 0.054
A185: 183 | B185: R19 cavity+R2 foam INT 2X6W Lap | C185: 10-5 | D185: 0.052
A186: 184 | B186: R19 cavity+R2 foam ADV 2X6W Lap | C186: 10-5 | D186: 0.05
A187: 185 | B187: R19 cavity+R2 foam STD 2X6W T111 | C187: 10-5 | D187: 0.056
A188: 186 | B188: R19 cavity+R2 foam INT 2X6W T111 | C188: 10-5 | D188: 0.054
A189: 187 | B189: R19 cavity+R2 foam ADV 2X6W T111 | C189: 10-5 | D189: 0.051
A190: 188 | B190: R19 cavity+R3 foam STD 2X6W Lap | C190: 10-5 | D190: 0.051
A191: 189 | B191: R19 cavity+R3 foam INT 2X6W Lap | C191: 10-5 | D191: 0.049
A192: 190 | B192: R19 cavity+R3 foam ADV 2X6W Lap | C192: 10-5 | D192: 0.047
A193: 191 | B193: R19 cavity+R3 foam STD 2X6W T111 | C193: 10-5 | D193: 0.053
A194: 192 | B194: R19 cavity+R3 foam INT 2X6W T111 | C194: 10-5 | D194: 0.051
A195: 193 | B195: R19 cavity+R3 foam ADV 2X6W T111 | C195: 10-5 | D195: 0.049
A196: 194 | B196: R19 cavity+R4 foam STD 2X6W Lap | C196: 10-5 | D196: 0.048
A197: =A196+1 -> 195 | B197: R19 cavity+R4 foam INT 2X6W Lap | C197: 10-5 | D197: 0.046
A198: 196 | B198: R19 cavity+R4 foam ADV 2X6W Lap | C198: 10-5 | D198: 0.045
A199: 197 | B199: R19 cavity+R4 foam STD 2X6W T111 | C199: 10-5 | D199: 0.05
A200: 198 | B200: R19 cavity+R4 foam INT 2X6W T111 | C200: 10-5 | D200: 0.048
A201: 199 | B201: R19 cavity+R4 foam ADV 2X6W T111 | C201: 10-5 | D201: 0.046
... 742 more rows

Sheet Floors (hidden)
A1: Index | B1: Component Description | C1: Reference | D1: Floor U
A3: 1
A4: =A3+1 -> 2 | B4: === Most Frequently Used =========
A5: =A4+1 -> 3 | B5: R0 vented Joist 16oc | C5: 10-3 | D5: 0.134
A6: 4 | B6: R19 vented Joist 16oc | C6: 10-3 | D6: 0.041
A7: 5 | B7: R30 vented Joist 16oc (Code Target) | C7: 10-3 | D7: 0.029
A8: 6 | B8: R30 vented Post/Beam 48oc (Code Target) | C8: 10-3 | D8: 0.028
A9: 7 | B9: R38 vented Joist 16oc (Option 1a-1c) | C9: 10-3 | D9: 0.025
A10: 8 | B10: R38 vented Post/Beam 48oc (Option 1a-1c) | C10: 10-3 | D10: 0.024
A11: 9 | B11: ============================
A12: 10 | B12: R0 vented Joist 16oc | C12: 10-3 | D12: 0.134
A13: 11 | B13: R0 vented Post/Beam 48oc | C13: 10-3 | D13: 0.112
A14: 12 | B14: R11 vented Joist 16oc | C14: 10-3 | D14: 0.056
A15: 13 | B15: R11 vented Post/Beam 48oc | C15: 10-3 | D15: 0.052
A16: 14 | B16: R19 vented Joist 16oc | C16: 10-3 | D16: 0.041
A17: 15 | B17: R19 vented Post/Beam 48oc | C17: 10-3 | D17: 0.038
A18: 16 | B18: R22 vented Joist 16oc | C18: 10-3 | D18: 0.037
A19: 17 | B19: R22 vented Post/Beam 48oc | C19: 10-3 | D19: 0.034
A20: 18 | B20: R25 vented Joist 16oc | C20: 10-3 | D20: 0.034
A21: 19 | B21: R25 vented Post/Beam 48oc | C21: 10-3 | D21: 0.032
A22: 20 | B22: R30 vented Joist 16oc | C22: 10-3 | D22: 0.029
A23: 21 | B23: R30 vented Post/Beam 48oc | C23: 10-3 | D23: 0.028
A24: 22 | B24: R38 vented Joist 16oc | C24: 10-3 | D24: 0.025
A25: 23 | B25: R38 vented Post/Beam 48oc | C25: 10-3 | D25: 0.024
A26: 24 | B26: R11 perim vented Joist 16oc | C26: 10-3 | D26: 0.116
A27: 25 | B27: R11 perim vented Post/Beam 48oc | C27: 10-3 | D27: 0.1
A28: 26 | B28: R19 perim vented Joist 16oc | C28: 10-3 | D28: 0.114
A29: 27 | B29: R19 perim vented Post/Beam 48oc | C29: 10-3 | D29: 0.098
A30: 28 | B30: R30 perim vented Joist 16oc | C30: 10-3 | D30: 0.107
A31: 29 | B31: R30 perim vented Post/Beam 48oc | C31: 10-3 | D31: 0.093
A32: 30 | B32: R11 + R11 perim vented Joist 16oc | C32: 10-3 | D32: 0.052
A33: 31 | B33: R11 + R11 perim vented Post/Beam 48oc | C33: 10-3 | D33: 0.048
A34: 32 | B34: R19 + R11 perim vented Joist 16oc | C34: 10-3 | D34: 0.038
A35: 33 | B35: R19 + R11 perim vented Post/Beam 48oc | C35: 10-3 | D35: 0.036
A36: 34 | B36: R22 + R11 perim vented Joist 16oc | C36: 10-3 | D36: 0.035
A37: 35 | B37: R22 + R11 perim vented Post/Beam 48oc | C37: 10-3 | D37: 0.033
A38: 36 | B38: R25 + R11 perim vented Joist 16oc | C38: 10-3 | D38: 0.033
A39: 37 | B39: R25 + R11 perim vented Post/Beam 48oc | C39: 10-3 | D39: 0.031
A40: 38 | B40: R30 + R11 perim vented Joist 16oc | C40: 10-3 | D40: 0.028
A41: 39 | B41: R30 + R11 perim vented Post/Beam 48oc | C41: 10-3 | D41: 0.027
A42: 40 | B42: R38 + R11 perim vented Joist 16oc | C42: 10-3 | D42: 0.024
A43: 41 | B43: R38 + R11 perim vented Post/Beam 48oc | C43: 10-3 | D43: 0.024
A44: 42 | B44: R11 perim unvented Heated plenum | C44: 10-4 | D44: 0.085
A45: 43 | B45: R19 perim unvented Heated plenum | C45: 10-4 | D45: 0.075
A46: 44 | B46: R30 perim unvented Heated plenum | C46: 10-4 | D46: 0.069
A47: 45 | B47: 7.25" stress skin panel | C47: WSU | D47: 0.034
A48: 46 | B48: 9.25" stress skin panel | C48: WSU | D48: 0.028
A49: 47 | B49: 11.25" stress skin panel | C49: WSU | D49: 0.024
A50: 48 | B50: R11 Concrete Exposed | C50: 10-4A | D50: 0.077
A51: 49 | B51: R15 Concrete Exposed | C51: 10-4A | D51: 0.059
A52: 50 | B52: R19 Concrete Exposed | C52: 10-4A | D52: 0.048
A53: 51 | B53: R21 Concrete Exposed | C53: 10-4A | D53: 0.043
A54: 52 | B54: R25 Concrete Exposed | C54: 10-4A | D54: 0.037
A55: 53 | B55: R30 Concrete Exposed | C55: 10-4A | D55: 0.031
A56: 54 | B56: R38 Concrete Exposed | C56: 10-4A | D56: 0.025
A57: 55 | B57: R11 Wood Joist Exposed | C57: 10-4A | D57: 0.088
A58: 56 | B58: R15 Wood Joist Exposed | C58: 10-4A | D58: 0.076
A59: 57 | B59: R19 Wood Joist Exposed | C59: 10-4A | D59: 0.062
A60: 58 | B60: R21 Wood Joist Exposed | C60: 10-4A | D60: 0.057
A61: 59 | B61: R30 Wood Joist Exposed | C61: 10-4A | D61: 0.051
A62: 60 | B62: R38 Wood Joist Exposed | C62: 10-4A | D62: 0.04
A63: 61 | B63: R25 Wood Joist Exposed | C63: 10-4A | D63: 0.034
A64: 62 | B64: R11 Metal Joist Exposed | C64: 10-4A | D64: 0.14
A65: 63 | B65: R15 Metal Joist Exposed | C65: 10-4A | D65: 0.12
A66: 64 | B66: R19 Metal Joist Exposed | C66: 10-4A | D66: 0.11
A67: 65 | B67: R21 Metal Joist Exposed | C67: 10-4A | D67: 0.11
A68: 66 | B68: R25 Metal Joist Exposed | C68: 10-4A | D68: 0.1
A69: 67 | B69: R30 Metal Joist Exposed | C69: 10-4A | D69: 0.09
A70: =A69+1 -> 68 | B70: R38 Metal Joist Exposed | C70: 10-4A | D70: 0.08
A71: 69 | B71: ='Flat-Vaulted Ceilings'!$B$330 -> == Custom Entries per WSEC R402.1.5 U-factor Reference and Calculations ======== | E71: Notes
A72: 70 | B72: R48 vented Joist 16oc | C72: Custom | D72: 0.02 | F72: =IF(AND(B73<>"",B72=""),"Don't skip lines",IF(AND(D72="",B72<>""),"Enter U-value",IF(AND(D72<>"",B72=""),"Enter Description",""))) -> 
A73: 71 | C73: Custom
A74: 72 | C74: Custom
A75: 73 | C75: Custom
A76: 74 | C76: Custom
A77: 75 | C77: Custom
A78: =A77+1 -> 76 | C78: Custom
A79: 77 | C79: Custom
A80: 78 | C80: Custom
A81: 79 | C81: Custom
A82: 80 | C82: Custom
A83: 81 | C83: Custom
A84: 82 | C84: Custom
A85: 83 | C85: Custom
A86: 84 | C86: Custom
A87: 85 | C87: Custom
A88: 86 | C88: Custom
A89: 87 | C89: Custom
A90: 88 | C90: Custom
A91: 89 | C91: Custom
A92: 90 | C92: Custom
A93: 91 | C93: Custom
A94: 92 | C94: Custom
A95: 93 | C95: Custom
A96: 94 | C96: Custom
A97: 95 | C97: Custom
A98: 96 | C98: Custom
A99: 97 | C99: Custom
A100: 98 | C100: Custom
A101: 99 | C101: Custom
A102: 100 | C102: Custom
A103: 101 | C103: Custom
A104: 102 | C104: Custom
A105: 103 | C105: Custom
A106: 104 | C106: Custom
A107: 105 | C107: Custom
A108: 106 | C108: Custom
A109: 107 | C109: Custom
A110: 108 | C110: Custom
A111: 109 | C111: Custom

Sheet Slab on Grade (hidden)
A1: Index | B1: Component Description | C1: Reference | D1: Floor F
A3: 1
A4: =A3+1 -> 2 | B4: === Most Frequently Used =========
A5: =A4+1 -> 3 | B5: R0 uninsulated | C5: 10-2 | D5: 0.73
A6: 4 | B6: R10 2' vertical (Code Target) | C6: 10-2 | D6: 0.54
B7: R-7.5 On top of slab (Existing slab conversion only) | C7: Footnote, Table 402 | D7: 0.54
A8: =A6+1 -> 5 | B8: R10 Fully insulated Heated (Code Target) | C8: 10-2 | D8: 0.55
A9: 6 | B9: R10 Fully insulated (Option 1a-1c) | C9: 10-2 | D9: 0.36
A10: 7 | B10: R20 Fully insulated (Option 1.6) | C10: Table A6.3, ASHRAE 90.1 | D10: 0.261
A11: 8 | B11: ============================
A12: 9 | B12: R0 uninsulated | C12: 10-2 | D12: 0.73
A13: 10 | B13: R5 2' horizontal | C13: 10-2 | D13: 0.7
A14: 11 | B14: R7.5 2' horizontal | C14: 10-2 | D14: 0.7
A15: 12 | B15: R10 2' horizontal | C15: 10-2 | D15: 0.7
A16: 13 | B16: R15 2' horizontal | C16: 10-2 | D16: 0.69
A17: 14 | B17: R5 4' horizontal | C17: 10-2 | D17: 0.67
A18: 15 | B18: R7.5 4' horizontal | C18: WSU | D18: 0.655
A19: 16 | B19: R10 4' horizontal | C19: 10-2 | D19: 0.64
A20: 17 | B20: R15 4' horizontal | C20: 10-2 | D20: 0.63
A21: 18 | B21: R5 2' vertical | C21: 10-2 | D21: 0.58
A22: 19 | B22: R7.5 2' vertical | C22: WSU | D22: 0.56
A23: 20 | B23: R10 2' vertical | C23: 10-2 | D23: 0.54
A24: 21 | B24: R15 2' vertical | C24: 10-2 | D24: 0.52
A25: 22 | B25: R5 4' vertical | C25: 10-2 | D25: 0.54
A26: 23 | B26: R7.5 4' vertical | C26: WSU | D26: 0.51
A27: 24 | B27: R10 4' vertical | C27: 10-2 | D27: 0.48
A28: 25 | B28: R15 4' vertical | C28: 10-2 | D28: 0.45
A29: 26 | B29: R5 2' horizontal w/TB | C29: WSU | D29: 0.58
A30: 27 | B30: R7.5 2' horizontal w/TB | C30: WSU | D30: 0.56
A31: 28 | B31: R10 2' horizontal w/TB | C31: WSU | D31: 0.54
A32: 29 | B32: R15 2' horizontal w/TB | C32: WSU | D32: 0.52
A33: 30 | B33: R5 4' horizontal w/TB | C33: WSU | D33: 0.54
A34: 31 | B34: R7.5 4' horizontal w/TB | C34: WSU | D34: 0.51
A35: 32 | B35: R10 4' horizontal w/TB | C35: WSU | D35: 0.48
A36: 33 | B36: R15 4' horizontal w/TB | C36: WSU | D36: 0.45
A37: 34 | B37: R5 Fully insulated | C37: WSU | D37: 0.46
A38: 35 | B38: R10 Fully insulated | C38: 10-2 | D38: 0.36
A39: 36 | B39: R15 Fully insulated | C39: WSU | D39: 0.3
A40: 37 | B40: R20 Fully insulated | C40: Table A6.3, ASHRAE 90.1 | D40: 0.261 | E40: Added 2020
A41: 38 | B41: R25 Fully insulated | C41: Table A6.3, ASHRAE 90.1 | D41: 0.233 | E41: Added 2020
A42: 39 | B42: R30 Fully insulated | C42: Table A6.3, ASHRAE 90.1 | D42: 0.213 | E42: Added 2020
A43: 40 | B43: R35 Fully insulated | C43: Table A6.3, ASHRAE 90.1 | D43: 0.198 | E43: Added 2020
A44: 41 | B44: R40 Fully insulated | C44: Table A6.3, ASHRAE 90.1 | D44: 0.186 | E44: Added 2020
A45: 42 | B45: R45 Fully insulated | C45: Table A6.3, ASHRAE 90.1 | D45: 0.176 | E45: Added 2020
A46: 43 | B46: R50 Fully insulated | C46: Table A6.3, ASHRAE 90.1 | D46: 0.168 | E46: Added 2020
A47: 44 | B47: R10 2' perim/R5 center | C47: WSU | D47: 0.42
A48: 45 | B48: R15 2' perim/R5 center | C48: WSU | D48: 0.4
A49: 46 | B49: R15 2' perim/R10 center | C49: WSU | D49: 0.34
A50: 47 | B50: R0 Uninsulated Heated | C50: 10-2 | D50: 0.84
A51: 48 | B51: R5 Fully insulated Heated | C51: 10-2 | D51: 0.74
A52: 49 | B52: R10 Fully insulated Heated | C52: 10-2 | D52: 0.55
A53: 50 | B53: R15 Fully insulated Heated | C53: 10-2 | D53: 0.44
A54: 51 | B54: R20 Fully insulated Heated | C54: Table A6.3, ASHRAE 90.1 | D54: 0.373 | E54: Added 2020
A55: 52 | B55: R25 Fully insulated Heated | C55: Table A6.3, ASHRAE 90.1 | D55: 0.326 | E55: Added 2020
A56: 53 | B56: R30 Fully insulated Heated | C56: Table A6.3, ASHRAE 90.1 | D56: 0.296 | E56: Added 2020
A57: 54 | B57: R35 Fully insulated Heated | C57: Table A6.3, ASHRAE 90.1 | D57: 0.273 | E57: Added 2020
A58: 55 | B58: R40 Fully insulated Heated | C58: Table A6.3, ASHRAE 90.1 | D58: 0.255 | E58: Added 2020
A59: 56 | B59: R45 Fully insulated Heated | C59: Table A6.3, ASHRAE 90.1 | D59: 0.239 | E59: Added 2020
A60: 57 | B60: R50 Fully insulated Heated | C60: Table A6.3, ASHRAE 90.1 | D60: 0.227 | E60: Added 2020
A61: 58 | B61: R10 perim/R5 center Heated | C61: 10-2 | D61: 0.66
A62: 59 | B62: R15 perim/R5 center Heated | C62: 10-2 | D62: 0.62
A63: 60 | B63: R15 perim/R10 center Heated | C63: 10-2 | D63: 0.51
A64: 61 | B64: R10 3' vertical Heated | C64: 10-2 | D64: 0.78
A65: 62 | B65: ='Flat-Vaulted Ceilings'!$B$330 -> == Custom Entries per WSEC R402.1.5 U-factor Reference and Calculations ======== | E65: Notes | I65: CALCUALTOR 1: Calculate F-value of unheated fully insulated slab from R-value of insulation
A66: 63 | B66: =K67 -> R-7.5 fully insulated unheated (est from ASHRAE 90.1 fit | C66: Custom | D66: =J67 -> 0.4037616809 | E66: Estimated from ASHRAE 90.1 | F66: =IF(AND(B67<>"",B66=""),"Don't skip lines",IF(AND(D66="",B66<>""),"Enter U-value",IF(AND(D66<>"",B66=""),"Enter Description",""))) ->  | I66: R-value | J66: F-value
A67: 64 | C67: Custom | I67: 7.5 | J67: =IF(I67="","-",-0.0000000135*I67^5 + 0.0000022123*I67^4 - 0.0001389239*I67^3 + 0.0042308151*I67^2 - 0.067716536*I67 + 0.7255813777) -> 0.4037616809 | K67: =IF(I67="","-",CONCATENATE("R-",ROUND(I67,2)," fully insulated unheated (est from ASHRAE 90.1 fit")) -> R-7.5 fully insulated unheated (est from ASHRAE 90.1 fit
A68: 65 | C68: Custom | J68: =IF(I68="","-",-0.0000000135*I68^5 + 0.0000022123*I68^4 - 0.0001389239*I68^3 + 0.0042308151*I68^2 - 0.067716536*I68 + 0.7255813777) -> - | K68: =IF(I68="","-",CONCATENATE("R-",ROUND(I68,2)," fully insulated unheated (est from ASHRAE 90.1 fit")) -> -
A69: 66 | C69: Custom
A70: 67 | C70: Custom
A71: 68 | C71: Custom
A72: 69 | C72: Custom
A73: 70 | C73: Custom
A74: 71 | C74: Custom
A75: 72 | C75: Custom
A76: 73 | C76: Custom
A77: 74 | C77: Custom

Sheet Below Grade Walls & Slabs (hidden)
A1: Index | B1: Component Description | C1: Reference | D1: Wall U | E1: Slab F
A2: 1
A3: =A2+1 -> 2 | B3: === Most Frequently Used =========
A4: =A3+1 -> 3 | B4: R0 Uninsulated 2' depth | C4: 10-1 | D4: 0.35 | E4: 0.59
A5: 4 | B5: R0 Uninsulated 3.5' depth | C5: 10-1 | D5: 0.278 | E5: 0.53
A6: 5 | B6: R0 Uninsulated 7' depth | C6: 10-1 | D6: 0.193 | E6: 0.46
A7: 6 | B7: R11 Batt 7' depth | C7: 10-1 | D7: 0.054 | E7: 0.56
A8: 7 | B8: R11 Batt 7' depth w/TB (Code Target) | C8: 10-1 | D8: 0.056 | E8: 0.42
A9: 8 | B9: R10 Foam Ext 7' depth (Code Target) | C9: 10-1 | D9: 0.056 | E9: 0.42
A10: 9 | B10: R12 Foam Ext 7' depth | C10: 10-1 | D10: 0.05 | E10: 0.42
A11: 10 | B11: R10 Perimeter 7' depth w/TB, R10 Full Underslab (Option 1a-1c) | C11: Baylon & Kennedy, https://web.ornl.gov/sci/buildings/conf-archive/2007%20B10%20papers/092_Baylon.pdf | D11: 0.055 | E11: 0.293 | F11: Added 2020
A12: 11 | B12: R21 Batt + R5 ci 7' depth R10 Fully Underslab (Option 1.4) | C12: Baylon & Kennedy, https://web.ornl.gov/sci/buildings/conf-archive/2007%20B10%20papers/092_Baylon.pdf | D12: 0.029 | E12: 0.307 | F12: Added 2020
A13: 12 | B13: R20 Perimeter 7' depth w/TB, R10 Full Underslab (Opton 1.6 estimated) | C13: Baylon & Kennedy, https://web.ornl.gov/sci/buildings/conf-archive/2007%20B10%20papers/092_Baylon.pdf | D13: 0.034 | E13: 0.304 | F13: Added 2020
A14: 13 | B14: ============================
A15: 14 | B15: R0 Uninsulated 2' depth | C15: 10-1 | D15: 0.35 | E15: 0.59
A16: 15 | B16: R11 Batt 2' depth | C16: 10-1 | D16: 0.066 | E16: 0.68
A17: 16 | B17: R11 Batt 2' depth w/TB | C17: 10-1 | D17: 0.07 | E17: 0.6
A18: 17 | B18: R11 Batt + R5 ci 2' depth w/TB | C18: Baylon & Kennedy, https://web.ornl.gov/sci/buildings/conf-archive/2007%20B10%20papers/092_Baylon.pdf | D18: 0.046 | E18: 0.59 | F18: Added 2020
A19: 18 | B19: R11 Batt + R5 ci 2' depth R10 Fully Underslab | C19: Baylon & Kennedy, https://web.ornl.gov/sci/buildings/conf-archive/2007%20B10%20papers/092_Baylon.pdf | D19: 0.048 | E19: 0.348 | F19: Added 2020
A20: 19 | B20: R10 Perimeter 2' depth w/TB, R10 Full Underslab | C20: Baylon & Kennedy, https://web.ornl.gov/sci/buildings/conf-archive/2007%20B10%20papers/092_Baylon.pdf | D20: 0.068 | E20: 0.345
A21: 20 | B21: R13 Batt 2' depth | C21: WSU | D21: 0.056 | E21: 0.673
A22: 21 | B22: R13 Batt 2' depth w/TB | C22: WSU | D22: 0.059 | E22: 0.588
A23: 22 | B23: R19 Batt 2' depth | C23: 10-1 | D23: 0.043 | E23: 0.69
A24: 23 | B24: R19 Batt 2' depth w/TB | C24: 10-1 | D24: 0.045 | E24: 0.61
A25: 24 | B25: R21 Batt 2' depth | C25: WSU | D25: 0.04 | E25: 0.679
A26: 25 | B26: R21 Batt 2' depth w/TB | C26: WSU | D26: 0.042 | E26: 0.592
A27: 26 | B27: R21 Batt + R5 ci 2' depth R10 Fully Underslab | C27: Baylon & Kennedy, https://web.ornl.gov/sci/buildings/conf-archive/2007%20B10%20papers/092_Baylon.pdf | D27: 0.031 | E27: 0.35 | F27: Added 2020
A28: =A27+1 -> 27 | B28: R25 Batt 2' depth w/TB | C28: Baylon & Kennedy, https://web.ornl.gov/sci/buildings/conf-archive/2007%20B10%20papers/092_Baylon.pdf | D28: 0.038 | E28: 0.593 | F28: Added 2020
A29: 28 | B29: R25 Batt 2' depth w/TB, R10 Full Underslab | C29: Baylon & Kennedy, https://web.ornl.gov/sci/buildings/conf-archive/2007%20B10%20papers/092_Baylon.pdf | D29: 0.04 | E29: 0.35 | F29: Added 2020
A30: 29 | B30: R20 perimeter, 2' depth w/TB, R10 Full Underslab | C30: Baylon & Kennedy, https://web.ornl.gov/sci/buildings/conf-archive/2007%20B10%20papers/092_Baylon.pdf | D30: 0.04 | E30: 0.35 | F30: Added 2020
A31: 30 | B31: R10 Foam Ext 2' depth | C31: 10-1 | D31: 0.07 | E31: 0.6
A32: 31 | B32: R12 Foam Ext 2' depth | C32: 10-1 | D32: 0.061 | E32: 0.6
A33: 32 | B33: R10 Perimeter 2' depth w/TB, R10 Full Underslab | C33: Baylon & Kennedy, https://web.ornl.gov/sci/buildings/conf-archive/2007%20B10%20papers/092_Baylon.pdf | D33: 0.068 | E33: 0.345 | F33: Added 2020
A34: =A33+1 -> 33 | B34: R0 Uninsulated 3.5' depth | C34: 10-1 | D34: 0.278 | E34: 0.53
A35: 34 | B35: R11 Batt 3.5' depth | C35: 10-1 | D35: 0.062 | E35: 0.63
A36: 35 | B36: R11 Batt 3.5' depth w/TB | C36: 10-1 | D36: 0.064 | E36: 0.57
A37: 36 | B37: R11 Batt + R5 ci 3.5' depth w/TB | D37: 0.043 | E37: 0.553 | F37: Added 2020
A38: 37 | B38: R11 Batt + R5 ci 3.5' depth R10 Fully Underslab | C38: Baylon & Kennedy, https://web.ornl.gov/sci/buildings/conf-archive/2007%20B10%20papers/092_Baylon.pdf | D38: 0.045 | E38: 0.329 | F38: Added 2020
A39: 38 | B39: R13 Batt 3.5' depth | C39: WSU | D39: 0.053 | E39: 0.618
A40: 39 | B40: R13 Batt 3.5' depth w/TB | C40: WSU | D40: 0.055 | E40: 0.548 | N40: Figures from: Baylon & Kennedy, https://web.ornl.gov/sci/buildings/conf-archive/2007%20B10%20papers/092_Baylon.pdf
A41: 40 | B41: R19 Batt 3.5' depth | C41: 10-1 | D41: 0.041 | E41: 0.64
A42: 41 | B42: R19 Batt 3.5' depth w/TB | C42: 10-1 | D42: 0.042 | E42: 0.57
A43: 42 | B43: R21 Batt 3.5' depth | C43: WSU | D43: 0.038 | E43: 0.627
A44: 43 | B44: R21 Batt 3.5' depth w/TB | C44: WSU | D44: 0.04 | E44: 0.556 | P44: 0.038 | Q44: 0.499 | S44: 0.04 | T44: 0.301
A45: 44 | B45: R21 Batt + R5 ci 3.5' depth R10 Fully Underslab | C45: Baylon & Kennedy, https://web.ornl.gov/sci/buildings/conf-archive/2007%20B10%20papers/092_Baylon.pdf | D45: 0.032 | E45: 0.333 | F45: Added 2020
A46: 45 | B46: R25 Batt 3.5' depth w/TB | C46: Baylon & Kennedy, https://web.ornl.gov/sci/buildings/conf-archive/2007%20B10%20papers/092_Baylon.pdf | D46: 0.036 | E46: 0.557 | F46: Added 2020
A47: 46 | B47: R25 Batt 3.5' depth w/TB, R10 Full Underslab | C47: Baylon & Kennedy, https://web.ornl.gov/sci/buildings/conf-archive/2007%20B10%20papers/092_Baylon.pdf | D47: 0.038 | E47: 0.331 | F47: Added 2020
A48: 47 | B48: R-20 perimeter, 3.5' depth w/TB, R10 Full Underslab | C48: Baylon & Kennedy, https://web.ornl.gov/sci/buildings/conf-archive/2007%20B10%20papers/092_Baylon.pdf | D48: 0.038 | E48: 0.331 | F48: Added 2020
A49: 48 | B49: R10 Foam Ext 3.5' depth | C49: 10-1 | D49: 0.064 | E49: 0.57
A50: 49 | B50: R12 Foam Ext 3.5' depth | C50: 10-1 | D50: 0.057 | E50: 0.57
A51: 50 | B51: R10 Perimeter 3.5' depth w/TB, R10 Full Underslab | C51: Baylon & Kennedy, https://web.ornl.gov/sci/buildings/conf-archive/2007%20B10%20papers/092_Baylon.pdf | D51: 0.064 | E51: 0.324 | F51: Added 2020
A52: 51 | B52: R0 Uninsulated 7' depth | C52: 10-1 | D52: 0.193 | E52: 0.46
A53: 52 | B53: R11 Batt 7' depth | C53: 10-1 | D53: 0.054 | E53: 0.56
A54: 53 | B54: R11 Batt 7' depth w/TB | C54: 10-1 | D54: 0.056 | E54: 0.42
A55: 54 | B55: R11 Batt + R5 ci 7' depth w/TB | C55: Baylon & Kennedy, https://web.ornl.gov/sci/buildings/conf-archive/2007%20B10%20papers/092_Baylon.pdf | D55: 0.038 | E55: 0.499 | F55: Added 2020
A56: 55 | B56: R11 Batt + R5 ci 7' depth R10 Fully Underslab | C56: Baylon & Kennedy, https://web.ornl.gov/sci/buildings/conf-archive/2007%20B10%20papers/092_Baylon.pdf | D56: 0.04 | E56: 0.301 | F56: Added 2020
A57: 56 | B57: R13 Batt 7' depth | C57: WSU | D57: 0.046 | E57: 0.545
A58: 57 | B58: R13 Batt 7' depth w/TB | C58: WSU | D58: 0.048 | E58: 0.493
A59: 58 | B59: R19 Batt 7' depth | C59: 10-1 | D59: 0.037 | E59: 0.57
A60: 59 | B60: R19 Batt 7' depth w/TB | C60: 10-1 | D60: 0.038 | E60: 0.43
A61: 60 | B61: R21 Batt 7' depth | C61: WSU | D61: 0.034 | E61: 0.557
A62: 61 | B62: R21 Batt 7' depth w/TB | C62: Baylon & Kennedy, https://web.ornl.gov/sci/buildings/conf-archive/2007%20B10%20papers/092_Baylon.pdf | D62: 0.035 | E62: 0.503
A63: 62 | B63: R21 Batt + R5 ci 7' depth R10 Fully Underslab | C63: Baylon & Kennedy, https://web.ornl.gov/sci/buildings/conf-archive/2007%20B10%20papers/092_Baylon.pdf | D63: 0.029 | E63: 0.307 | F63: Added 2020
A64: 63 | B64: R25 Batt 7' depth w/TB | C64: Baylon & Kennedy, https://web.ornl.gov/sci/buildings/conf-archive/2007%20B10%20papers/092_Baylon.pdf | D64: 0.032 | E64: 0.505 | F64: Added 2020
A65: 64 | B65: R25 Batt 7' depth w/TB, R10 Full Underslab | C65: Baylon & Kennedy, https://web.ornl.gov/sci/buildings/conf-archive/2007%20B10%20papers/092_Baylon.pdf | D65: 0.034 | E65: 0.304 | F65: Added 2020
A66: 65 | B66: R20 Perimeter 7' depth w/TB, R10 Full Underslab | C66: Baylon & Kennedy, https://web.ornl.gov/sci/buildings/conf-archive/2007%20B10%20papers/092_Baylon.pdf | D66: 0.034 | E66: 0.304 | F66: Added 2020
A67: 66 | B67: R21 Batt 7' depth w/TB | C67: WSU | D67: 0.035 | E67: 0.503
A68: 67 | B68: R10 Foam Ext 7' depth | C68: 10-1 | D68: 0.056 | E68: 0.42
A69: 68 | B69: R12 Foam Ext 7' depth | C69: 10-1 | D69: 0.05 | E69: 0.42
A70: 69 | B70: R10 Perimeter 7' depth w/TB, R10 Full Underslab | C70: Baylon & Kennedy, https://web.ornl.gov/sci/buildings/conf-archive/2007%20B10%20papers/092_Baylon.pdf | D70: 0.055 | E70: 0.293 | F70: Added 2020
A71: 70 | B71: ='Flat-Vaulted Ceilings'!$B$330 -> == Custom Entries per WSEC R402.1.5 U-factor Reference and Calculations ======== | D71: Wall U | E71: Slab F | F71: Notes
A72: 71 | C72: Custom | G72: =IF(AND(B73<>"",B72=""),"Don't skip lines",IF(AND(OR(E72="",D72=""),B72<>""),"Enter U- and F-values",IF(AND(OR(E72<>"",D72<>""),B72=""),"Enter Description",""))) -> 
A73: 72 | C73: Custom
A74: 73 | C74: Custom
A75: 74 | C75: Custom
A76: 75 | C76: Custom
A77: 76 | C77: Custom
A78: 77 | C78: Custom
A79: 78 | C79: Custom

Sheet Table 406.2 (WSEC 2015) (hidden)
A1: SECTION R406
A3: R406.1 Scope. This section establishes options for additional criteria to be met for one- and two-family dwellings and townhouses, as defined in Section 101.2 of the International Residential Code to demonstrate compliance with this code.
A5: R406.2 Additional energy efficiency requirements (Mandatory). Each dwelling unit in a residential building shall comply with sufficient options from Table R406.2 so as to achieve the following minimum number of credits:
A6: 1. Small Dwelling Unit: | B6: 1.5 credits
A7: Dwelling units less than 1500 square feet in conditioned floor area with less than 300 square feet of fenestration area.
A8: Additions to existing building greater than 500 square feet of heated floor area but less than 1500 square feet.
A9: 2. Medium Dwelling Unit: | B9: 3.5 credits
A10: All dwelling units that are not included in #1 or #3.
A11: Exception: Dwelling units serving R-2 occupancies shall require 2.5 credits.
A12: 3. Large Dwelling Unit: | B12: 4.5 credits
A13: Dwelling units exceeding 5000 square feet of conditioned floor area.
A14: Exception: Dwelling units serving R-2 occupancies shall require 2.5 credits.
A15: 4. Additions less than 500 square feet: | B15: 0.5 credits
A17: The drawings included with the building permit application shall identify which options have been selected and the point value of each option, regardless of whether separate mechanical, plumbing, electrical, or other permits are utilized for the project.
A18: 1a | B18: EFFICIENT BUILDING ENVELOPE 1a: | C18: 0.5
B19: Prescriptive compliance is based on Table R402.1.1 with the following modifications:
B20: Vertical fenestration U = 0.28
B21: Floor R-38
B22: Slab on grade R-10 perimeter and under entire slab
B23: Below grade slab R-10 perimeter and under entire slab
B24: or
B25: Compliance based on Section R402.1.4: Reduce the Total UA by 5%.
A26: 1b | B26: EFFICIENT BUILDING ENVELOPE 1b: | C26: 1
B27: Prescriptive compliance is based on Table R402.1.1 with the following modifications:
B28: Vertical fenestration U = 0.25
B29: Wall R-21 plus R-4
B30: Floor R-38
B31: Basement wall R-21 int plus R-5 ci
B32: Slab on grade R-10 perimeter and under entire slab
B33: Below grade slab R-10 perimeter and under entire slab
B34: or
B35: Compliance based on Section R402.1.4: Reduce the Total UA by 15%.
A36: 1c | B36: EFFICIENT BUILDING ENVELOPE 1c: | C36: 2
B37: Prescriptive compliance is based on Table R402.1.1 with the following modifications: Vertical fenestration U = 0.22
B38: Ceiling and single-rafter or joist-vaulted R-49 advanced
B39: Wood frame wall R-21 int plus R-12 ci
B40: Floor R-38
B41: Basement wall R-21 int plus R-12 ci
B42: Slab on grade R-10 perimeter and under entire slab
B43: Below grade slab R-10 perimeter and under entire slab
B44: or
B45: Compliance based on Section R402.1.4: Reduce the Total UA by 30%.
A46: 1da | B46: EFFICIENT BUILDING ENVELOPE 1d: | C46: 0.5
B47: Prescriptive compliance is based on Table R402.1.1 with the following modifications:
B48: Vertical fenestration U = 0.24
A49: 2a | B49: AIR LEAKAGE CONTROL AND EFFICIENT VENTILATION 2a: | C49: 0.5
B50: Compliance based on R402.4.1.2: Reduce the tested air leakage to 3.0 air changes per hour maximum
B51: and
B52: All whole house ventilation requirements as determined by Section M1507.3 of the International Residential Code shall be met with a high efficiency fan (maximum 0.35 watts/cfm), not interlocked with the furnace fan. Ventilation systems using a furnace including an ECM motor are allowed, provided that they are controlled to operate at low speed in ventilation only mode.
B53: To qualify to claim this credit, the building permit drawings shall specify the option being selected and shall specify the maximum tested building air leakage and shall show the qualifying ventilation system.
A54: 2b | B54: AIR LEAKAGE CONTROL AND EFFICIENT VENTILATION 2b: | C54: 1
B55: Compliance based on Section R402.4.1.2: Reduce the tested air leakage to 2.0 air changes per hour maximum
B56: and
B57: All whole house ventilation requirements as determined by Section M1507.3 of the International Residential Code shall be met with a heat recovery ventilation system with minimum sensible heat recovery efficiency of 0.70.
B58: To qualify to claim this credit, the building permit drawings shall specify the option being selected and shall specify the maximum tested building air leakage and shall show the heat recovery ventilation system.
A59: 2c | B59: AIR LEAKAGE CONTROL AND EFFICIENT VENTILATION 2c: | C59: 1.5
B60: Compliance based on Section R402.4.1.2: Reduce the tested air leakage to 1.5 air changes per hour maximum
B61: and
B62: All whole house ventilation requirements as determined by Section M1507.3 of the International Residential Code shall be met with a heat recovery ventilation system with minimum sensible heat recovery efficiency of 0.85.
B63: To qualify to claim this credit, the building permit drawings shall specify the option being selected and shall specify the maximum tested building air leakage and shall show the heat recovery ventilation system.
A64: 3ab | B64: HIGH EFFICIENCY HVAC EQUIPMENT 3a: | C64: 1
B65: Gas, propane or oil-fired furnace with minimum AFUE of 94%, or
B66: Gas, propane or oiled-fired boiler with minimum AFUE of 92%
B67: To qualify to claim this credit, the building permit drawings shall specify the option being selected and shall specify the heating equipment type and the minimum equipment efficiency.
A68: 3bb | B68: HIGH EFFICIENCY HVAC EQUIPMENT 3b: | C68: 1
B69: Air-source heat pump with minimum HSPF of 9.0
B70: To qualify to claim this credit, the building permit drawings shall specify the option being selected and shall specify the heating equipment type and the minimum equipment efficiency.
A71: 3cb | B71: HIGH EFFICIENCY HVAC EQUIPMENT 3c: | C71: 1.5
B72: Closed-loop ground source heat pump; with a minimum COP of 3.3
B73: or
B74: Open loop water source heat pump with a maximum pumping hydraulic head of 150 feet and minimum COP of 3.6
B75: To qualify to claim this credit, the building permit drawings shall specify the option being selected and shall specify the heating equipment type and the minimum equipment efficiency.
A76: 3db | B76: HIGH EFFICIENCY HVAC EQUIPMENT 3d: | C76: 1
B77: Ductless Split System Heat Pumps, Zonal Control: In homes where the primary space heating system is zonal electric heating, a ductless heat pump system shall be installed and provide heating to the largest zone of the housing unit.
B78: To qualify to claim this credit, the building permit drawings shall specify the option being selected and shall specify the heating equipment type and the minimum equipment efficiency.
A79: 4 | B79: HIGH EFFICIENCY HVAC DISTRIBUTION SYSTEM: | C79: 1
B80: All heating and cooling system components installed inside the conditioned space. This includes all equipment and distribution system components such as forced air ducts, hydronic piping, hydronic floor heating loop, convectors and radiators. All combustion equipment shall be direct vent or sealed combustion.
B81: For forced air ducts: A maximum of 10 linear feet of return ducts and 5 linear feet of supply ducts may be located outside the conditioned space. All metallic ducts located outside the conditioned space must have both transverse and longitudinal joints sealed with mastic. If flex ducts are used, they cannot contain splices. Flex duct connections must be made with nylon straps and installed using a plastic strapping tensioning tool. Ducts located outside the conditioned space must be insulated to a minimum of R-8.
B82: Locating system components in conditioned crawl spaces is not permitted under this option.
B83: Electric resistance heat and ductless heat pumps are not permitted under this option.
B84: Direct combustion heating equipment with AFUE less than 80% is not permitted under this option.
B85: To qualify to claim this credit, the building permit drawings shall specify the option being selected and shall specify the heating equipment type and shall show the location of the heating and cooling equipment and all the ductwork.
A86: 5a | B86: EFFICIENT WATER HEATING 5a: | C86: 0.5
B87: All showerhead and kitchen sink faucets installed in the house shall be rated at 1.75 GPM or less. All other lavatory faucets shall be rated at 1.0 GPM or less.c
B88: To qualify to claim this credit, the building permit drawings shall specify the option being selected and shall specify the maximum flow rates for all showerheads, kitchen sink faucets, and other lavatory faucets.
A89: 5b | B89: EFFICIENT WATER HEATING 5b: | C89: 1
B90: Water heating system shall include one of the following:
B91: Gas, propane or oil water heater with a minimum EF of 0.74
B92: or
B93: Water heater heated by ground source heat pump meeting the requirements of Option 3c.
B94: or
B95: For R-2 occupancy, a central heat pump water heater with an EF greater than 2.0 that would supply DHW to all the units through a central water loop insulated with R-8 minimum pipe insulation.
B96: To qualify to claim this credit, the building permit drawings shall specify the option being selected and shall specify the water heater equipment type and the minimum equipment efficiency.
A97: 5c | B97: EFFICIENT WATER HEATING 5c: | C97: 1.5
B98: Water heating system shall include one of the following:
B99: Gas, propane or oil water heater with a minimum EF of 0.91
B100: or
B101: Solar water heating supplementing a minimum standard water heater. Solar water heating will provide a rated minimum savings of 85 therms or 2000 kWh based on the Solar Rating and Certification Corporation (SRCC) Annual Performance of OG-300 Certified Solar Water Heating Systems.
B102: or
B103: Electric heat pump water heater with a minimum EF of 2.0 and meeting the standards of NEEA's Northern Climate Specifications for Heat Pump Water Heaters.
B104: To qualify to claim this credit, the building permit drawings shall specify the option being selected and shall specify the water heater equipment type and the minimum equipment efficiency and, for solar water heating systems, the calculation of the minimum energy savings.
A105: 5d | B105: EFFICIENT WATER HEATING 5d: | C105: 0.5
B106: A drain water heat recovery unit(s) shall be installed, which captures waste water heat from all the showers, and has a minimum efficiency of 40% if installed for equal flow or a minimum efficiency of 52% if installed for unequal flow. Such units shall be rated in accordance with CSA B55.1 and be so labeled.
B107: To qualify to claim this credit, the building permit drawings shall include a plumbing diagram that specifies the drain water heat recovery units and the plumbing layout needed to install it and labels or other documentation shall be provided that demonstrates that the unit complies with the standard.
A108: 6 | B108: RENEWABLE ELECTRIC ENERGY: | C108: 0.5
B109: For each 1200 kWh of electrical generation per housing unit provided annually by on-site wind or solar equipment a 0.5 credit shall be allowed, up to 3 credits. Generation shall be calculated as follows:
B110: For solar electric systems, the design shall be demonstrated to meet this requirement using the National Renewable Energy Laboratory calculator PVWATTs. Documentation noting solar access shall be included on the plans.
B111: For wind generation projects designs shall document annual power generation based on the following factors:
B112: The wind turbine power curve; average annual wind speed at the site; frequency distribution of the wind speed at the site and height of the tower.
B113: To qualify to claim this credit, the building permit drawings shall specify the option being selected and shall show the photovoltaic or wind turbine equipment type, provide documentation of solar and wind access, and include a calculation of the minimum annual energy power production.
A114: a. | B114: Projects using this option may not use Option 1a, 1b or 1c.
A115: b. | B115: Projects may only include credit from one space heating option, 3a, 3b, 3c or 3d. When a housing unit has two pieces of equipment (i.e., two furnaces) both must meet the standard to receive the credit.
A116: c. | B116: Plumbing Fixtures Flow Ratings. Low flow plumbing fixtures (water closets and urinals) and fittings (faucets and showerheads) shall comply with the following requirements:
B117: 1. Residential bathroom lavatory sink faucets: Maximum flow rate - 3.8 L/min (1.0 gal/min) when tested in accordance with ASME A112.18.1/CSA B125.1.
B118: 2. Residential kitchen faucets: Maximum flow rate - 6.6 L/min (1.75 gal/min) when tested in accordance with ASME A112.18.1/CSA B125.1.
B119: 3. Residential showerheads: Maximum flow rate - 6.6 L/min (1.75 gal/min) when tested in accordance with ASME A112.18.1/CSA B125.1.

Sheet Weather (hidden)
A1: Index | B1: Location | C1: Heating | D1: Design
C2: Design | D2: Temp
C3: Temp | D3: Difference
A4: 1
A5: 2 | B5: Aberdeen 20 NNE | C5: 25 | D5: =70-C5 -> 45
A6: 3 | B6: Anacortes | C6: 24 | D6: =70-C6 -> 46
A7: 4 | B7: Anatone | C7: -4 | D7: 74
A8: 5 | B8: Appleton | C8: 11 | D8: 59
A9: 6 | B9: Auburn | C9: 25 | D9: 45
A10: 7 | B10: Battleground | C10: 19 | D10: 51
A11: 8 | B11: Bellevue | C11: 24 | D11: 46
A12: 9 | B12: Bellingham 2N | C12: 19 | D12: 51
A13: 10 | B13: Benton City 2 NW | C13: 11 | D13: 59
A14: 11 | B14: Bickleton | C14: 4 | D14: 66
A15: 12 | B15: Blaine | C15: 17 | D15: 53
A16: 13 | B16: Bothell 2 N | C16: 17 | D16: 53
A17: 14 | B17: Bremerton | C17: 29 | D17: 41
A18: 15 | B18: Brier | C18: 24 | D18: 46
A19: 16 | B19: Buckley 1 NE | C19: 26 | D19: 44
A20: 17 | B20: Bumping Lake | C20: -5 | D20: 75
A21: 18 | B21: Burlington | C21: 19 | D21: 51
A22: 19 | B22: Camas | C22: 21 | D22: 49
A23: 20 | B23: Castle Rock | C23: 23 | D23: 47
A24: 21 | B24: Cedar Lake | C24: 20 | D24: 50
A25: 22 | B25: Centralia | C25: 21 | D25: 49
A26: 23 | B26: Central Park | C26: 27 | D26: 43
A27: 24 | B27: Chehalis | C27: 21 | D27: 49
A28: 25 | B28: Chelan | C28: 10 | D28: 60
A29: 26 | B29: Cheney | C29: 4 | D29: 66
A30: 27 | B30: Chesaw | C30: -11 | D30: 81
A31: 28 | B31: Chewalah 2 S | C31: -9 | D31: 79
A32: 29 | B32: Chief Joseph Dam | C32: 6 | D32: 64
A33: 30 | B33: Clallam Bay 1 NNE | C33: 28 | D33: 42
A34: 31 | B34: Clarkston | C34: 10 | D34: 60
A35: 32 | B35: Clearbrook | C35: 19 | D35: 51
A36: 33 | B36: Clearwater | C36: 26 | D36: 44
A37: 34 | B37: Cle Elum | C37: 1 | D37: 69
A38: 35 | B38: Clyde Hill | C38: 24 | D38: 46
A39: 36 | B39: Colfax 1 NW | C39: 2 | D39: 68
A40: 37 | B40: College Place | C40: 6 | D40: 64
A41: 38 | B41: Colville AP | C41: -2 | D41: 72
A42: 39 | B42: Conconully | C42: -7 | D42: 77
A43: 40 | B43: Concrete | C43: 19 | D43: 51
A44: 41 | B44: Connell 4 NNW | C44: 6 | D44: 64
A45: 42 | B45: Cougar 5 E | C45: 25 | D45: 45
A46: 43 | B46: Coulee Dam 1 SW | C46: 9 | D46: 61
A47: 44 | B47: Coupeville 1 S | C47: 21 | D47: 49
A48: 45 | B48: Cushman Dam | C48: 22 | D48: 48
A49: 46 | B49: Dallesport AP | C49: 14 | D49: 56
A50: 47 | B50: Darrington RS | C50: 13 | D50: 57
A51: 48 | B51: Davenport | C51: 5 | D51: 65
A52: 49 | B52: Dayton 1 WSW | C52: 5 | D52: 65
A53: 50 | B53: Deer Park 2 E | C53: -5 | D53: 75
A54: 51 | B54: Des Moines | C54: 25 | D54: 45
A55: 52 | B55: Diablo Dam | C55: 15 | D55: 55
A56: 53 | B56: Dishman | C56: 9 | D56: 61
A57: 54 | B57: East Bremerton | C57: 29 | D57: 41
A58: 55 | B58: Edmonds | C58: 24 | D58: 46
A59: 56 | B59: Electron Headwks | C59: 16 | D59: 54
A60: 57 | B60: Ellensburg AP | C60: 2 | D60: 68
A61: 58 | B61: Elma | C61: 24 | D61: 46
A62: 59 | B62: Eltopia 6 W | C62: 9 | D62: 61
A63: 60 | B63: Elwha RS | C63: 24 | D63: 46
A64: 61 | B64: Enumclaw | C64: 26 | D64: 44
A65: 62 | B65: Ephrata AP | C65: 7 | D65: 63
A66: 63 | B66: Everett JC | C66: 23 | D66: 47
A67: 64 | B67: Everett Paine AFB | C67: 21 | D67: 49
A68: 65 | B68: Fircrest | C68: 29 | D68: 41
A69: 66 | B69: Forks I E | C69: 23 | D69: 47
A70: 67 | B70: Fort Lewis | C70: 24 | D70: =70-C70 -> 46
A71: 68 | B71: Fruitvale | C71: 1.1 | D71: 68.9
A72: 69 | B72: Glacier RS | C72: 13 | D72: 57
A73: 70 | B73: Glenoma (Kosmos) | C73: 18 | D73: 52
A74: 71 | B74: Goldendale | C74: 7 | D74: 63
A75: 72 | B75: Grandview | C75: 12 | D75: 58
A76: 73 | B76: Grapeview | C76: 30 | D76: 40
A77: 74 | B77: Grayland 2 S | C77: 28 | D77: 42
A78: 75 | B78: Grays River Hatchery | C78: 24 | D78: 46
A79: 76 | B79: Greenwater | C79: 1.4 | D79: 68.6
A80: 77 | B80: Grotto | C80: 21 | D80: 49
A81: 78 | B81: Harrington 2 S | C81: 3 | D81: 67
A82: 79 | B82: Hartline | C82: 7 | D82: 63
A83: 80 | B83: Hatton 8 E | C83: 1 | D83: 69
A84: 81 | B84: Holden Village | C84: 4 | D84: 66
A85: 82 | B85: Hoquiam AP | C85: 26 | D85: 44
A86: 83 | B86: Ice Harbor Dam | C86: 17 | D86: 53
A87: 84 | B87: Inchelium 2 NW | C87: 0 | D87: 70
A88: 85 | B88: Issaquah | C88: 23 | D88: 47
A89: 86 | B89: John Day Dam | C89: 19 | D89: 51
A90: 87 | B90: Kelso AP | C90: 24 | D90: 46
A91: 88 | B91: Kennewick 10 SW | C91: 13 | D91: 57
A92: 89 | B92: Kent | C92: 21 | D92: 49
A93: 90 | B93: Kid Valley | C93: 20 | D93: 50
A94: 91 | B94: Kirkland | C94: 17 | D94: 53
A95: 92 | B95: Lacey | C95: 17 | D95: 53
A96: 93 | B96: Lacrosse 3 ESE | C96: -3 | D96: 73
A97: 94 | B97: La Grande | C97: 23 | D97: 47
A98: 95 | B98: Lake Cle Elum | C98: -4 | D98: 74
A99: 96 | B99: Lake Forest Park | C99: 20 | D99: 50
A100: 97 | B100: Lake Kachess | C100: -2 | D100: 72
A101: 98 | B101: Lake Keechelus | C101: 0 | D101: 70
A102: 99 | B102: Lakewood Center | C102: 23 | D102: 47
A103: 100 | B103: Landsburg | C103: 18 | D103: 52
A104: 101 | B104: Larson AFB | C104: 6 | D104: 64
A105: 102 | B105: Laurier | C105: -8 | D105: 78
A106: 103 | B106: Leavenworth | C106: -3 | D106: 73
A107: 104 | B107: Lemanasky Lake | C107: -7 | D107: 77
A108: 105 | B108: Lind 3 NE | C108: 6 | D108: 64
A109: 106 | B109: Linwood | C109: 10 | D109: 60
A110: 107 | B110: Little Goose Dam | C110: 22 | D110: 48
A111: 108 | B111: Long Beach 3 NNE | C111: 25 | D111: 45
A112: 109 | B112: Longview | C112: 24 | D112: 46
A113: 110 | B113: Lower Granite Dam | C113: 14 | D113: 56
A114: 111 | B114: Lower Monument Dam | C114: 18 | D114: 52
A115: 112 | B115: Lynden | C115: 18 | D115: 52
A116: 113 | B116: Lynnwood | C116: 24 | D116: 46
A117: 114 | B117: Maloft | C117: 4 | D117: 66
A118: 115 | B118: Marietta 3 NNW | C118: 18 | D118: 52
A119: 116 | B119: Marysville | C119: 23 | D119: 47
A120: 117 | B120: McMillin Res. | C120: 21 | D120: 49
A121: 118 | B121: McNary Dam | C121: 11 | D121: 59
A122: 119 | B122: Medical Lake | C122: 4 | D122: 66
A123: 120 | B123: Medina | C123: 24 | D123: 46
A124: 121 | B124: Mercer Island | C124: 25 | D124: 45
A125: 122 | B125: Metaline Falls | C125: -1 | D125: 71
A126: 123 | B126: Methow 2 W | C126: 1 | D126: 69
A127: 124 | B127: Mountlake Terrace | C127: 22 | D127: 48
A128: 125 | B128: Mt. Spokane Summit | C128: -2 | D128: 72
A129: 126 | B129: Mount Vernon 3 WNW | C129: 20 | D129: 50
A130: 127 | B130: Moxee City 10 E | C130: 8 | D130: 62
A131: 128 | B131: Mud Mtn. Dam | C131: 23 | D131: 47
A132: 129 | B132: Nespelem 2 S | C132: -4 | D132: 74
A133: 130 | B133: Newhalem | C133: 19 | D133: 51
A134: 131 | B134: Newport | C134: -5 | D134: =70-C134 -> 75
A135: 132 | B135: Normandy Park | C135: 24 | D135: 46
A136: 133 | B136: Northport | C136: 2 | D136: 68
A137: 134 | B137: Oak Harbor | C137: 16 | D137: 54
A138: 135 | B138: Oakville | C138: 20 | D138: 50
A139: 136 | B139: Odessa | C139: 7 | D139: 63
A140: 137 | B140: Olga 2 SE | C140: 24 | D140: 46
A141: 138 | B141: Olympia, AP. | C141: 17 | D141: 53
A142: 139 | B142: Omak 2 NW | C142: 3 | D142: 67
A143: 140 | B143: Opportunity | C143: 8 | D143: 62
A144: 141 | B144: Oroville | C144: 5 | D144: 65
A145: 142 | B145: Othello | C145: 9 | D145: 61
A146: 143 | B146: Packwood | C146: 16 | D146: 54
A147: 144 | B147: Palmer 3 SE | C147: 22 | D147: 48
A148: 145 | B148: Parkland | C148: 20 | D148: 50
A149: 146 | B149: Pasco | C149: 13 | D149: 57
A150: 147 | B150: Plain | C150: -3 | D150: 73
A151: 148 | B151: Pleasant View | C151: 16 | D151: 54
A152: 149 | B152: Pt. Grenville | C152: 27 | D152: 43
A153: 150 | B153: Pomeroy | C153: 3 | D153: 67
A154: 151 | B154: Port Angeles | C154: 28 | D154: 42
A155: 152 | B155: Port Orchard | C155: 29 | D155: 41
A156: 153 | B156: Pon Townsend | C156: 25 | D156: 45
A157: 154 | B157: Priest Rapids Dam | C157: 14 | D157: 56
A158: 155 | B158: Prosser | C158: 12 | D158: 58
A159: 156 | B159: Pullman Exp. Sta. | C159: 1 | D159: 69
A160: 157 | B160: Puyallup | C160: 19 | D160: 51
A161: 158 | B161: Quilcene 2 SW | C161: 23 | D161: 47
A162: 159 | B162: Quillayute AP | C162: 23 | D162: 47
A163: 160 | B163: Quinault RS | C163: 25 | D163: 45
A164: 161 | B164: Quincy 1 NE | C164: 4 | D164: 66
A165: 162 | B165: Rainier, Longmire | C165: 15 | D165: 55
A166: 163 | B166: Paradise RS | C166: 8 | D166: 62
A167: 164 | B167: Raymond | C167: 28 | D167: 42
A168: 165 | B168: Redmond | C168: 17 | D168: 53
A169: 166 | B169: Renton | C169: 24 | D169: 46
A170: 167 | B170: Republic | C170: -9 | D170: 79
A171: 168 | B171: Richland | C171: 11 | D171: 59
A172: 169 | B172: Rimrock Tieton Dam | C172: 4 | D172: 66
A173: 170 | B173: Ritzville | C173: 6 | D173: 64
A174: 171 | B174: Rosalia | C174: 6 | D174: 64
A175: 172 | B175: Ross Dam | C175: 14 | D175: 56
A176: 173 | B176: St. John | C176: 15 | D176: 55
A177: 174 | B177: Sappho 8 E | C177: 23 | D177: 47
A178: 175 | B178: Satus Pass | C178: 10 | D178: 60
A179: 176 | B179: Seattle: Sea-Tac AP | C179: 24 | D179: 46
A180: 177 | B180: Sedro Woolley 1 E | C180: 19 | D180: 51
A181: 178 | B181: Selah | C181: 11 | D181: 59
A182: 179 | B182: Sequim | C182: 23 | D182: 47
A183: 180 | B183: Shelton | C183: 23 | D183: 47
A184: 181 | B184: Shoultes | C184: 23 | D184: 47
A185: 182 | B185: Skamania Fish Hatch. | C185: 24 | D185: 46
A186: 183 | B186: Smyrna | C186: 8 | D186: 62
A187: 184 | B187: Snohomish | C187: 21 | D187: 49
A188: 185 | B188: Snoqualmie Falls | C188: 22 | D188: 48
A189: 186 | B189: Snoqualmie Pass | C189: 6 | D189: 64
A190: 187 | B190: South Broadway | C190: 11 | D190: 59
A191: 188 | B191: So. Olympic Tree Farm | C191: 24 | D191: 46
A192: 189 | B192: Spanaway | C192: 20 | D192: 50
A193: 190 | B193: Spokane AP | C193: 4 | D193: 66
A194: 191 | B194: Spokane CO | C194: 10 | D194: 60
A195: 192 | B195: Spokane Fairchild AFB | C195: 4 | D195: 66
A196: 193 | B196: Sprague | C196: 4 | D196: 66
A197: 194 | B197: Stampede Pass | C197: 7 | D197: 63
A198: 195 | B198: Startup 1 E | C198: 20 | D198: =70-C198 -> 50
A199: 196 | B199: Stehekin 3 NW | C199: 12 | D199: 58
A200: 197 | B200: Steilacoom | C200: 21 | D200: 49
... 38 more rows

Sheet Agreement Not Accepted (hidden)
B2: Total UA Alternative Calculator
B4: Terms of use were not accepted.
B6: Please click on "Review & Accept Terms of Use" button below to try again.
B8: For Assistance please contact:
B9: Carolyn Roos
B10: Washington State University Energy Program
B11: roosc@energy.wsu.edu
B12: Please include 'UA Alternative Calculator' in the subject line.

Sheet UserRegistration (hidden)
A1: User Registration | B1: ='Group R'!E1 -> Total UA Alternative Worksheet - WSEC 2015 & 2018
A3: First Name | B3: Carolyn
A4: Last Name | B4: Roos
A5: Registration Date: | B5: 2020-08-15
A6: Version | B6: Version: 2015-2018 Total UA Alternative Worksheet~20200814a~C2200-1.xlsm, 8/14/2020 7:04:19 PM
A7: Company | B7: WSUEP
A8: Demographic
A9: ContactInfo1
A10: ContactInfo2
A11: ContactInfo3
A12: ContactInfo4
A13: City | B13: Olympia
A14: State
A15: Zipcode
A16: Add to Mailing List? | B16: No
A17: Registrations with this file | B17: 1
